PublisherLabel,PublisherURI,"Body name","Body","Service area","Service division","Responsible unit","Expenses type","Date","Transaction","Amount","Supplier name"
"Bracknell Forest Council","http://opendatacommunities.org/id/unitary-authority/bracknell-forest","Bracknell Forest Council","00MA","Older People (Aged 65 or Over)","Residential Care Home Placements","Bridgewell Unit","Catering Consumables",31/03/2013 00:00:00,"6515536",1138.21,"3663"
"Bracknell Forest Council","http://opendatacommunities.org/id/unitary-authority/bracknell-forest","Bracknell Forest Council","00MA","Support Services & Management Costs","Property Services","Property Maintenance","Equipment - Purchase",27/03/2013 00:00:00,"6515791",2235,"3663"
"Bracknell Forest Council","http://opendatacommunities.org/id/unitary-authority/bracknell-forest","Bracknell Forest Council","00MA","Children Looked After","Fostering services","Independent Fostering (Non BFBC)","Contracted Services",21/12/2012 00:00:00,"6516671",1249.27,"24 SEVEN FOSTERING SERVICES LTD"
"Bracknell Forest Council","http://opendatacommunities.org/id/unitary-authority/bracknell-forest","Bracknell Forest Council","00MA","Central Support Services - COF","Policy Unit","External Communications","Printing and Design",01/04/2013 00:00:00,"6515246",1225,"360SWIFT.COM"
"Bracknell Forest Council","http://opendatacommunities.org/id/unitary-authority/bracknell-forest","Bracknell Forest Council","00MA","Recreation, Sports and Leisure","Indoor Sports & Recreation Facilities","Leisure DSO - Leisure Centre","Publicity & Marketing",15/04/2013 00:00:00,"6515659",640,"4IMPRINT DIRECT LTD"
"Bracknell Forest Council","http://opendatacommunities.org/id/unitary-authority/bracknell-forest","Bracknell Forest Council","00MA","Recreation, Sports and Leisure","Sports Development & Community Recreations","Half Marathon 2009","Grants and Donations",30/04/2013 00:00:00,"6516854",550,"9TH BRACKNELL SCOUT GROUP"
"Bracknell Forest Council","http://opendatacommunities.org/id/unitary-authority/bracknell-forest","Bracknell Forest Council","00MA","Recreation, Sports and Leisure","Indoor Sports & Recreation Facilities","Leisure DSO - Coral Reef","Window Cleaning",31/03/2013 00:00:00,"6515651",645,"A & S CLEANING SERVICES"
"Bracknell Forest Council","http://opendatacommunities.org/id/unitary-authority/bracknell-forest","Bracknell Forest Council","00MA","Recreation, Sports and Leisure","Indoor Sports & Recreation Facilities","Leisure DSO - Coral Reef","Publicity & Marketing",10/04/2013 00:00:00,"6515036",500,"A&N MEDIA FINANCE SERVICES LTD"
"Bracknell Forest Council","http://opendatacommunities.org/id/unitary-authority/bracknell-forest","Bracknell Forest Council","00MA","Special Schools","Centrally managed Expenditure - Special","Supporting Special Educational Needs","Voluntary Sector Service Providers",15/02/2013 00:00:00,"6516515",-41333.33,"ABBEYMEAD HOUSE PRIORY"
"Bracknell Forest Council","http://opendatacommunities.org/id/unitary-authority/bracknell-forest","Bracknell Forest Council","00MA","Special Schools","Centrally managed Expenditure - Special","Supporting Special Educational Needs","Voluntary Sector Service Providers",15/02/2013 00:00:00,"6516517",29524.39,"ABBEYMEAD HOUSE PRIORY"
"Bracknell Forest Council","http://opendatacommunities.org/id/unitary-authority/bracknell-forest","Bracknell Forest Council","00MA","Children Looked After","Residential care","C&F Learning Disability Placements","Voluntary Sector Service Providers",15/02/2013 00:00:00,"6516517",11808.94,"ABBEYMEAD HOUSE PRIORY"
"Bracknell Forest Council","http://opendatacommunities.org/id/unitary-authority/bracknell-forest","Bracknell Forest Council","00MA","Supporting People","Supporting People","Supporting People Payments","Transfer Payments - Supporting People",23/04/2013 00:00:00,"6516318",13806,"ABILITY HOUSING ASSOCIATION"
"Bracknell Forest Council","http://opendatacommunities.org/id/unitary-authority/bracknell-forest","Bracknell Forest Council","00MA","Support Services & Management Costs","Information and Communication Technology","IT","Computer Software Maintenance",25/03/2013 00:00:00,"6515062",1934,"ABRITAS LTD"
"Bracknell Forest Council","http://opendatacommunities.org/id/unitary-authority/bracknell-forest","Bracknell Forest Council","00MA","","","Disabled Facilities Grant","Grants Paid",23/04/2013 00:00:00,"6516202",5170,"ACORN MOBILITY SERVICES LTD"
"Bracknell Forest Council","http://opendatacommunities.org/id/unitary-authority/bracknell-forest","Bracknell Forest Council","00MA","Commissioning and Social Work","Commissioning and Social Work","Children's Participation","Voluntary Sector Service Providers",31/03/2013 00:00:00,"6516160",1630.19,"ACTION FOR CHILDREN SERVICES LTD"
"Bracknell Forest Council","http://opendatacommunities.org/id/unitary-authority/bracknell-forest","Bracknell Forest Council","00MA","Commissioning and Social Work","Commissioning and Social Work","Children's Participation","Voluntary Sector Service Providers",31/03/2013 00:00:00,"6516161",1371.76,"ACTION FOR CHILDREN SERVICES LTD"
"Bracknell Forest Council","http://opendatacommunities.org/id/unitary-authority/bracknell-forest","Bracknell Forest Council","00MA","Commissioning and Social Work","Commissioning and Social Work","Children's Participation","Voluntary Sector Service Providers",31/03/2013 00:00:00,"6516162",1300,"ACTION FOR CHILDREN SERVICES LTD"
"Bracknell Forest Council","http://opendatacommunities.org/id/unitary-authority/bracknell-forest","Bracknell Forest Council","00MA","Commissioning and Social Work","Commissioning and Social Work","Children's Participation","Voluntary Sector Service Providers",31/03/2013 00:00:00,"6516163",7800,"ACTION FOR CHILDREN SERVICES LTD"
"Bracknell Forest Council","http://opendatacommunities.org/id/unitary-authority/bracknell-forest","Bracknell Forest Council","00MA","","","Disabled Facilities Grant","Grants Paid",29/04/2013 00:00:00,"6516761",3300,"ADAPTABLE BUILDING SERVICES"
"Bracknell Forest Council","http://opendatacommunities.org/id/unitary-authority/bracknell-forest","Bracknell Forest Council","00MA","","","Disabled Facilities Grant","Grants Paid",29/04/2013 00:00:00,"6516762",3683,"ADAPTABLE BUILDING SERVICES"
"Bracknell Forest Council","http://opendatacommunities.org/id/unitary-authority/bracknell-forest","Bracknell Forest Council","00MA","","","Disabled Facilities Grant","Grants Paid",02/05/2013 00:00:00,"6517198",1325,"ADAPTABLE BUILDING SERVICES"
"Bracknell Forest Council","http://opendatacommunities.org/id/unitary-authority/bracknell-forest","Bracknell Forest Council","00MA","Primary Schools","Centrally Managed Expenditure - Primary","Pupil Premium Educational Attainment for LAC","Contracted Services",16/04/2013 00:00:00,"6515604",623,"ADVANCED CHILDCARE"
"Bracknell Forest Council","http://opendatacommunities.org/id/unitary-authority/bracknell-forest","Bracknell Forest Council","00MA","Primary Schools","Centrally Managed Expenditure - Primary","Pupil Premium Educational Attainment for LAC","Contracted Services",16/04/2013 00:00:00,"6515607",623,"ADVANCED CHILDCARE"
"Bracknell Forest Council","http://opendatacommunities.org/id/unitary-authority/bracknell-forest","Bracknell Forest Council","00MA","Children Looked After","Residential care","Children's Home Placements","Contracted Services",18/04/2013 00:00:00,"6516381",13064.33,"ADVANCED CHILDCARE"
"Bracknell Forest Council","http://opendatacommunities.org/id/unitary-authority/bracknell-forest","Bracknell Forest Council","00MA","Children Looked After","Residential care","Children's Home Placements","Contracted Services",18/04/2013 00:00:00,"6516382",21921.34,"ADVANCED CHILDCARE"
"Bracknell Forest Council","http://opendatacommunities.org/id/unitary-authority/bracknell-forest","Bracknell Forest Council","00MA","Children Looked After","Residential care","Children's Home Placements","Contracted Services",18/04/2013 00:00:00,"6516383",16285.8,"ADVANCED CHILDCARE"
"Bracknell Forest Council","http://opendatacommunities.org/id/unitary-authority/bracknell-forest","Bracknell Forest Council","00MA","Youth Justice","Youth Offender Teams","YJB Core Funding","Other Fees for Bought-in Services",28/03/2013 00:00:00,"6516328",6974,"ADVIZA PARTNERSHIP"
"Bracknell Forest Council","http://opendatacommunities.org/id/unitary-authority/bracknell-forest","Bracknell Forest Council","00MA","Supporting People","Supporting People","Handyman Service","Contracted Services",30/04/2013 00:00:00,"6516856",5370.8,"AGE UK"
"Bracknell Forest Council","http://opendatacommunities.org/id/unitary-authority/bracknell-forest","Bracknell Forest Council","00MA","Business Support","Premises Development","Easthampstead Park Conference Centre","Cleaning materials",08/04/2013 00:00:00,"6516088",1321.89,"ALLIANCE DISPOSABLES LTD"
"Bracknell Forest Council","http://opendatacommunities.org/id/unitary-authority/bracknell-forest","Bracknell Forest Council","00MA","Central Support Services - COF","Policy Unit","Communications Admin","Computer Software",14/02/2013 00:00:00,"6516525",3250,"ALMEDIA COMMS"
"Bracknell Forest Council","http://opendatacommunities.org/id/unitary-authority/bracknell-forest","Bracknell Forest Council","00MA","Services to Young People","Adult and Community Learning","Open Learning Centre - Brakenhale","Equipment - Purchase",11/03/2013 00:00:00,"6515479",1416.1,"ALPHA FURNITURE"
"Bracknell Forest Council","http://opendatacommunities.org/id/unitary-authority/bracknell-forest","Bracknell Forest Council","00MA","Vehicles &  Plant","Vehicles and Plant Summary Account","Vehicles and Plant","Operating Lease Charge",01/04/2013 00:00:00,"6515946",534.99,"ALPHABET (GB) LTD"
"Bracknell Forest Council","http://opendatacommunities.org/id/unitary-authority/bracknell-forest","Bracknell Forest Council","00MA","Central Support Services - COF","Construction and Property","Easthampstead & Seymour House","Other Fees for Bought-in Services",09/04/2013 00:00:00,"6515792",1318.08,"AMBIUS"
"Bracknell Forest Council","http://opendatacommunities.org/id/unitary-authority/bracknell-forest","Bracknell Forest Council","00MA","","","Balance Sheet","Flexible Benefits Control Account",28/03/2013 00:00:00,"6515049",4420,"APHRITE (GB) LTD T/A WEST WAY ALDERSHOT"
"Bracknell Forest Council","http://opendatacommunities.org/id/unitary-authority/bracknell-forest","Bracknell Forest Council","00MA","Business Support","Premises Development","Easthampstead Park Conference Centre","R&M - Reactive",14/04/2013 00:00:00,"6516078",613.88,"ARGOS BUSINESS SOLUTIONS"
"Bracknell Forest Council","http://opendatacommunities.org/id/unitary-authority/bracknell-forest","Bracknell Forest Council","00MA","Recreation, Sports and Leisure","Indoor Sports & Recreation Facilities","Leisure DSO - Leisure Centre","Equipment - Purchase",08/04/2013 00:00:00,"6515380",906.25,"ARH ATHLETICS"
"Bracknell Forest Council","http://opendatacommunities.org/id/unitary-authority/bracknell-forest","Bracknell Forest Council","00MA","Early Years","Children's Centres","The Rowans Children's Centre","Equipment - Purchase",09/04/2013 00:00:00,"6515228",582,"ASCO EDUCATIONAL SUPPLIES LTD"
"Bracknell Forest Council","http://opendatacommunities.org/id/unitary-authority/bracknell-forest","Bracknell Forest Council","00MA","Early Years","Centrally managed Expenditure - Early Years","Early Years and Childcare","Grants and Donations",10/04/2013 00:00:00,"30216174",15739.31,"ASCOT & CRANBOURNE PRE-SCHOOL"
"Bracknell Forest Council","http://opendatacommunities.org/id/unitary-authority/bracknell-forest","Bracknell Forest Council","00MA","Early Years","Centrally managed Expenditure - Early Years","Early Years and Childcare","Grants and Donations",10/04/2013 00:00:00,"30216174",3542.01,"ASCOT BAPTIST CHURCH/PRE SCH."
"Bracknell Forest Council","http://opendatacommunities.org/id/unitary-authority/bracknell-forest","Bracknell Forest Council","00MA","Management and Support Services - CYPL","Holding Codes - net nil","Education Library Service - Resources","Audio/Visual materials",08/04/2013 00:00:00,"6515984",910.29,"ASKEWS & HOLTS LIBRARY SERVICE"
"Bracknell Forest Council","http://opendatacommunities.org/id/unitary-authority/bracknell-forest","Bracknell Forest Council","00MA","Libraries","Stock Ordering, Cataloguing & Distribution","Library Book Fund","Audio/Visual materials",08/04/2013 00:00:00,"6516087",523.58,"ASKEWS & HOLTS LIBRARY SERVICE"
"Bracknell Forest Council","http://opendatacommunities.org/id/unitary-authority/bracknell-forest","Bracknell Forest Council","00MA","Libraries","Stock Ordering, Cataloguing & Distribution","Library Book Fund","Audio/Visual materials",08/04/2013 00:00:00,"6516087",502.04,"ASKEWS & HOLTS LIBRARY SERVICE"
"Bracknell Forest Council","http://opendatacommunities.org/id/unitary-authority/bracknell-forest","Bracknell Forest Council","00MA","Libraries","Stock Ordering, Cataloguing & Distribution","Library Book Fund","Audio/Visual materials",08/04/2013 00:00:00,"6516087",631.23,"ASKEWS & HOLTS LIBRARY SERVICE"
"Bracknell Forest Council","http://opendatacommunities.org/id/unitary-authority/bracknell-forest","Bracknell Forest Council","00MA","Libraries","Stock Ordering, Cataloguing & Distribution","Library Book Fund","Audio/Visual materials",15/04/2013 00:00:00,"6516089",1147.97,"ASKEWS & HOLTS LIBRARY SERVICE"
"Bracknell Forest Council","http://opendatacommunities.org/id/unitary-authority/bracknell-forest","Bracknell Forest Council","00MA","Libraries","Stock Ordering, Cataloguing & Distribution","Library Book Fund","Audio/Visual materials",15/04/2013 00:00:00,"6516089",1091.21,"ASKEWS & HOLTS LIBRARY SERVICE"
"Bracknell Forest Council","http://opendatacommunities.org/id/unitary-authority/bracknell-forest","Bracknell Forest Council","00MA","Libraries","Stock Ordering, Cataloguing & Distribution","Library Book Fund","Audio/Visual materials",15/04/2013 00:00:00,"6516089",656.45,"ASKEWS & HOLTS LIBRARY SERVICE"
"Bracknell Forest Council","http://opendatacommunities.org/id/unitary-authority/bracknell-forest","Bracknell Forest Council","00MA","Management and Support Services - CYPL","Holding Codes - net nil","Education Library Service - Resources","Audio/Visual materials",22/04/2013 00:00:00,"6516621",3105.02,"ASKEWS & HOLTS LIBRARY SERVICE"
"Bracknell Forest Council","http://opendatacommunities.org/id/unitary-authority/bracknell-forest","Bracknell Forest Council","00MA","Recreation, Sports and Leisure","Indoor Sports & Recreation Facilities","Leisure DSO - Coral Reef","R&M - Service Contracts",29/04/2013 00:00:00,"6517215",2415.11,"ATG UV TECHNOLOGY"
"Bracknell Forest Council","http://opendatacommunities.org/id/unitary-authority/bracknell-forest","Bracknell Forest Council","00MA","Open Spaces","Community Parks & Open Spaces","Play Areas","Materials",19/04/2013 00:00:00,"6516260",620.06,"B & S CHAINS MIDLANDS LTD"
"Bracknell Forest Council","http://opendatacommunities.org/id/unitary-authority/bracknell-forest","Bracknell Forest Council","00MA","Recreation, Sports and Leisure","Indoor Sports & Recreation Facilities","Leisure DSO - Leisure Centre Maintenance","R&M - Reactive",04/04/2013 00:00:00,"6517274",790,"BALLCOCK & BITS"
"Bracknell Forest Council","http://opendatacommunities.org/id/unitary-authority/bracknell-forest","Bracknell Forest Council","00MA","Children Looked After","Fostering services","Independent Fostering (Non BFBC)","Contracted Services",25/04/2013 00:00:00,"6517113",3215.7,"BARNARDO SERVICES LTD"
"Bracknell Forest Council","http://opendatacommunities.org/id/unitary-authority/bracknell-forest","Bracknell Forest Council","00MA","Children Looked After","Fostering services","Independent Fostering (Non BFBC)","Contracted Services",25/04/2013 00:00:00,"6517114",3215.7,"BARNARDO SERVICES LTD"
"Bracknell Forest Council","http://opendatacommunities.org/id/unitary-authority/bracknell-forest","Bracknell Forest Council","00MA","","","Craigholm, Faringdon Drive","Other Direct Expenses",05/03/2013 00:00:00,"6515447",2772,"BAS SOLICITORS"
"Bracknell Forest Council","http://opendatacommunities.org/id/unitary-authority/bracknell-forest","Bracknell Forest Council","00MA","Recreation, Sports and Leisure","Golf Courses","Leisure DSO - Downshire Golf Shop","Cost of Goods Sold",01/04/2013 00:00:00,"6515047",2485.3,"BENROSS GOLF LTD"
"Bracknell Forest Council","http://opendatacommunities.org/id/unitary-authority/bracknell-forest","Bracknell Forest Council","00MA","Recreation, Sports and Leisure","Indoor Sports & Recreation Facilities","Leisure DSO - Leisure Centre","R&M - Service Contracts",10/04/2013 00:00:00,"6516150",932.33,"BERKS EXTINGUISHER SERVICE"
"Bracknell Forest Council","http://opendatacommunities.org/id/unitary-authority/bracknell-forest","Bracknell Forest Council","00MA","Learning Disability (under 65)","Homecare","Supported Living (Homecare) LD","Contracted Services",24/04/2013 00:00:00,"30217623",1504,"EXCEL SUPPORT SERVICES"
"Bracknell Forest Council","http://opendatacommunities.org/id/unitary-authority/bracknell-forest","Bracknell Forest Council","00MA","Learning Disability (under 65)","Homecare","Supported Living (Homecare) LD","Contracted Services",24/04/2013 00:00:00,"30217623",2308.32,"EXCEL SUPPORT SERVICES"
"Bracknell Forest Council","http://opendatacommunities.org/id/unitary-authority/bracknell-forest","Bracknell Forest Council","00MA","Learning Disability (under 65)","Homecare","Supported Living (Homecare) LD","Contracted Services",24/04/2013 00:00:00,"30217623",2310,"EXCEL SUPPORT SERVICES"
"Bracknell Forest Council","http://opendatacommunities.org/id/unitary-authority/bracknell-forest","Bracknell Forest Council","00MA","Autistic Spectrum Condition (Under 65)","Homecare","Supported Living (Homecare) - Autistic Spectrum Condition","Contracted Services",24/04/2013 00:00:00,"30217623",2600,"EXCEL SUPPORT SERVICES"
"Bracknell Forest Council","http://opendatacommunities.org/id/unitary-authority/bracknell-forest","Bracknell Forest Council","00MA","Autistic Spectrum Condition (Under 65)","Homecare","Supported Living (Homecare) - Autistic Spectrum Condition","Contracted Services",24/04/2013 00:00:00,"30217623",2620,"EXCEL SUPPORT SERVICES"
"Bracknell Forest Council","http://opendatacommunities.org/id/unitary-authority/bracknell-forest","Bracknell Forest Council","00MA","Learning Disability (under 65)","Homecare","Supported Living (Homecare) LD","Contracted Services",24/04/2013 00:00:00,"30217623",2700,"EXCEL SUPPORT SERVICES"
"Bracknell Forest Council","http://opendatacommunities.org/id/unitary-authority/bracknell-forest","Bracknell Forest Council","00MA","Learning Disability (under 65)","Homecare","Supported Living (Homecare) LD","Contracted Services",24/04/2013 00:00:00,"30217623",3346,"EXCEL SUPPORT SERVICES"
"Bracknell Forest Council","http://opendatacommunities.org/id/unitary-authority/bracknell-forest","Bracknell Forest Council","00MA","Learning Disability (under 65)","Homecare","Supported Living (Homecare) LD","Contracted Services",24/04/2013 00:00:00,"30217623",3496.5,"EXCEL SUPPORT SERVICES"
"Bracknell Forest Council","http://opendatacommunities.org/id/unitary-authority/bracknell-forest","Bracknell Forest Council","00MA","Learning Disability (under 65)","Homecare","Supported Living (Homecare) LD","Contracted Services",24/04/2013 00:00:00,"30217623",3885,"EXCEL SUPPORT SERVICES"
"Bracknell Forest Council","http://opendatacommunities.org/id/unitary-authority/bracknell-forest","Bracknell Forest Council","00MA","Learning Disability (under 65)","Homecare","Supported Living (Homecare) LD","Contracted Services",24/04/2013 00:00:00,"30217623",3981.3,"EXCEL SUPPORT SERVICES"
"Bracknell Forest Council","http://opendatacommunities.org/id/unitary-authority/bracknell-forest","Bracknell Forest Council","00MA","Learning Disability (under 65)","Homecare","Supported Living (Homecare) LD","Contracted Services",24/04/2013 00:00:00,"30217623",3981.3,"EXCEL SUPPORT SERVICES"
"Bracknell Forest Council","http://opendatacommunities.org/id/unitary-authority/bracknell-forest","Bracknell Forest Council","00MA","Learning Disability (under 65)","Homecare","Supported Living (Homecare) LD","Contracted Services",24/04/2013 00:00:00,"30217623",3981.3,"EXCEL SUPPORT SERVICES"
"Bracknell Forest Council","http://opendatacommunities.org/id/unitary-authority/bracknell-forest","Bracknell Forest Council","00MA","Learning Disability (under 65)","Homecare","Supported Living (Homecare) LD","Contracted Services",24/04/2013 00:00:00,"30217623",4620,"EXCEL SUPPORT SERVICES"
"Bracknell Forest Council","http://opendatacommunities.org/id/unitary-authority/bracknell-forest","Bracknell Forest Council","00MA","Learning Disability (under 65)","Homecare","Supported Living (Homecare) LD","Contracted Services",24/04/2013 00:00:00,"30217623",4894,"EXCEL SUPPORT SERVICES"
"Bracknell Forest Council","http://opendatacommunities.org/id/unitary-authority/bracknell-forest","Bracknell Forest Council","00MA","","","SPA Access Management","Construction - Other Direct Expenses",31/03/2013 00:00:00,"6515472",688.5,"BERKS, BUCKS & OXFORDSHIRE WILDLIFE TRUST"
"Bracknell Forest Council","http://opendatacommunities.org/id/unitary-authority/bracknell-forest","Bracknell Forest Council","00MA","Physical Disability/Sensory Impairment","Homecare","Home Care-Phys Disab","Contracted Services",23/04/2013 00:00:00,"30217458",148,"BERKSHIRE CARE LTD"
"Bracknell Forest Council","http://opendatacommunities.org/id/unitary-authority/bracknell-forest","Bracknell Forest Council","00MA","Older People (Aged 65 or Over)","Home Care","Home Care-Elderly","Contracted Services",23/04/2013 00:00:00,"30217458",425.5,"BERKSHIRE CARE LTD"
"Bracknell Forest Council","http://opendatacommunities.org/id/unitary-authority/bracknell-forest","Bracknell Forest Council","00MA","Older People (Aged 65 or Over)","Home Care","Home Care-Elderly","Contracted Services",23/04/2013 00:00:00,"30217458",508.75,"BERKSHIRE CARE LTD"
"Bracknell Forest Council","http://opendatacommunities.org/id/unitary-authority/bracknell-forest","Bracknell Forest Council","00MA","Older People (Aged 65 or Over)","Home Care","Home Care-Elderly","Contracted Services",23/04/2013 00:00:00,"30217458",647.65,"BERKSHIRE CARE LTD"
"Bracknell Forest Council","http://opendatacommunities.org/id/unitary-authority/bracknell-forest","Bracknell Forest Council","00MA","Older People (Aged 65 or Over)","Home Care","Home Care-Elderly","Contracted Services",23/04/2013 00:00:00,"30217458",734.45,"BERKSHIRE CARE LTD"
"Bracknell Forest Council","http://opendatacommunities.org/id/unitary-authority/bracknell-forest","Bracknell Forest Council","00MA","Physical Disability/Sensory Impairment","Homecare","Home Care-Phys Disab","Contracted Services",23/04/2013 00:00:00,"30217458",1200.45,"BERKSHIRE CARE LTD"
"Bracknell Forest Council","http://opendatacommunities.org/id/unitary-authority/bracknell-forest","Bracknell Forest Council","00MA","Physical Disability/Sensory Impairment","Homecare","Home Care-Phys Disab","Contracted Services",23/04/2013 00:00:00,"30217458",3568.05,"BERKSHIRE CARE LTD"
"Bracknell Forest Council","http://opendatacommunities.org/id/unitary-authority/bracknell-forest","Bracknell Forest Council","00MA","Older People (Aged 65 or Over)","Other Services To Older People","Carers Respite Services","Contracted Services",01/03/2013 00:00:00,"6517023",6250,"BERKSHIRE CARERS SERVICE"
"Bracknell Forest Council","http://opendatacommunities.org/id/unitary-authority/bracknell-forest","Bracknell Forest Council","00MA","Recreation, Sports and Leisure","Indoor Sports & Recreation Facilities","Leisure DSO - Coral Reef","Publicity & Marketing",30/03/2013 00:00:00,"6515804",700,"BERKSHIRE MEDIA GROUP"
"Bracknell Forest Council","http://opendatacommunities.org/id/unitary-authority/bracknell-forest","Bracknell Forest Council","00MA","Open Spaces","Community Parks & Open Spaces","Tree Service","Contracted Services",27/03/2013 00:00:00,"6515839",1710,"BERKSHIRE TREE CARE"
"Bracknell Forest Council","http://opendatacommunities.org/id/unitary-authority/bracknell-forest","Bracknell Forest Council","00MA","Supporting People","Supporting People","Supporting People Payments","Transfer Payments - Supporting People",30/04/2013 00:00:00,"6516857",11489.16,"BERKSHIRE WOMEN'S AID"
"Bracknell Forest Council","http://opendatacommunities.org/id/unitary-authority/bracknell-forest","Bracknell Forest Council","00MA","Management and Support Services - CYPL","Holding Codes - net nil","Education Library Service - Resources","Learning Resources - Purchase",18/04/2013 00:00:00,"6516622",714.93,"BERTRAM TRADING LTD"
"Bracknell Forest Council","http://opendatacommunities.org/id/unitary-authority/bracknell-forest","Bracknell Forest Council","00MA","","","Market Street","Compensation Payments",04/04/2013 00:00:00,"6515081",107062.9,"BERWIN LEIGHTON PAISNER LLP"
"Bracknell Forest Council","http://opendatacommunities.org/id/unitary-authority/bracknell-forest","Bracknell Forest Council","00MA","Economic Development","Economic Development","Town Centre CPOs - North Retail Quarter West","Compensation Payments",02/04/2013 00:00:00,"6515084",400000,"BERWIN LEIGHTON PAISNER LLP"
"Bracknell Forest Council","http://opendatacommunities.org/id/unitary-authority/bracknell-forest","Bracknell Forest Council","00MA","Early Years","Centrally managed Expenditure - Early Years","Early Years and Childcare","Grants and Donations",10/04/2013 00:00:00,"30216174",14543.69,"BINFIELD PRE-SCHOOL"
"Bracknell Forest Council","http://opendatacommunities.org/id/unitary-authority/bracknell-forest","Bracknell Forest Council","00MA","Early Years","Centrally managed Expenditure - Early Years","Early Years and Childcare","Grants and Donations",10/04/2013 00:00:00,"30216174",9044.03,"BIRCH HILL PRE-SCHOOL"
"Bracknell Forest Council","http://opendatacommunities.org/id/unitary-authority/bracknell-forest","Bracknell Forest Council","00MA","Holding Accounts in Budget Book COF","Corporate Serv - Reprographics & Printing","Print Room","Printing and Design",25/02/2013 00:00:00,"6515529",1495,"BKT LTD"
"Bracknell Forest Council","http://opendatacommunities.org/id/unitary-authority/bracknell-forest","Bracknell Forest Council","00MA","Recreation, Sports and Leisure","Golf Courses","Leisure DSO - Downshire Golf Course","Materials",05/04/2013 00:00:00,"6515291",3342,"BLADE AMENITY LIMITED"
"Bracknell Forest Council","http://opendatacommunities.org/id/unitary-authority/bracknell-forest","Bracknell Forest Council","00MA","","","Minor Works - Libraries","Construction - Other Direct Expenses",30/03/2013 00:00:00,"6516159",3201.67,"BLINDS AND AWNINGS"
"Bracknell Forest Council","http://opendatacommunities.org/id/unitary-authority/bracknell-forest","Bracknell Forest Council","00MA","Recreation, Sports and Leisure","Indoor Sports & Recreation Facilities","Leisure DSO - Coral Reef","Publicity & Marketing",18/04/2013 00:00:00,"6516461",915,"BOOMERANG FAMILY LTD"
"Bracknell Forest Council","http://opendatacommunities.org/id/unitary-authority/bracknell-forest","Bracknell Forest Council","00MA","Special Schools","Centrally managed Expenditure - Special","Supporting Special Educational Needs","Voluntary Sector Service Providers",11/03/2013 00:00:00,"6516520",21667,"BOVERIDGE HOUSE SCHOOL TRUST"
"Bracknell Forest Council","http://opendatacommunities.org/id/unitary-authority/bracknell-forest","Bracknell Forest Council","00MA","Early Years","Centrally managed Expenditure - Early Years","Early Years and Childcare","Grants and Donations",10/04/2013 00:00:00,"30216174",12433.9,"BRACKNELL & WOKINGHAM COLLEGE"
"Bracknell Forest Council","http://opendatacommunities.org/id/unitary-authority/bracknell-forest","Bracknell Forest Council","00MA","Supporting People","Supporting People","Supporting People Payments","Transfer Payments - Supporting People",30/04/2013 00:00:00,"6516858",40243.04,"BRACKNELL FOREST HOMES"
"Bracknell Forest Council","http://opendatacommunities.org/id/unitary-authority/bracknell-forest","Bracknell Forest Council","00MA","Recreation, Sports and Leisure","Sports Development & Community Recreations","Half Marathon 2009","Grants and Donations",01/05/2013 00:00:00,"6516837",520,"BRACKNELL FOREST RUNNERS"
"Bracknell Forest Council","http://opendatacommunities.org/id/unitary-authority/bracknell-forest","Bracknell Forest Council","00MA","General Grants, Bequests & Donations","General Grants, Bequests & Donations","Other Grants","Grants and Donations",03/04/2013 00:00:00,"6514083",35260,"BRACKNELL FOREST VOLUNTARY ACTION"
"Bracknell Forest Council","http://opendatacommunities.org/id/unitary-authority/bracknell-forest","Bracknell Forest Council","00MA","General Grants, Bequests & Donations","General Grants, Bequests & Donations","Other Grants","Grants and Donations",01/04/2013 00:00:00,"6515637",15000,"BRACKNELL FOREST VOLUNTARY ACTION"
"Bracknell Forest Council","http://opendatacommunities.org/id/unitary-authority/bracknell-forest","Bracknell Forest Council","00MA","","","Minor Works Programme","Construction - Other Direct Expenses",29/04/2013 00:00:00,"6517170",3898,"BRACKNELL GLAZING LTD"
"Bracknell Forest Council","http://opendatacommunities.org/id/unitary-authority/bracknell-forest","Bracknell Forest Council","00MA","","","Members Initiative Fund - Priestwood & Garth","Construction - Other Direct Expenses",25/04/2013 00:00:00,"6516617",20000,"BRACKNELL METHODIST CHURCH"
"Bracknell Forest Council","http://opendatacommunities.org/id/unitary-authority/bracknell-forest","Bracknell Forest Council","00MA","","","Fuel Poverty","Construction - Sub-Contractor Payments",18/04/2013 00:00:00,"6515830",600,"BRACKNELL PLUMBING & HEATING"
"Bracknell Forest Council","http://opendatacommunities.org/id/unitary-authority/bracknell-forest","Bracknell Forest Council","00MA","","","South Hill Park Ground Improvements","Construction - Other Direct Expenses",23/04/2013 00:00:00,"6516690",1500,"BRACKNELL TOWN COUNCIL"
"Bracknell Forest Council","http://opendatacommunities.org/id/unitary-authority/bracknell-forest","Bracknell Forest Council","00MA","Culture and Heritage","Heritage Museums & Galleries","The Look Out","Cost of Goods Sold",15/04/2013 00:00:00,"6515819",538.2,"BRAINSTORM LTD"
"Bracknell Forest Council","http://opendatacommunities.org/id/unitary-authority/bracknell-forest","Bracknell Forest Council","00MA","Early Years","Centrally managed Expenditure - Early Years","Early Years and Childcare","Grants and Donations",10/04/2013 00:00:00,"30216174",9743.29,"BRIGHT HORIZONS"
"Bracknell Forest Council","http://opendatacommunities.org/id/unitary-authority/bracknell-forest","Bracknell Forest Council","00MA","Central Support Services - COF","Construction and Property","Easthampstead & Seymour House","Electricity",30/04/2013 00:00:00,"30218230",-550.35,"BRITISH GAS TRADING"
"Bracknell Forest Council","http://opendatacommunities.org/id/unitary-authority/bracknell-forest","Bracknell Forest Council","00MA","Central Support Services - COF","Construction and Property","Easthampstead & Seymour House","Electricity",30/04/2013 00:00:00,"30218230",-537.97,"BRITISH GAS TRADING"
"Bracknell Forest Council","http://opendatacommunities.org/id/unitary-authority/bracknell-forest","Bracknell Forest Council","00MA","Libraries","Branch Libraries","Great Hollands Library","Electricity",30/04/2013 00:00:00,"30218230",-240.07,"BRITISH GAS TRADING"
"Bracknell Forest Council","http://opendatacommunities.org/id/unitary-authority/bracknell-forest","Bracknell Forest Council","00MA","Services to Young People","Other Services to Young People","Great Hollands Youth Centre","Electricity",30/04/2013 00:00:00,"30218230",-201.97,"BRITISH GAS TRADING"
"Bracknell Forest Council","http://opendatacommunities.org/id/unitary-authority/bracknell-forest","Bracknell Forest Council","00MA","Business Support","Premises Development","Town Centre Shops (Under Seymour Hse)","Electricity",30/04/2013 00:00:00,"30218230",-103.98,"BRITISH GAS TRADING"
"Bracknell Forest Council","http://opendatacommunities.org/id/unitary-authority/bracknell-forest","Bracknell Forest Council","00MA","Libraries","Branch Libraries","Great Hollands Library","Electricity",30/04/2013 00:00:00,"30218230",-71.38,"BRITISH GAS TRADING"
"Bracknell Forest Council","http://opendatacommunities.org/id/unitary-authority/bracknell-forest","Bracknell Forest Council","00MA","Libraries","Branch Libraries","Great Hollands Library","Electricity",30/04/2013 00:00:00,"30218230",-57.4,"BRITISH GAS TRADING"
"Bracknell Forest Council","http://opendatacommunities.org/id/unitary-authority/bracknell-forest","Bracknell Forest Council","00MA","Other Adult Services","Substance Abuse (Addictions)","PTB New Hope Running Costs","Electricity",30/04/2013 00:00:00,"30218230",-53.1,"BRITISH GAS TRADING"
"Bracknell Forest Council","http://opendatacommunities.org/id/unitary-authority/bracknell-forest","Bracknell Forest Council","00MA","Street Lighting (including Energy Costs)","Street Lighting","Christmas Lights and Decorations","Electricity",30/04/2013 00:00:00,"30218230",-40.39,"BRITISH GAS TRADING"
"Bracknell Forest Council","http://opendatacommunities.org/id/unitary-authority/bracknell-forest","Bracknell Forest Council","00MA","Street Lighting (including Energy Costs)","Street Lighting","Christmas Lights and Decorations","Electricity",30/04/2013 00:00:00,"30218230",-22.87,"BRITISH GAS TRADING"
"Bracknell Forest Council","http://opendatacommunities.org/id/unitary-authority/bracknell-forest","Bracknell Forest Council","00MA","Other Adult Services","Substance Abuse (Addictions)","PTB New Hope Running Costs","Electricity",30/04/2013 00:00:00,"30218230",-14.39,"BRITISH GAS TRADING"
"Bracknell Forest Council","http://opendatacommunities.org/id/unitary-authority/bracknell-forest","Bracknell Forest Council","00MA","Other Adult Services","Substance Abuse (Addictions)","PTB New Hope Running Costs","Electricity",30/04/2013 00:00:00,"30218230",-10.08,"BRITISH GAS TRADING"
"Bracknell Forest Council","http://opendatacommunities.org/id/unitary-authority/bracknell-forest","Bracknell Forest Council","00MA","Other Adult Services","Substance Abuse (Addictions)","PTB New Hope Running Costs","Electricity",30/04/2013 00:00:00,"30218230",-9.15,"BRITISH GAS TRADING"
"Bracknell Forest Council","http://opendatacommunities.org/id/unitary-authority/bracknell-forest","Bracknell Forest Council","00MA","Other Adult Services","Substance Abuse (Addictions)","PTB New Hope Running Costs","Electricity",30/04/2013 00:00:00,"30218230",-9.05,"BRITISH GAS TRADING"
"Bracknell Forest Council","http://opendatacommunities.org/id/unitary-authority/bracknell-forest","Bracknell Forest Council","00MA","Other Adult Services","Substance Abuse (Addictions)","PTB New Hope Running Costs","Electricity",30/04/2013 00:00:00,"30218230",-4.02,"BRITISH GAS TRADING"
"Bracknell Forest Council","http://opendatacommunities.org/id/unitary-authority/bracknell-forest","Bracknell Forest Council","00MA","Business Support","Premises Development","Commercial Properties","Electricity",30/04/2013 00:00:00,"30218230",9.54,"BRITISH GAS TRADING"
"Bracknell Forest Council","http://opendatacommunities.org/id/unitary-authority/bracknell-forest","Bracknell Forest Council","00MA","Primary Schools","Delegated Primary School Budgets","St Margaret Clitherow - Catholic Primary","Electricity",30/04/2013 00:00:00,"30218230",10.36,"BRITISH GAS TRADING"
"Bracknell Forest Council","http://opendatacommunities.org/id/unitary-authority/bracknell-forest","Bracknell Forest Council","00MA","Primary Schools","Delegated Primary School Budgets","New Scotland Hill - Primary","Electricity",30/04/2013 00:00:00,"30218230",10.36,"BRITISH GAS TRADING"
"Bracknell Forest Council","http://opendatacommunities.org/id/unitary-authority/bracknell-forest","Bracknell Forest Council","00MA","Central Support Services - COF","Construction and Property","Easthampstead & Seymour House","Electricity",30/04/2013 00:00:00,"30218230",10.36,"BRITISH GAS TRADING"
"Bracknell Forest Council","http://opendatacommunities.org/id/unitary-authority/bracknell-forest","Bracknell Forest Council","00MA","Street Lighting (including Energy Costs)","Street Lighting","Lighting","Electricity",30/04/2013 00:00:00,"30218230",11.61,"BRITISH GAS TRADING"
"Bracknell Forest Council","http://opendatacommunities.org/id/unitary-authority/bracknell-forest","Bracknell Forest Council","00MA","Street Lighting (including Energy Costs)","Street Lighting","Christmas Lights and Decorations","Electricity",30/04/2013 00:00:00,"30218230",11.61,"BRITISH GAS TRADING"
"Bracknell Forest Council","http://opendatacommunities.org/id/unitary-authority/bracknell-forest","Bracknell Forest Council","00MA","Street Lighting (including Energy Costs)","Street Lighting","Christmas Lights and Decorations","Electricity",30/04/2013 00:00:00,"30218230",11.61,"BRITISH GAS TRADING"
"Bracknell Forest Council","http://opendatacommunities.org/id/unitary-authority/bracknell-forest","Bracknell Forest Council","00MA","Street Lighting (including Energy Costs)","Street Lighting","Christmas Lights and Decorations","Electricity",30/04/2013 00:00:00,"30218230",11.61,"BRITISH GAS TRADING"
"Bracknell Forest Council","http://opendatacommunities.org/id/unitary-authority/bracknell-forest","Bracknell Forest Council","00MA","Primary Schools","Delegated Primary School Budgets","Ascot Heath - Junior","Electricity",30/04/2013 00:00:00,"30218230",11.61,"BRITISH GAS TRADING"
"Bracknell Forest Council","http://opendatacommunities.org/id/unitary-authority/bracknell-forest","Bracknell Forest Council","00MA","Parking Services","Off Street Parking","Off Street Parking","Electricity",30/04/2013 00:00:00,"30218230",11.89,"BRITISH GAS TRADING"
"Bracknell Forest Council","http://opendatacommunities.org/id/unitary-authority/bracknell-forest","Bracknell Forest Council","00MA","Street Lighting (including Energy Costs)","Street Lighting","Christmas Lights and Decorations","Electricity",30/04/2013 00:00:00,"30218230",12.26,"BRITISH GAS TRADING"
"Bracknell Forest Council","http://opendatacommunities.org/id/unitary-authority/bracknell-forest","Bracknell Forest Council","00MA","Street Lighting (including Energy Costs)","Street Lighting","Christmas Lights and Decorations","Electricity",30/04/2013 00:00:00,"30218230",12.26,"BRITISH GAS TRADING"
"Bracknell Forest Council","http://opendatacommunities.org/id/unitary-authority/bracknell-forest","Bracknell Forest Council","00MA","Street Lighting (including Energy Costs)","Street Lighting","Christmas Lights and Decorations","Electricity",30/04/2013 00:00:00,"30218230",12.26,"BRITISH GAS TRADING"
"Bracknell Forest Council","http://opendatacommunities.org/id/unitary-authority/bracknell-forest","Bracknell Forest Council","00MA","Management and Support Services - CYPL","Holding Codes - net nil","Ranelagh Academy","Electricity",30/04/2013 00:00:00,"30218230",15.27,"BRITISH GAS TRADING"
"Bracknell Forest Council","http://opendatacommunities.org/id/unitary-authority/bracknell-forest","Bracknell Forest Council","00MA","Primary Schools","Delegated Primary School Budgets","St Michael's (Easthampstead) - Primary","Electricity",30/04/2013 00:00:00,"30218230",17.56,"BRITISH GAS TRADING"
"Bracknell Forest Council","http://opendatacommunities.org/id/unitary-authority/bracknell-forest","Bracknell Forest Council","00MA","Business Support","Premises Development","Longshot Lane  - Service Charges","Electricity",30/04/2013 00:00:00,"30218230",19.58,"BRITISH GAS TRADING"
"Bracknell Forest Council","http://opendatacommunities.org/id/unitary-authority/bracknell-forest","Bracknell Forest Council","00MA","Street Lighting (including Energy Costs)","Street Lighting","Lighting","Electricity",30/04/2013 00:00:00,"30218230",21.04,"BRITISH GAS TRADING"
"Bracknell Forest Council","http://opendatacommunities.org/id/unitary-authority/bracknell-forest","Bracknell Forest Council","00MA","Culture and Heritage","Heritage Museums & Galleries","The Look Out","Electricity",30/04/2013 00:00:00,"30218230",21.96,"BRITISH GAS TRADING"
"Bracknell Forest Council","http://opendatacommunities.org/id/unitary-authority/bracknell-forest","Bracknell Forest Council","00MA","Street Lighting (including Energy Costs)","Street Lighting","Lighting","Electricity",30/04/2013 00:00:00,"30218230",22.5,"BRITISH GAS TRADING"
"Bracknell Forest Council","http://opendatacommunities.org/id/unitary-authority/bracknell-forest","Bracknell Forest Council","00MA","Cemeteries, Crematoria & Mortuary Services","Cemeteries & Crematorium","Easthampstead Park Cemetery & Crematorium","Electricity",30/04/2013 00:00:00,"30218230",25.61,"BRITISH GAS TRADING"
"Bracknell Forest Council","http://opendatacommunities.org/id/unitary-authority/bracknell-forest","Bracknell Forest Council","00MA","Other Adult Services","Substance Abuse (Addictions)","PTB New Hope Running Costs","Electricity",30/04/2013 00:00:00,"30218230",25.74,"BRITISH GAS TRADING"
"Bracknell Forest Council","http://opendatacommunities.org/id/unitary-authority/bracknell-forest","Bracknell Forest Council","00MA","Business Support","Premises Development","Forest Park - Service Charges","Electricity",30/04/2013 00:00:00,"30218230",25.98,"BRITISH GAS TRADING"
"Bracknell Forest Council","http://opendatacommunities.org/id/unitary-authority/bracknell-forest","Bracknell Forest Council","00MA","Street Lighting (including Energy Costs)","Street Lighting","Lighting","Electricity",30/04/2013 00:00:00,"30218230",27.34,"BRITISH GAS TRADING"
"Bracknell Forest Council","http://opendatacommunities.org/id/unitary-authority/bracknell-forest","Bracknell Forest Council","00MA","Recreation, Sports and Leisure","Indoor Sports & Recreation Facilities","Recreation Staff Accommodation","Electricity",30/04/2013 00:00:00,"30218230",31.79,"BRITISH GAS TRADING"
"Bracknell Forest Council","http://opendatacommunities.org/id/unitary-authority/bracknell-forest","Bracknell Forest Council","00MA","Street Lighting (including Energy Costs)","Street Lighting","Christmas Lights and Decorations","Electricity",30/04/2013 00:00:00,"30218230",32.11,"BRITISH GAS TRADING"
"Bracknell Forest Council","http://opendatacommunities.org/id/unitary-authority/bracknell-forest","Bracknell Forest Council","00MA","Street Lighting (including Energy Costs)","Street Lighting","Lighting","Electricity",30/04/2013 00:00:00,"30218230",33.57,"BRITISH GAS TRADING"
"Bracknell Forest Council","http://opendatacommunities.org/id/unitary-authority/bracknell-forest","Bracknell Forest Council","00MA","Primary Schools","Delegated Primary School Budgets","Wildridings - Primary","Electricity",30/04/2013 00:00:00,"30218230",33.68,"BRITISH GAS TRADING"
"Bracknell Forest Council","http://opendatacommunities.org/id/unitary-authority/bracknell-forest","Bracknell Forest Council","00MA","Recreation, Sports and Leisure","Indoor Sports & Recreation Facilities","Leisure DSO - Leisure Centre","Electricity",30/04/2013 00:00:00,"30218230",40.07,"BRITISH GAS TRADING"
"Bracknell Forest Council","http://opendatacommunities.org/id/unitary-authority/bracknell-forest","Bracknell Forest Council","00MA","Business Support","Premises Development","Commercial Properties","Electricity",30/04/2013 00:00:00,"30218230",40.48,"BRITISH GAS TRADING"
"Bracknell Forest Council","http://opendatacommunities.org/id/unitary-authority/bracknell-forest","Bracknell Forest Council","00MA","Street Lighting (including Energy Costs)","Street Lighting","Christmas Lights and Decorations","Electricity",30/04/2013 00:00:00,"30218230",48.39,"BRITISH GAS TRADING"
"Bracknell Forest Council","http://opendatacommunities.org/id/unitary-authority/bracknell-forest","Bracknell Forest Council","00MA","Open Spaces","Community Parks & Open Spaces","Lily Hill Park Maintenance","Electricity",30/04/2013 00:00:00,"30218230",48.75,"BRITISH GAS TRADING"
"Bracknell Forest Council","http://opendatacommunities.org/id/unitary-authority/bracknell-forest","Bracknell Forest Council","00MA","Primary Schools","Delegated Primary School Budgets","Great Hollands Primary School","Electricity",30/04/2013 00:00:00,"30218230",51.84,"BRITISH GAS TRADING"
"Bracknell Forest Council","http://opendatacommunities.org/id/unitary-authority/bracknell-forest","Bracknell Forest Council","00MA","Management and Support Services - CYPL","Holding Codes - net nil","Ranelagh Academy","Electricity",30/04/2013 00:00:00,"30218230",57.32,"BRITISH GAS TRADING"
"Bracknell Forest Council","http://opendatacommunities.org/id/unitary-authority/bracknell-forest","Bracknell Forest Council","00MA","Recreation, Sports and Leisure","Indoor Sports & Recreation Facilities","Recreation Staff Accommodation","Electricity",30/04/2013 00:00:00,"30218230",57.37,"BRITISH GAS TRADING"
"Bracknell Forest Council","http://opendatacommunities.org/id/unitary-authority/bracknell-forest","Bracknell Forest Council","00MA","Libraries","Branch Libraries","Great Hollands Library","Electricity",30/04/2013 00:00:00,"30218230",61.56,"BRITISH GAS TRADING"
"Bracknell Forest Council","http://opendatacommunities.org/id/unitary-authority/bracknell-forest","Bracknell Forest Council","00MA","Central Support Services - COF","Construction and Property","Easthampstead & Seymour House","Electricity",30/04/2013 00:00:00,"30218230",63.29,"BRITISH GAS TRADING"
"Bracknell Forest Council","http://opendatacommunities.org/id/unitary-authority/bracknell-forest","Bracknell Forest Council","00MA","Family Support Services","Other family support services","Family Centre Running Costs","Electricity",30/04/2013 00:00:00,"30218230",63.35,"BRITISH GAS TRADING"
"Bracknell Forest Council","http://opendatacommunities.org/id/unitary-authority/bracknell-forest","Bracknell Forest Council","00MA","Libraries","Branch Libraries","Harmans Water Library","Electricity",30/04/2013 00:00:00,"30218230",66.41,"BRITISH GAS TRADING"
"Bracknell Forest Council","http://opendatacommunities.org/id/unitary-authority/bracknell-forest","Bracknell Forest Council","00MA","Primary Schools","Delegated Primary School Budgets","St Michael's (Easthampstead) - Primary","Electricity",30/04/2013 00:00:00,"30218230",70.24,"BRITISH GAS TRADING"
"Bracknell Forest Council","http://opendatacommunities.org/id/unitary-authority/bracknell-forest","Bracknell Forest Council","00MA","Open Spaces","Community Parks & Open Spaces","Town Centre Fountains","Electricity",30/04/2013 00:00:00,"30218230",73.18,"BRITISH GAS TRADING"
"Bracknell Forest Council","http://opendatacommunities.org/id/unitary-authority/bracknell-forest","Bracknell Forest Council","00MA","Open Spaces","Community Parks & Open Spaces","Town Centre Fountains","Electricity",30/04/2013 00:00:00,"30218230",73.18,"BRITISH GAS TRADING"
"Bracknell Forest Council","http://opendatacommunities.org/id/unitary-authority/bracknell-forest","Bracknell Forest Council","00MA","Recreation, Sports and Leisure","Indoor Sports & Recreation Facilities","Recreation Staff Accommodation","Electricity",30/04/2013 00:00:00,"30218230",73.98,"BRITISH GAS TRADING"
"Bracknell Forest Council","http://opendatacommunities.org/id/unitary-authority/bracknell-forest","Bracknell Forest Council","00MA","Primary Schools","Delegated Primary School Budgets","Wooden Hill - Primary","Electricity",30/04/2013 00:00:00,"30218230",73.99,"BRITISH GAS TRADING"
"Bracknell Forest Council","http://opendatacommunities.org/id/unitary-authority/bracknell-forest","Bracknell Forest Council","00MA","Primary Schools","Delegated Primary School Budgets","Wooden Hill - Primary","Electricity",30/04/2013 00:00:00,"30218230",73.99,"BRITISH GAS TRADING"
"Bracknell Forest Council","http://opendatacommunities.org/id/unitary-authority/bracknell-forest","Bracknell Forest Council","00MA","Libraries","Branch Libraries","Birch Hill Library","Electricity",30/04/2013 00:00:00,"30218230",75.24,"BRITISH GAS TRADING"
"Bracknell Forest Council","http://opendatacommunities.org/id/unitary-authority/bracknell-forest","Bracknell Forest Council","00MA","Business Support","Premises Development","Longshot Lane  - Service Charges","Electricity",30/04/2013 00:00:00,"30218230",78.25,"BRITISH GAS TRADING"
"Bracknell Forest Council","http://opendatacommunities.org/id/unitary-authority/bracknell-forest","Bracknell Forest Council","00MA","Libraries","Branch Libraries","Crowthorne Library","Electricity",30/04/2013 00:00:00,"30218230",79.65,"BRITISH GAS TRADING"
"Bracknell Forest Council","http://opendatacommunities.org/id/unitary-authority/bracknell-forest","Bracknell Forest Council","00MA","Primary Schools","Delegated Primary School Budgets","Harmans Water - Primary","Electricity",30/04/2013 00:00:00,"30218230",82.03,"BRITISH GAS TRADING"
"Bracknell Forest Council","http://opendatacommunities.org/id/unitary-authority/bracknell-forest","Bracknell Forest Council","00MA","Services to Young People","Other Services to Young People","Great Hollands Youth Centre","Electricity",30/04/2013 00:00:00,"30218230",87.91,"BRITISH GAS TRADING"
"Bracknell Forest Council","http://opendatacommunities.org/id/unitary-authority/bracknell-forest","Bracknell Forest Council","00MA","Business Support","Premises Development","Longshot Lane  - Service Charges","Electricity",30/04/2013 00:00:00,"30218230",97.13,"BRITISH GAS TRADING"
"Bracknell Forest Council","http://opendatacommunities.org/id/unitary-authority/bracknell-forest","Bracknell Forest Council","00MA","Regulatory Services","Public Conveniences","Public Conveniences","Electricity",30/04/2013 00:00:00,"30218230",98.78,"BRITISH GAS TRADING"
"Bracknell Forest Council","http://opendatacommunities.org/id/unitary-authority/bracknell-forest","Bracknell Forest Council","00MA","Services to Young People","Other Services to Young People","The Wayz","Electricity",30/04/2013 00:00:00,"30218230",101.43,"BRITISH GAS TRADING"
"Bracknell Forest Council","http://opendatacommunities.org/id/unitary-authority/bracknell-forest","Bracknell Forest Council","00MA","Business Support","Premises Development","Town Centre Shops (Under Seymour Hse)","Electricity",30/04/2013 00:00:00,"30218230",102.87,"BRITISH GAS TRADING"
"Bracknell Forest Council","http://opendatacommunities.org/id/unitary-authority/bracknell-forest","Bracknell Forest Council","00MA","Libraries","Branch Libraries","Binfield Library","Electricity",30/04/2013 00:00:00,"30218230",105.73,"BRITISH GAS TRADING"
"Bracknell Forest Council","http://opendatacommunities.org/id/unitary-authority/bracknell-forest","Bracknell Forest Council","00MA","Open Spaces","Community Parks & Open Spaces","Town Centre Fountains","Electricity",30/04/2013 00:00:00,"30218230",106.72,"BRITISH GAS TRADING"
"Bracknell Forest Council","http://opendatacommunities.org/id/unitary-authority/bracknell-forest","Bracknell Forest Council","00MA","Open Spaces","Community Parks & Open Spaces","Town Centre Fountains","Electricity",30/04/2013 00:00:00,"30218230",106.72,"BRITISH GAS TRADING"
"Bracknell Forest Council","http://opendatacommunities.org/id/unitary-authority/bracknell-forest","Bracknell Forest Council","00MA","Regulatory Services","Public Conveniences","Public Conveniences","Electricity",30/04/2013 00:00:00,"30218230",108.02,"BRITISH GAS TRADING"
"Bracknell Forest Council","http://opendatacommunities.org/id/unitary-authority/bracknell-forest","Bracknell Forest Council","00MA","Libraries","Branch Libraries","Ascot Library","Electricity",30/04/2013 00:00:00,"30218230",108.67,"BRITISH GAS TRADING"
"Bracknell Forest Council","http://opendatacommunities.org/id/unitary-authority/bracknell-forest","Bracknell Forest Council","00MA","Business Support","Premises Development","Town Centre Shops (Under Seymour Hse)","Electricity",30/04/2013 00:00:00,"30218230",112.43,"BRITISH GAS TRADING"
"Bracknell Forest Council","http://opendatacommunities.org/id/unitary-authority/bracknell-forest","Bracknell Forest Council","00MA","Primary Schools","Delegated Primary School Budgets","Cranbourne - Primary","Electricity",30/04/2013 00:00:00,"30218230",118.21,"BRITISH GAS TRADING"
"Bracknell Forest Council","http://opendatacommunities.org/id/unitary-authority/bracknell-forest","Bracknell Forest Council","00MA","Learning Disability (under 65)","Day Care","Learning Disabilities Employment Service","Electricity",30/04/2013 00:00:00,"30218230",130.54,"BRITISH GAS TRADING"
"Bracknell Forest Council","http://opendatacommunities.org/id/unitary-authority/bracknell-forest","Bracknell Forest Council","00MA","Business Support","Premises Development","Longshot Lane  - Service Charges","Electricity",30/04/2013 00:00:00,"30218230",140.37,"BRITISH GAS TRADING"
"Bracknell Forest Council","http://opendatacommunities.org/id/unitary-authority/bracknell-forest","Bracknell Forest Council","00MA","Parking Services","Off Street Parking","Off Street Parking","Electricity",30/04/2013 00:00:00,"30218230",154.1,"BRITISH GAS TRADING"
"Bracknell Forest Council","http://opendatacommunities.org/id/unitary-authority/bracknell-forest","Bracknell Forest Council","00MA","Family Support Services","Other family support services","Family Centre Running Costs","Electricity",30/04/2013 00:00:00,"30218230",155.84,"BRITISH GAS TRADING"
"Bracknell Forest Council","http://opendatacommunities.org/id/unitary-authority/bracknell-forest","Bracknell Forest Council","00MA","Secondary Schools","Delegated Secondary Schools Budgets","Edgbarrow - Secondary","Electricity",30/04/2013 00:00:00,"30218230",169.76,"BRITISH GAS TRADING"
"Bracknell Forest Council","http://opendatacommunities.org/id/unitary-authority/bracknell-forest","Bracknell Forest Council","00MA","Secondary Schools","Delegated Secondary Schools Budgets","Brakenhale - Secondary","Electricity",30/04/2013 00:00:00,"30218230",176.85,"BRITISH GAS TRADING"
"Bracknell Forest Council","http://opendatacommunities.org/id/unitary-authority/bracknell-forest","Bracknell Forest Council","00MA","Libraries","Branch Libraries","Sandhurst Library","Electricity",30/04/2013 00:00:00,"30218230",177,"BRITISH GAS TRADING"
"Bracknell Forest Council","http://opendatacommunities.org/id/unitary-authority/bracknell-forest","Bracknell Forest Council","00MA","Services to Young People","Other Services to Young People","Great Hollands Youth Centre","Electricity",30/04/2013 00:00:00,"30218230",178.51,"BRITISH GAS TRADING"
"Bracknell Forest Council","http://opendatacommunities.org/id/unitary-authority/bracknell-forest","Bracknell Forest Council","00MA","Regulatory Services","Public Conveniences","Public Conveniences","Electricity",30/04/2013 00:00:00,"30218230",185.78,"BRITISH GAS TRADING"
"Bracknell Forest Council","http://opendatacommunities.org/id/unitary-authority/bracknell-forest","Bracknell Forest Council","00MA","Regulatory Services","Public Conveniences","Public Conveniences","Electricity",30/04/2013 00:00:00,"30218230",187.94,"BRITISH GAS TRADING"
"Bracknell Forest Council","http://opendatacommunities.org/id/unitary-authority/bracknell-forest","Bracknell Forest Council","00MA","Libraries","Branch Libraries","Great Hollands Library","Electricity",30/04/2013 00:00:00,"30218230",188.31,"BRITISH GAS TRADING"
"Bracknell Forest Council","http://opendatacommunities.org/id/unitary-authority/bracknell-forest","Bracknell Forest Council","00MA","Secondary Schools","Delegated Secondary Schools Budgets","Edgbarrow - Secondary","Electricity",30/04/2013 00:00:00,"30218230",188.39,"BRITISH GAS TRADING"
"Bracknell Forest Council","http://opendatacommunities.org/id/unitary-authority/bracknell-forest","Bracknell Forest Council","00MA","Secondary Schools","Delegated Secondary Schools Budgets","Edgbarrow - Secondary","Electricity",30/04/2013 00:00:00,"30218230",195.44,"BRITISH GAS TRADING"
"Bracknell Forest Council","http://opendatacommunities.org/id/unitary-authority/bracknell-forest","Bracknell Forest Council","00MA","Services to Young People","Other Services to Young People","Priestwood Youth Centre","Electricity",30/04/2013 00:00:00,"30218230",209.44,"BRITISH GAS TRADING"
"Bracknell Forest Council","http://opendatacommunities.org/id/unitary-authority/bracknell-forest","Bracknell Forest Council","00MA","Business Support","Premises Development","Longshot Lane  - Service Charges","Electricity",30/04/2013 00:00:00,"30218230",210.5,"BRITISH GAS TRADING"
"Bracknell Forest Council","http://opendatacommunities.org/id/unitary-authority/bracknell-forest","Bracknell Forest Council","00MA","Open Spaces","Community Parks & Open Spaces","Urban Parks  - Maintenance","Electricity",30/04/2013 00:00:00,"30218230",212.53,"BRITISH GAS TRADING"
"Bracknell Forest Council","http://opendatacommunities.org/id/unitary-authority/bracknell-forest","Bracknell Forest Council","00MA","Secondary Schools","Delegated Secondary Schools Budgets","Brakenhale - Secondary","Electricity",30/04/2013 00:00:00,"30218230",224.95,"BRITISH GAS TRADING"
"Bracknell Forest Council","http://opendatacommunities.org/id/unitary-authority/bracknell-forest","Bracknell Forest Council","00MA","Open Spaces","Community Parks & Open Spaces","Town Centre Fountains","Electricity",30/04/2013 00:00:00,"30218230",226.97,"BRITISH GAS TRADING"
"Bracknell Forest Council","http://opendatacommunities.org/id/unitary-authority/bracknell-forest","Bracknell Forest Council","00MA","Open Spaces","Community Parks & Open Spaces","Town Centre Fountains","Electricity",30/04/2013 00:00:00,"30218230",226.97,"BRITISH GAS TRADING"
"Bracknell Forest Council","http://opendatacommunities.org/id/unitary-authority/bracknell-forest","Bracknell Forest Council","00MA","Secondary Schools","Delegated Secondary Schools Budgets","Sandhurst - Secondary","Electricity",30/04/2013 00:00:00,"30218230",229.14,"BRITISH GAS TRADING"
"Bracknell Forest Council","http://opendatacommunities.org/id/unitary-authority/bracknell-forest","Bracknell Forest Council","00MA","Open Spaces","Community Parks & Open Spaces","Urban Parks  - Maintenance","Electricity",30/04/2013 00:00:00,"30218230",232.81,"BRITISH GAS TRADING"
"Bracknell Forest Council","http://opendatacommunities.org/id/unitary-authority/bracknell-forest","Bracknell Forest Council","00MA","Primary Schools","Delegated Primary School Budgets","College Town - Infant & Nursery","Electricity",30/04/2013 00:00:00,"30218230",235.44,"BRITISH GAS TRADING"
"Bracknell Forest Council","http://opendatacommunities.org/id/unitary-authority/bracknell-forest","Bracknell Forest Council","00MA","Services to Young People","Other Services to Young People","Portman Close Running Costs","Electricity",30/04/2013 00:00:00,"30218230",240.84,"BRITISH GAS TRADING"
"Bracknell Forest Council","http://opendatacommunities.org/id/unitary-authority/bracknell-forest","Bracknell Forest Council","00MA","Services to Young People","Other Services to Young People","Whitegrove Youth Centre","Electricity",30/04/2013 00:00:00,"30218230",258.34,"BRITISH GAS TRADING"
"Bracknell Forest Council","http://opendatacommunities.org/id/unitary-authority/bracknell-forest","Bracknell Forest Council","00MA","Children Looked After","Other children looked after services","Larchwood Running Costs","Electricity",30/04/2013 00:00:00,"30218230",323.27,"BRITISH GAS TRADING"
"Bracknell Forest Council","http://opendatacommunities.org/id/unitary-authority/bracknell-forest","Bracknell Forest Council","00MA","Learning Disability (under 65)","Day Care","Bracknell Day Services","Electricity",30/04/2013 00:00:00,"30218230",340.42,"BRITISH GAS TRADING"
"Bracknell Forest Council","http://opendatacommunities.org/id/unitary-authority/bracknell-forest","Bracknell Forest Council","00MA","Winter Service","Winter Maintenance","Preliminaries - Other Roads","Electricity",30/04/2013 00:00:00,"30218230",348.95,"BRITISH GAS TRADING"
"Bracknell Forest Council","http://opendatacommunities.org/id/unitary-authority/bracknell-forest","Bracknell Forest Council","00MA","Services to Young People","Other Services to Young People","Coopers Hill Youth Centre","Electricity",30/04/2013 00:00:00,"30218230",369.47,"BRITISH GAS TRADING"
"Bracknell Forest Council","http://opendatacommunities.org/id/unitary-authority/bracknell-forest","Bracknell Forest Council","00MA","Primary Schools","Delegated Primary School Budgets","Fox Hill - Primary","Electricity",30/04/2013 00:00:00,"30218230",408.31,"BRITISH GAS TRADING"
"Bracknell Forest Council","http://opendatacommunities.org/id/unitary-authority/bracknell-forest","Bracknell Forest Council","00MA","Other Adult Services","Substance Abuse (Addictions)","PTB New Hope Running Costs","Electricity",30/04/2013 00:00:00,"30218230",416.39,"BRITISH GAS TRADING"
"Bracknell Forest Council","http://opendatacommunities.org/id/unitary-authority/bracknell-forest","Bracknell Forest Council","00MA","Primary Schools","Delegated Primary School Budgets","St Michael's (Sandhurst) - Primary","Electricity",30/04/2013 00:00:00,"30218230",456.7,"BRITISH GAS TRADING"
"Bracknell Forest Council","http://opendatacommunities.org/id/unitary-authority/bracknell-forest","Bracknell Forest Council","00MA","Primary Schools","Centrally Managed Expenditure - Primary","Primary Resource Centre","Electricity",30/04/2013 00:00:00,"30218230",459.21,"BRITISH GAS TRADING"
"Bracknell Forest Council","http://opendatacommunities.org/id/unitary-authority/bracknell-forest","Bracknell Forest Council","00MA","Primary Schools","Delegated Primary School Budgets","College Town - Infant & Nursery","Electricity",30/04/2013 00:00:00,"30218230",459.46,"BRITISH GAS TRADING"
"Bracknell Forest Council","http://opendatacommunities.org/id/unitary-authority/bracknell-forest","Bracknell Forest Council","00MA","Primary Schools","Delegated Primary School Budgets","Wildridings - Primary","Electricity",30/04/2013 00:00:00,"30218230",461.83,"BRITISH GAS TRADING"
"Bracknell Forest Council","http://opendatacommunities.org/id/unitary-authority/bracknell-forest","Bracknell Forest Council","00MA","Primary Schools","Delegated Primary School Budgets","Winkfield St Mary's - Primary","Electricity",30/04/2013 00:00:00,"30218230",463.45,"BRITISH GAS TRADING"
"Bracknell Forest Council","http://opendatacommunities.org/id/unitary-authority/bracknell-forest","Bracknell Forest Council","00MA","Parking Services","Off Street Parking","Off Street Parking","Electricity",30/04/2013 00:00:00,"30218230",464.41,"BRITISH GAS TRADING"
"Bracknell Forest Council","http://opendatacommunities.org/id/unitary-authority/bracknell-forest","Bracknell Forest Council","00MA","Secondary Schools","Centrally Managed Expenditure - Secondary","College Hall PRU","Electricity",30/04/2013 00:00:00,"30218230",468.07,"BRITISH GAS TRADING"
"Bracknell Forest Council","http://opendatacommunities.org/id/unitary-authority/bracknell-forest","Bracknell Forest Council","00MA","Learning Disability (under 65)","Residential Care Home Placements","Waymead - Short Stay","Electricity",30/04/2013 00:00:00,"30218230",474.35,"BRITISH GAS TRADING"
"Bracknell Forest Council","http://opendatacommunities.org/id/unitary-authority/bracknell-forest","Bracknell Forest Council","00MA","Public Transport","Co-Ordination","Bus/Rail Interchange","Electricity",30/04/2013 00:00:00,"30218230",487.39,"BRITISH GAS TRADING"
"Bracknell Forest Council","http://opendatacommunities.org/id/unitary-authority/bracknell-forest","Bracknell Forest Council","00MA","Primary Schools","Delegated Primary School Budgets","Fox Hill - Primary","Electricity",30/04/2013 00:00:00,"30218230",491.88,"BRITISH GAS TRADING"
"Bracknell Forest Council","http://opendatacommunities.org/id/unitary-authority/bracknell-forest","Bracknell Forest Council","00MA","Central Support Services - COF","Construction and Property","Easthampstead & Seymour House","Electricity",30/04/2013 00:00:00,"30218230",503.19,"BRITISH GAS TRADING"
"Bracknell Forest Council","http://opendatacommunities.org/id/unitary-authority/bracknell-forest","Bracknell Forest Council","00MA","Primary Schools","Delegated Primary School Budgets","St Michael's (Easthampstead) - Primary","Electricity",30/04/2013 00:00:00,"30218230",503.52,"BRITISH GAS TRADING"
"Bracknell Forest Council","http://opendatacommunities.org/id/unitary-authority/bracknell-forest","Bracknell Forest Council","00MA","Other Trading Surpluses & Deficits","Bracknell Market","Bracknell Market","Electricity",30/04/2013 00:00:00,"30218230",523.25,"BRITISH GAS TRADING"
"Bracknell Forest Council","http://opendatacommunities.org/id/unitary-authority/bracknell-forest","Bracknell Forest Council","00MA","Primary Schools","Delegated Primary School Budgets","Crowthorne - Primary","Electricity",30/04/2013 00:00:00,"30218230",527.26,"BRITISH GAS TRADING"
"Bracknell Forest Council","http://opendatacommunities.org/id/unitary-authority/bracknell-forest","Bracknell Forest Council","00MA","Primary Schools","Delegated Primary School Budgets","Wildmoor Heath School","Electricity",30/04/2013 00:00:00,"30218230",531.89,"BRITISH GAS TRADING"
"Bracknell Forest Council","http://opendatacommunities.org/id/unitary-authority/bracknell-forest","Bracknell Forest Council","00MA","Central Support Services - COF","Construction and Property","Easthampstead & Seymour House","Electricity",30/04/2013 00:00:00,"30218230",537.97,"BRITISH GAS TRADING"
"Bracknell Forest Council","http://opendatacommunities.org/id/unitary-authority/bracknell-forest","Bracknell Forest Council","00MA","Central Support Services - COF","Construction and Property","Easthampstead & Seymour House","Electricity",30/04/2013 00:00:00,"30218230",542.9,"BRITISH GAS TRADING"
"Bracknell Forest Council","http://opendatacommunities.org/id/unitary-authority/bracknell-forest","Bracknell Forest Council","00MA","Primary Schools","Delegated Primary School Budgets","Wildridings - Primary","Electricity",30/04/2013 00:00:00,"30218230",544.41,"BRITISH GAS TRADING"
"Bracknell Forest Council","http://opendatacommunities.org/id/unitary-authority/bracknell-forest","Bracknell Forest Council","00MA","Primary Schools","Delegated Primary School Budgets","Great Hollands Primary School","Electricity",30/04/2013 00:00:00,"30218230",544.79,"BRITISH GAS TRADING"
"Bracknell Forest Council","http://opendatacommunities.org/id/unitary-authority/bracknell-forest","Bracknell Forest Council","00MA","Primary Schools","Delegated Primary School Budgets","St Margaret Clitherow - Catholic Primary","Electricity",30/04/2013 00:00:00,"30218230",545.5,"BRITISH GAS TRADING"
"Bracknell Forest Council","http://opendatacommunities.org/id/unitary-authority/bracknell-forest","Bracknell Forest Council","00MA","Recreation, Sports and Leisure","Golf Courses","Leisure DSO - Downshire Golf Course","Electricity",30/04/2013 00:00:00,"30218230",546.14,"BRITISH GAS TRADING"
"Bracknell Forest Council","http://opendatacommunities.org/id/unitary-authority/bracknell-forest","Bracknell Forest Council","00MA","Business Support","Premises Development","Liscombe - Service Charges","Electricity",30/04/2013 00:00:00,"30218230",548.44,"BRITISH GAS TRADING"
"Bracknell Forest Council","http://opendatacommunities.org/id/unitary-authority/bracknell-forest","Bracknell Forest Council","00MA","Primary Schools","Delegated Primary School Budgets","Cranbourne - Primary","Electricity",30/04/2013 00:00:00,"30218230",555.54,"BRITISH GAS TRADING"
"Bracknell Forest Council","http://opendatacommunities.org/id/unitary-authority/bracknell-forest","Bracknell Forest Council","00MA","Secondary Schools","Delegated Secondary Schools Budgets","Sandhurst - Secondary","Electricity",30/04/2013 00:00:00,"30218230",560.5,"BRITISH GAS TRADING"
"Bracknell Forest Council","http://opendatacommunities.org/id/unitary-authority/bracknell-forest","Bracknell Forest Council","00MA","Primary Schools","Delegated Primary School Budgets","Great Hollands Primary School","Electricity",30/04/2013 00:00:00,"30218230",603.97,"BRITISH GAS TRADING"
"Bracknell Forest Council","http://opendatacommunities.org/id/unitary-authority/bracknell-forest","Bracknell Forest Council","00MA","Primary Schools","Delegated Primary School Budgets","St Joseph's - Catholic Primary","Electricity",30/04/2013 00:00:00,"30218230",610.24,"BRITISH GAS TRADING"
"Bracknell Forest Council","http://opendatacommunities.org/id/unitary-authority/bracknell-forest","Bracknell Forest Council","00MA","Management and Support Services - CYPL","Holding Codes - net nil","Ranelagh Academy","Electricity",30/04/2013 00:00:00,"30218230",624.87,"BRITISH GAS TRADING"
"Bracknell Forest Council","http://opendatacommunities.org/id/unitary-authority/bracknell-forest","Bracknell Forest Council","00MA","Secondary Schools","Delegated Secondary Schools Budgets","Brakenhale - Secondary","Electricity",30/04/2013 00:00:00,"30218230",658.78,"BRITISH GAS TRADING"
"Bracknell Forest Council","http://opendatacommunities.org/id/unitary-authority/bracknell-forest","Bracknell Forest Council","00MA","Libraries","Branch Libraries","Bracknell Library","Electricity",30/04/2013 00:00:00,"30218230",708.34,"BRITISH GAS TRADING"
"Bracknell Forest Council","http://opendatacommunities.org/id/unitary-authority/bracknell-forest","Bracknell Forest Council","00MA","Primary Schools","Delegated Primary School Budgets","The Pines School","Electricity",30/04/2013 00:00:00,"30218230",710.46,"BRITISH GAS TRADING"
"Bracknell Forest Council","http://opendatacommunities.org/id/unitary-authority/bracknell-forest","Bracknell Forest Council","00MA","Primary Schools","Delegated Primary School Budgets","New Scotland Hill - Primary","Electricity",30/04/2013 00:00:00,"30218230",730.13,"BRITISH GAS TRADING"
"Bracknell Forest Council","http://opendatacommunities.org/id/unitary-authority/bracknell-forest","Bracknell Forest Council","00MA","Older People (Aged 65 or Over)","Residential Care Home Placements","Bridgewell Unit","Electricity",30/04/2013 00:00:00,"30218230",740.11,"BRITISH GAS TRADING"
"Bracknell Forest Council","http://opendatacommunities.org/id/unitary-authority/bracknell-forest","Bracknell Forest Council","00MA","Primary Schools","Delegated Primary School Budgets","Jennets Park Primary School","Electricity",30/04/2013 00:00:00,"30218230",768.21,"BRITISH GAS TRADING"
"Bracknell Forest Council","http://opendatacommunities.org/id/unitary-authority/bracknell-forest","Bracknell Forest Council","00MA","Primary Schools","Delegated Primary School Budgets","Warfield CE - Primary","Electricity",30/04/2013 00:00:00,"30218230",776.66,"BRITISH GAS TRADING"
"Bracknell Forest Council","http://opendatacommunities.org/id/unitary-authority/bracknell-forest","Bracknell Forest Council","00MA","Libraries","Branch Libraries","Bracknell Library","Electricity",30/04/2013 00:00:00,"30218230",797.64,"BRITISH GAS TRADING"
"Bracknell Forest Council","http://opendatacommunities.org/id/unitary-authority/bracknell-forest","Bracknell Forest Council","00MA","Services to Young People","Adult and Community Learning","Open Learning Centre - Brakenhale","Electricity",30/04/2013 00:00:00,"30218230",835.94,"BRITISH GAS TRADING"
"Bracknell Forest Council","http://opendatacommunities.org/id/unitary-authority/bracknell-forest","Bracknell Forest Council","00MA","Special Schools","Delegated Special School Budgets","Kennel Lane","Electricity",30/04/2013 00:00:00,"30218230",838.85,"BRITISH GAS TRADING"
"Bracknell Forest Council","http://opendatacommunities.org/id/unitary-authority/bracknell-forest","Bracknell Forest Council","00MA","Primary Schools","Delegated Primary School Budgets","Wooden Hill - Primary","Electricity",30/04/2013 00:00:00,"30218230",884.73,"BRITISH GAS TRADING"
"Bracknell Forest Council","http://opendatacommunities.org/id/unitary-authority/bracknell-forest","Bracknell Forest Council","00MA","Primary Schools","Delegated Primary School Budgets","Ascot Heath - Junior","Electricity",30/04/2013 00:00:00,"30218230",893.52,"BRITISH GAS TRADING"
"Bracknell Forest Council","http://opendatacommunities.org/id/unitary-authority/bracknell-forest","Bracknell Forest Council","00MA","Primary Schools","Delegated Primary School Budgets","Whitegrove - Primary","Electricity",30/04/2013 00:00:00,"30218230",900.78,"BRITISH GAS TRADING"
"Bracknell Forest Council","http://opendatacommunities.org/id/unitary-authority/bracknell-forest","Bracknell Forest Council","00MA","Primary Schools","Delegated Primary School Budgets","Owlsmoor - Primary","Electricity",30/04/2013 00:00:00,"30218230",908.24,"BRITISH GAS TRADING"
"Bracknell Forest Council","http://opendatacommunities.org/id/unitary-authority/bracknell-forest","Bracknell Forest Council","00MA","Central Support Services - COF","Construction and Property","Depot Facilities","Electricity",30/04/2013 00:00:00,"30218230",917.48,"BRITISH GAS TRADING"
"Bracknell Forest Council","http://opendatacommunities.org/id/unitary-authority/bracknell-forest","Bracknell Forest Council","00MA","Primary Schools","Delegated Primary School Budgets","Crown Wood - Primary","Electricity",30/04/2013 00:00:00,"30218230",945.15,"BRITISH GAS TRADING"
"Bracknell Forest Council","http://opendatacommunities.org/id/unitary-authority/bracknell-forest","Bracknell Forest Council","00MA","Primary Schools","Delegated Primary School Budgets","College Town - Junior","Electricity",30/04/2013 00:00:00,"30218230",958.76,"BRITISH GAS TRADING"
"Bracknell Forest Council","http://opendatacommunities.org/id/unitary-authority/bracknell-forest","Bracknell Forest Council","00MA","Older People (Aged 65 or Over)","Residential Care Home Placements","Heathlands EPH","Electricity",30/04/2013 00:00:00,"30218230",989.69,"BRITISH GAS TRADING"
"Bracknell Forest Council","http://opendatacommunities.org/id/unitary-authority/bracknell-forest","Bracknell Forest Council","00MA","Libraries","Branch Libraries","Great Hollands Library","Electricity",30/04/2013 00:00:00,"30218230",1012.78,"BRITISH GAS TRADING"
"Bracknell Forest Council","http://opendatacommunities.org/id/unitary-authority/bracknell-forest","Bracknell Forest Council","00MA","Management and Support Services - CYPL","Holding Codes - net nil","Ranelagh Academy","Electricity",30/04/2013 00:00:00,"30218230",1024.49,"BRITISH GAS TRADING"
"Bracknell Forest Council","http://opendatacommunities.org/id/unitary-authority/bracknell-forest","Bracknell Forest Council","00MA","Central Support Services - COF","Construction and Property","Depot Facilities","Electricity",30/04/2013 00:00:00,"30218230",1087.91,"BRITISH GAS TRADING"
"Bracknell Forest Council","http://opendatacommunities.org/id/unitary-authority/bracknell-forest","Bracknell Forest Council","00MA","Primary Schools","Delegated Primary School Budgets","Birch Hill - Primary","Electricity",30/04/2013 00:00:00,"30218230",1179.42,"BRITISH GAS TRADING"
"Bracknell Forest Council","http://opendatacommunities.org/id/unitary-authority/bracknell-forest","Bracknell Forest Council","00MA","Secondary Schools","Delegated Secondary Schools Budgets","Edgbarrow - Secondary","Electricity",30/04/2013 00:00:00,"30218230",1183.22,"BRITISH GAS TRADING"
"Bracknell Forest Council","http://opendatacommunities.org/id/unitary-authority/bracknell-forest","Bracknell Forest Council","00MA","Primary Schools","Delegated Primary School Budgets","Meadow Vale - Primary","Electricity",30/04/2013 00:00:00,"30218230",1269.86,"BRITISH GAS TRADING"
"Bracknell Forest Council","http://opendatacommunities.org/id/unitary-authority/bracknell-forest","Bracknell Forest Council","00MA","Primary Schools","Delegated Primary School Budgets","Sandy Lane Primary School","Electricity",30/04/2013 00:00:00,"30218230",1275.16,"BRITISH GAS TRADING"
"Bracknell Forest Council","http://opendatacommunities.org/id/unitary-authority/bracknell-forest","Bracknell Forest Council","00MA","Primary Schools","Delegated Primary School Budgets","Harmans Water - Primary","Electricity",30/04/2013 00:00:00,"30218230",1469.66,"BRITISH GAS TRADING"
"Bracknell Forest Council","http://opendatacommunities.org/id/unitary-authority/bracknell-forest","Bracknell Forest Council","00MA","Primary Schools","Delegated Primary School Budgets","Binfield CE - Primary","Electricity",30/04/2013 00:00:00,"30218230",1607.38,"BRITISH GAS TRADING"
"Bracknell Forest Council","http://opendatacommunities.org/id/unitary-authority/bracknell-forest","Bracknell Forest Council","00MA","Culture and Heritage","Heritage Museums & Galleries","The Look Out","Electricity",30/04/2013 00:00:00,"30218230",1752.32,"BRITISH GAS TRADING"
"Bracknell Forest Council","http://opendatacommunities.org/id/unitary-authority/bracknell-forest","Bracknell Forest Council","00MA","Special Schools","Delegated Special School Budgets","Kennel Lane","Electricity",30/04/2013 00:00:00,"30218230",1790.32,"BRITISH GAS TRADING"
"Bracknell Forest Council","http://opendatacommunities.org/id/unitary-authority/bracknell-forest","Bracknell Forest Council","00MA","Recreation, Sports and Leisure","Golf Courses","Golf Course Management & Administration","Electricity",30/04/2013 00:00:00,"30218230",2095.67,"BRITISH GAS TRADING"
"Bracknell Forest Council","http://opendatacommunities.org/id/unitary-authority/bracknell-forest","Bracknell Forest Council","00MA","Parking Services","Off Street Parking","Off Street Parking","Electricity",30/04/2013 00:00:00,"30218230",2509.55,"BRITISH GAS TRADING"
"Bracknell Forest Council","http://opendatacommunities.org/id/unitary-authority/bracknell-forest","Bracknell Forest Council","00MA","Parking Services","Off Street Parking","Off Street Parking","Electricity",30/04/2013 00:00:00,"30218230",2759.2,"BRITISH GAS TRADING"
"Bracknell Forest Council","http://opendatacommunities.org/id/unitary-authority/bracknell-forest","Bracknell Forest Council","00MA","Central Support Services - COF","Information Technology","Telephone Holding Account","Telephones - Rental & Call Charges",09/04/2013 00:00:00,"6515584",940.66,"BRITISH TELECOM"
"Bracknell Forest Council","http://opendatacommunities.org/id/unitary-authority/bracknell-forest","Bracknell Forest Council","00MA","","","Twin Bridges","Construction - Other Direct Expenses",03/05/2013 00:00:00,"6517270",1411.12,"BRITISH TELECOMMUNICATIONS PLC"
"Bracknell Forest Council","http://opendatacommunities.org/id/unitary-authority/bracknell-forest","Bracknell Forest Council","00MA","","","Holly Spring Infant and Junior","Furniture & Fittings",10/04/2013 00:00:00,"6515398",3201.47,"BRITISH THORNTON ESF LTD"
"Bracknell Forest Council","http://opendatacommunities.org/id/unitary-authority/bracknell-forest","Bracknell Forest Council","00MA","Recreation, Sports and Leisure","Indoor Sports & Recreation Facilities","Coral Reef - Catering & Bar","Cost of Goods Sold",15/04/2013 00:00:00,"6515935",747.74,"BRITVIC SOFT DRINKS LTD"
"Bracknell Forest Council","http://opendatacommunities.org/id/unitary-authority/bracknell-forest","Bracknell Forest Council","00MA","Recreation, Sports and Leisure","Indoor Sports & Recreation Facilities","BS&LC & Coral Reef","Consultants Fees",01/04/2013 00:00:00,"6515048",728,"BSI MEMBERSHIP"
"Bracknell Forest Council","http://opendatacommunities.org/id/unitary-authority/bracknell-forest","Bracknell Forest Council","00MA","Early Years","Centrally managed Expenditure - Early Years","Early Years and Childcare","Grants and Donations",10/04/2013 00:00:00,"30216174",5118.25,"BUILDING BLOCKS PRE-SCHOOL"
"Bracknell Forest Council","http://opendatacommunities.org/id/unitary-authority/bracknell-forest","Bracknell Forest Council","00MA","","","Balance Sheet","Flexible Benefits Control Account",09/04/2013 00:00:00,"6515754",53697.25,"BUPA"
"Bracknell Forest Council","http://opendatacommunities.org/id/unitary-authority/bracknell-forest","Bracknell Forest Council","00MA","","","Balance Sheet","Flexible Benefits Control Account",12/04/2013 00:00:00,"6516032",1464.1,"BUPA"
"Bracknell Forest Council","http://opendatacommunities.org/id/unitary-authority/bracknell-forest","Bracknell Forest Council","00MA","Recreation, Sports and Leisure","Indoor Sports & Recreation Facilities","Leisure DSO - Coral Reef","Materials",11/04/2013 00:00:00,"6515522",620,"BUSINESS COMMUNICATIONS"
"Bracknell Forest Council","http://opendatacommunities.org/id/unitary-authority/bracknell-forest","Bracknell Forest Council","00MA","Early Years","Centrally managed Expenditure - Early Years","Early Years and Childcare","Grants and Donations",10/04/2013 00:00:00,"30216174",9814.9,"BUSY BEES MONTESSORI SCHOOL"
"Bracknell Forest Council","http://opendatacommunities.org/id/unitary-authority/bracknell-forest","Bracknell Forest Council","00MA","","","Sandy Lane Primary-MTC","Construction - Contract Payments",16/04/2013 00:00:00,"6515704",14386,"C J M HARVEY CONSTRUCTION LTD"
"Bracknell Forest Council","http://opendatacommunities.org/id/unitary-authority/bracknell-forest","Bracknell Forest Council","00MA","","","Harmans Water Primary-MTC","Construction - Contract Payments",16/04/2013 00:00:00,"6515714",2040,"C J M HARVEY CONSTRUCTION LTD"
"Bracknell Forest Council","http://opendatacommunities.org/id/unitary-authority/bracknell-forest","Bracknell Forest Council","00MA","","","Harmans Water Primary-MTC","Construction - Contract Payments",16/04/2013 00:00:00,"6515723",1720,"C J M HARVEY CONSTRUCTION LTD"
"Bracknell Forest Council","http://opendatacommunities.org/id/unitary-authority/bracknell-forest","Bracknell Forest Council","00MA","","","College Hall Planned Maintenance","Construction - Contract Payments",16/04/2013 00:00:00,"6515728",5730,"C J M HARVEY CONSTRUCTION LTD"
"Bracknell Forest Council","http://opendatacommunities.org/id/unitary-authority/bracknell-forest","Bracknell Forest Council","00MA","Learning Disability (under 65)","Day Care","Supported Living (Day Care) LD","Contracted Services",24/04/2013 00:00:00,"30217623",5040,"EXCEL SUPPORT SERVICES"
"Bracknell Forest Council","http://opendatacommunities.org/id/unitary-authority/bracknell-forest","Bracknell Forest Council","00MA","Learning Disability (under 65)","Homecare","Supported Living (Homecare) LD","Contracted Services",24/04/2013 00:00:00,"30217623",5297.68,"EXCEL SUPPORT SERVICES"
"Bracknell Forest Council","http://opendatacommunities.org/id/unitary-authority/bracknell-forest","Bracknell Forest Council","00MA","Learning Disability (under 65)","Homecare","Supported Living (Homecare) LD","Contracted Services",24/04/2013 00:00:00,"30217623",5302.06,"EXCEL SUPPORT SERVICES"
"Bracknell Forest Council","http://opendatacommunities.org/id/unitary-authority/bracknell-forest","Bracknell Forest Council","00MA","Learning Disability (under 65)","Homecare","Supported Living (Homecare) LD","Contracted Services",24/04/2013 00:00:00,"30217623",5418.4,"EXCEL SUPPORT SERVICES"
"Bracknell Forest Council","http://opendatacommunities.org/id/unitary-authority/bracknell-forest","Bracknell Forest Council","00MA","Learning Disability (under 65)","Homecare","Supported Living (Homecare) LD","Contracted Services",24/04/2013 00:00:00,"30217623",5670,"EXCEL SUPPORT SERVICES"
"Bracknell Forest Council","http://opendatacommunities.org/id/unitary-authority/bracknell-forest","Bracknell Forest Council","00MA","Older People (Aged 65 or Over)","Home Care","Supported Living (Homecare) LD over 65","Contracted Services",24/04/2013 00:00:00,"30217623",6636.72,"EXCEL SUPPORT SERVICES"
"Bracknell Forest Council","http://opendatacommunities.org/id/unitary-authority/bracknell-forest","Bracknell Forest Council","00MA","Learning Disability (under 65)","Homecare","Supported Living (Homecare) LD","Contracted Services",24/04/2013 00:00:00,"30217623",6930,"EXCEL SUPPORT SERVICES"
"Bracknell Forest Council","http://opendatacommunities.org/id/unitary-authority/bracknell-forest","Bracknell Forest Council","00MA","Learning Disability (under 65)","Homecare","Supported Living (Homecare) LD","Contracted Services",24/04/2013 00:00:00,"30217623",7560,"EXCEL SUPPORT SERVICES"
"Bracknell Forest Council","http://opendatacommunities.org/id/unitary-authority/bracknell-forest","Bracknell Forest Council","00MA","Learning Disability (under 65)","Homecare","Supported Living (Homecare) LD","Contracted Services",24/04/2013 00:00:00,"30217623",7770,"EXCEL SUPPORT SERVICES"
"Bracknell Forest Council","http://opendatacommunities.org/id/unitary-authority/bracknell-forest","Bracknell Forest Council","00MA","Learning Disability (under 65)","Day Care","Supported Living (Day Care) LD","Contracted Services",25/04/2013 00:00:00,"30217682",112,"EXCEL SUPPORT SERVICES"
"Bracknell Forest Council","http://opendatacommunities.org/id/unitary-authority/bracknell-forest","Bracknell Forest Council","00MA","Learning Disability (under 65)","Homecare","Supported Living (Homecare) LD","Contracted Services",25/04/2013 00:00:00,"30217682",587,"EXCEL SUPPORT SERVICES"
"Bracknell Forest Council","http://opendatacommunities.org/id/unitary-authority/bracknell-forest","Bracknell Forest Council","00MA","Learning Disability (under 65)","Homecare","Supported Living (Homecare) LD","Contracted Services",25/04/2013 00:00:00,"30217682",2610,"EXCEL SUPPORT SERVICES"
"Bracknell Forest Council","http://opendatacommunities.org/id/unitary-authority/bracknell-forest","Bracknell Forest Council","00MA","Learning Disability (under 65)","Homecare","Supported Living (Homecare) LD","Contracted Services",25/04/2013 00:00:00,"30217682",4260,"EXCEL SUPPORT SERVICES"
"Bracknell Forest Council","http://opendatacommunities.org/id/unitary-authority/bracknell-forest","Bracknell Forest Council","00MA","Learning Disability (under 65)","Homecare","Supported Living (Homecare) LD","Contracted Services",25/04/2013 00:00:00,"30217682",7560,"EXCEL SUPPORT SERVICES"
"Bracknell Forest Council","http://opendatacommunities.org/id/unitary-authority/bracknell-forest","Bracknell Forest Council","00MA","Central Support Services - COF","Customer Service Centre","Customer Services","Licences",28/03/2013 00:00:00,"6515444",5000,"EXPERIAN LTD"
"Bracknell Forest Council","http://opendatacommunities.org/id/unitary-authority/bracknell-forest","Bracknell Forest Council","00MA","Cemeteries, Crematoria & Mortuary Services","Cemeteries & Crematorium","Easthampstead Park Cemetery & Crematorium","Contracted Services",23/04/2013 00:00:00,"6516936",573.11,"F G MARSHALL LTD"
"Bracknell Forest Council","http://opendatacommunities.org/id/unitary-authority/bracknell-forest","Bracknell Forest Council","00MA","Children Looked After","Fostering services","Independent Fostering (Non BFBC)","Contracted Services",01/04/2013 00:00:00,"6517115",3572,"FAMILYPLACEMENT.COM LTD"
"Bracknell Forest Council","http://opendatacommunities.org/id/unitary-authority/bracknell-forest","Bracknell Forest Council","00MA","Children Looked After","Fostering services","Independent Fostering (Non BFBC)","Contracted Services",01/04/2013 00:00:00,"6517117",2835.36,"FAMILYPLACEMENT.COM LTD"
"Bracknell Forest Council","http://opendatacommunities.org/id/unitary-authority/bracknell-forest","Bracknell Forest Council","00MA","Children Looked After","Fostering services","Independent Fostering (Non BFBC)","Contracted Services",01/04/2013 00:00:00,"6517118",2835.36,"FAMILYPLACEMENT.COM LTD"
"Bracknell Forest Council","http://opendatacommunities.org/id/unitary-authority/bracknell-forest","Bracknell Forest Council","00MA","Management and Support Services - CYPL","School Related Expenditure","Home to School Transport","Coach Fares - Home/School Transport",05/04/2013 00:00:00,"6515808",1150,"FARGO COACHES OF BRACKNELL"
"Bracknell Forest Council","http://opendatacommunities.org/id/unitary-authority/bracknell-forest","Bracknell Forest Council","00MA","Special Schools","Centrally managed Expenditure - Special","Supporting Special Educational Needs","Voluntary Sector Service Providers",19/03/2013 00:00:00,"6516548",19966,"FARNEY CLOSE SCHOOL"
"Bracknell Forest Council","http://opendatacommunities.org/id/unitary-authority/bracknell-forest","Bracknell Forest Council","00MA","Special Schools","Centrally managed Expenditure - Special","Supporting Special Educational Needs","Voluntary Sector Service Providers",19/03/2013 00:00:00,"6516548",19966,"FARNEY CLOSE SCHOOL"
"Bracknell Forest Council","http://opendatacommunities.org/id/unitary-authority/bracknell-forest","Bracknell Forest Council","00MA","Special Schools","Centrally managed Expenditure - Special","Supporting Special Educational Needs","Voluntary Sector Service Providers",19/03/2013 00:00:00,"6516548",18621,"FARNEY CLOSE SCHOOL"
"Bracknell Forest Council","http://opendatacommunities.org/id/unitary-authority/bracknell-forest","Bracknell Forest Council","00MA","Special Schools","Centrally managed Expenditure - Special","Supporting Special Educational Needs","Voluntary Sector Service Providers",19/03/2013 00:00:00,"6516548",18621,"FARNEY CLOSE SCHOOL"
"Bracknell Forest Council","http://opendatacommunities.org/id/unitary-authority/bracknell-forest","Bracknell Forest Council","00MA","Libraries","Stock Ordering, Cataloguing & Distribution","Library Book Fund","Audio/Visual materials",28/03/2013 00:00:00,"6516144",520,"FINANCIAL TIMES LIMITED"
"Bracknell Forest Council","http://opendatacommunities.org/id/unitary-authority/bracknell-forest","Bracknell Forest Council","00MA","Public Transport","Concessionary Fares","Concessionary Fares","Contracted Services",25/04/2013 00:00:00,"6516418",2538,"FIRST BEELINE"
"Bracknell Forest Council","http://opendatacommunities.org/id/unitary-authority/bracknell-forest","Bracknell Forest Council","00MA","Public Transport","Concessionary Fares","Concessionary Fares","Contracted Services",03/05/2013 00:00:00,"6517230",35992.1,"FIRST BEELINE"
"Bracknell Forest Council","http://opendatacommunities.org/id/unitary-authority/bracknell-forest","Bracknell Forest Council","00MA","","","Edgbarrow Secondary-MTC","Construction - Contract Payments",16/04/2013 00:00:00,"6515948",2989.9,"C J M HARVEY CONSTRUCTION LTD"
"Bracknell Forest Council","http://opendatacommunities.org/id/unitary-authority/bracknell-forest","Bracknell Forest Council","00MA","","","Edgbarrow Secondary-MTC","Construction - Contract Payments",26/04/2013 00:00:00,"6516726",12400,"C J M HARVEY CONSTRUCTION LTD"
"Bracknell Forest Council","http://opendatacommunities.org/id/unitary-authority/bracknell-forest","Bracknell Forest Council","00MA","Central Support Services - COF","Information Technology","Communications","Equipment - Rental",16/04/2013 00:00:00,"6516295",2567.67,"CABLE&WIRELESS UK"
"Bracknell Forest Council","http://opendatacommunities.org/id/unitary-authority/bracknell-forest","Bracknell Forest Council","00MA","Central Support Services - COF","Information Technology","Technical  Services","Contracted Services",16/04/2013 00:00:00,"6516297",999,"CABLE&WIRELESS UK"
"Bracknell Forest Council","http://opendatacommunities.org/id/unitary-authority/bracknell-forest","Bracknell Forest Council","00MA","Central Support Services - COF","Information Technology","Telephone Holding Account","Telephones - Rental & Call Charges",27/03/2013 00:00:00,"6517105",663.14,"CABLE&WIRELESS UK"
"Bracknell Forest Council","http://opendatacommunities.org/id/unitary-authority/bracknell-forest","Bracknell Forest Council","00MA","Children Looked After","Fostering services","Independent Fostering (Non BFBC)","Contracted Services",08/04/2013 00:00:00,"6515556",1861.26,"CABRINI CHILDRENS SOCIETY"
"Bracknell Forest Council","http://opendatacommunities.org/id/unitary-authority/bracknell-forest","Bracknell Forest Council","00MA","Children Looked After","Fostering services","Independent Fostering (Non BFBC)","Contracted Services",22/04/2013 00:00:00,"6516674",1871.26,"CABRINI CHILDRENS SOCIETY"
"Bracknell Forest Council","http://opendatacommunities.org/id/unitary-authority/bracknell-forest","Bracknell Forest Council","00MA","Children Looked After","Residential care","Children's Home Placements","Contracted Services",04/04/2013 00:00:00,"6516880",12178.6,"CALCOT SERVICES FOR CHILDREN"
"Bracknell Forest Council","http://opendatacommunities.org/id/unitary-authority/bracknell-forest","Bracknell Forest Council","00MA","Family Support Services","Home care","Children's Disabilities Care Needs","Voluntary Sector Service Providers",31/03/2013 00:00:00,"6516125",2759,"CALL US"
"Bracknell Forest Council","http://opendatacommunities.org/id/unitary-authority/bracknell-forest","Bracknell Forest Council","00MA","Commissioning and Social Work","Commissioning and Social Work","Children & Family Duty Team","Agency",31/03/2013 00:00:00,"6516177",6345,"CALL US"
"Bracknell Forest Council","http://opendatacommunities.org/id/unitary-authority/bracknell-forest","Bracknell Forest Council","00MA","Commissioning and Social Work","Commissioning and Social Work","Children & Family Duty Team","Agency",28/02/2013 00:00:00,"6516178",6694.9,"CALL US"
"Bracknell Forest Council","http://opendatacommunities.org/id/unitary-authority/bracknell-forest","Bracknell Forest Council","00MA","Central Support Services - COF","Customer Service Centre","Cashiers Services","Banking Charges",08/04/2013 00:00:00,"6516709",2630.97,"CAPITA BUSINESS SERVICES LTD"
"Bracknell Forest Council","http://opendatacommunities.org/id/unitary-authority/bracknell-forest","Bracknell Forest Council","00MA","Support Services & Management Costs","Training","Social Work Education","Training Costs",30/04/2013 00:00:00,"6516951",700,"CAPITA CONFERENCES"
"Bracknell Forest Council","http://opendatacommunities.org/id/unitary-authority/bracknell-forest","Bracknell Forest Council","00MA","Management and Support Services - CYPL","Strategy, Resources and Early Interventions","Human resources","Recruitment Expenses",10/04/2013 00:00:00,"6515864",792,"CAPITA RESOURCING LTD"
"Bracknell Forest Council","http://opendatacommunities.org/id/unitary-authority/bracknell-forest","Bracknell Forest Council","00MA","","","Balance Sheet","Flexible Benefits Control Account",16/04/2013 00:00:00,"6516187",7448,"CAR GIANT LTD"
"Bracknell Forest Council","http://opendatacommunities.org/id/unitary-authority/bracknell-forest","Bracknell Forest Council","00MA","Vehicles &  Plant","Vehicles and Plant Summary Account","Vehicles and Plant","Operating Lease Charge",01/04/2013 00:00:00,"6515401",2688.64,"CAR HIRE (DAY OF SWANSEA) LTD"
"Bracknell Forest Council","http://opendatacommunities.org/id/unitary-authority/bracknell-forest","Bracknell Forest Council","00MA","Older People (Aged 65 or Over)","Home Care","Home Care-Elderly","Contracted Services",18/04/2013 00:00:00,"30216940",22.2,"CARE 1ST LTD"
"Bracknell Forest Council","http://opendatacommunities.org/id/unitary-authority/bracknell-forest","Bracknell Forest Council","00MA","Physical Disability/Sensory Impairment","Homecare","Home Care-Phys Disab","Contracted Services",18/04/2013 00:00:00,"30216940",103.6,"CARE 1ST LTD"
"Bracknell Forest Council","http://opendatacommunities.org/id/unitary-authority/bracknell-forest","Bracknell Forest Council","00MA","Older People (Aged 65 or Over)","Home Care","Homecare PD 65 and Over","Contracted Services",18/04/2013 00:00:00,"30216940",144.4,"CARE 1ST LTD"
"Bracknell Forest Council","http://opendatacommunities.org/id/unitary-authority/bracknell-forest","Bracknell Forest Council","00MA","Older People (Aged 65 or Over)","Home Care","Home Care-Elderly","Contracted Services",18/04/2013 00:00:00,"30216940",196.1,"CARE 1ST LTD"
"Bracknell Forest Council","http://opendatacommunities.org/id/unitary-authority/bracknell-forest","Bracknell Forest Council","00MA","Physical Disability/Sensory Impairment","Homecare","Home Care-Phys Disab","Contracted Services",18/04/2013 00:00:00,"30216940",325.6,"CARE 1ST LTD"
"Bracknell Forest Council","http://opendatacommunities.org/id/unitary-authority/bracknell-forest","Bracknell Forest Council","00MA","Older People (Aged 65 or Over)","Home Care","Home Care-Elderly","Contracted Services",18/04/2013 00:00:00,"30216940",347.8,"CARE 1ST LTD"
"Bracknell Forest Council","http://opendatacommunities.org/id/unitary-authority/bracknell-forest","Bracknell Forest Council","00MA","Older People (Aged 65 or Over)","Home Care","Home Care-Elderly","Contracted Services",18/04/2013 00:00:00,"30216940",357.9,"CARE 1ST LTD"
"Bracknell Forest Council","http://opendatacommunities.org/id/unitary-authority/bracknell-forest","Bracknell Forest Council","00MA","Older People (Aged 65 or Over)","Home Care","Home Care-Elderly","Contracted Services",18/04/2013 00:00:00,"30216940",384.8,"CARE 1ST LTD"
"Bracknell Forest Council","http://opendatacommunities.org/id/unitary-authority/bracknell-forest","Bracknell Forest Council","00MA","Older People (Aged 65 or Over)","Home Care","Homecare EMI","Contracted Services",18/04/2013 00:00:00,"30216940",529.1,"CARE 1ST LTD"
"Bracknell Forest Council","http://opendatacommunities.org/id/unitary-authority/bracknell-forest","Bracknell Forest Council","00MA","Older People (Aged 65 or Over)","Home Care","Home Care-Elderly","Contracted Services",18/04/2013 00:00:00,"30216940",599.4,"CARE 1ST LTD"
"Bracknell Forest Council","http://opendatacommunities.org/id/unitary-authority/bracknell-forest","Bracknell Forest Council","00MA","Older People (Aged 65 or Over)","Home Care","Home Care-Elderly","Contracted Services",18/04/2013 00:00:00,"30216940",621.6,"CARE 1ST LTD"
"Bracknell Forest Council","http://opendatacommunities.org/id/unitary-authority/bracknell-forest","Bracknell Forest Council","00MA","Older People (Aged 65 or Over)","Home Care","Home Care-Elderly","Contracted Services",18/04/2013 00:00:00,"30216940",995.3,"CARE 1ST LTD"
"Bracknell Forest Council","http://opendatacommunities.org/id/unitary-authority/bracknell-forest","Bracknell Forest Council","00MA","Older People (Aged 65 or Over)","Home Care","Home Care - Mental Health Over 65","Contracted Services",23/04/2013 00:00:00,"30217458",491.9,"CARE IN YOUR HOME"
"Bracknell Forest Council","http://opendatacommunities.org/id/unitary-authority/bracknell-forest","Bracknell Forest Council","00MA","Older People (Aged 65 or Over)","Home Care","Home Care-Elderly","Contracted Services",23/04/2013 00:00:00,"30217458",551.1,"CARE IN YOUR HOME"
"Bracknell Forest Council","http://opendatacommunities.org/id/unitary-authority/bracknell-forest","Bracknell Forest Council","00MA","Older People (Aged 65 or Over)","Home Care","Homecare EMI","Contracted Services",23/04/2013 00:00:00,"30217458",910,"CARE IN YOUR HOME"
"Bracknell Forest Council","http://opendatacommunities.org/id/unitary-authority/bracknell-forest","Bracknell Forest Council","00MA","Learning Disability (under 65)","Homecare","Home Care Learning Disability","Contracted Services",23/04/2013 00:00:00,"30217458",1073,"CARE IN YOUR HOME"
"Bracknell Forest Council","http://opendatacommunities.org/id/unitary-authority/bracknell-forest","Bracknell Forest Council","00MA","Physical Disability/Sensory Impairment","Homecare","Home Care-Phys Disab","Contracted Services",23/04/2013 00:00:00,"30217458",1281.45,"CARE IN YOUR HOME"
"Bracknell Forest Council","http://opendatacommunities.org/id/unitary-authority/bracknell-forest","Bracknell Forest Council","00MA","Older People (Aged 65 or Over)","Home Care","Home Care-Elderly","Contracted Services",23/04/2013 00:00:00,"30217458",1927.7,"CARE IN YOUR HOME"
"Bracknell Forest Council","http://opendatacommunities.org/id/unitary-authority/bracknell-forest","Bracknell Forest Council","00MA","Older People (Aged 65 or Over)","Home Care","Homecare PD 65 and Over","Contracted Services",23/04/2013 00:00:00,"30217458",2053.5,"CARE IN YOUR HOME"
"Bracknell Forest Council","http://opendatacommunities.org/id/unitary-authority/bracknell-forest","Bracknell Forest Council","00MA","Older People (Aged 65 or Over)","Home Care","Home Care-Elderly","Contracted Services",23/04/2013 00:00:00,"30217458",5492.45,"CARE IN YOUR HOME"
"Bracknell Forest Council","http://opendatacommunities.org/id/unitary-authority/bracknell-forest","Bracknell Forest Council","00MA","Physical Disability/Sensory Impairment","Homecare","Home Care-Phys Disab","Contracted Services",23/04/2013 00:00:00,"30217458",55.5,"CARE UK HOMECARE LTD"
"Bracknell Forest Council","http://opendatacommunities.org/id/unitary-authority/bracknell-forest","Bracknell Forest Council","00MA","Mental Health Needs (Under 65)","Homecare","Home Care Mental Illness","Contracted Services",23/04/2013 00:00:00,"30217458",205.35,"CARE UK HOMECARE LTD"
"Bracknell Forest Council","http://opendatacommunities.org/id/unitary-authority/bracknell-forest","Bracknell Forest Council","00MA","Mental Health Needs (Under 65)","Supported and Other Accommodation","Supported Living - Mental Health","Contracted Services",23/04/2013 00:00:00,"30217458",651.88,"CARE UK HOMECARE LTD"
"Bracknell Forest Council","http://opendatacommunities.org/id/unitary-authority/bracknell-forest","Bracknell Forest Council","00MA","Management and Support Services - CYPL","Unallocated Schools Budget Related Expenditure","School Catering","Catering Equipment - R&M",04/04/2013 00:00:00,"6515455",654.02,"CATERING INSTALLATION & SERVICES LTD"
"Bracknell Forest Council","http://opendatacommunities.org/id/unitary-authority/bracknell-forest","Bracknell Forest Council","00MA","Older People (Aged 65 or Over)","Home Care","Home Care-Elderly","Contracted Services",04/04/2013 00:00:00,"30215360",876.9,"CATTO HOMECARE LTD"
"Bracknell Forest Council","http://opendatacommunities.org/id/unitary-authority/bracknell-forest","Bracknell Forest Council","00MA","Other Welfare Services","Other Welfare Services","Forestcare - Operational","Telephones - Rental & Call Charges",08/04/2013 00:00:00,"6514982",682.99,"CELLULAR SOLUTIONS AND SERVICES LTD"
"Bracknell Forest Council","http://opendatacommunities.org/id/unitary-authority/bracknell-forest","Bracknell Forest Council","00MA","Libraries","Stock Ordering, Cataloguing & Distribution","Library Book Fund","Audio/Visual materials",04/04/2013 00:00:00,"6516135",4285,"CENGAGE LEARNING SERVICES LTD"
"Bracknell Forest Council","http://opendatacommunities.org/id/unitary-authority/bracknell-forest","Bracknell Forest Council","00MA","Open Spaces","Countryside Recreation & Management","Rights of Way Maintenance","R&M - Planned",11/04/2013 00:00:00,"6515494",1450,"CENTREWIRE LTD"
"Bracknell Forest Council","http://opendatacommunities.org/id/unitary-authority/bracknell-forest","Bracknell Forest Council","00MA","Special Schools","Centrally managed Expenditure - Special","Supporting Special Educational Needs","Voluntary Sector Service Providers",12/04/2013 00:00:00,"6516512",8910,"CFBT- SCHOOL IMPROVMENT SERVICE"
"Bracknell Forest Council","http://opendatacommunities.org/id/unitary-authority/bracknell-forest","Bracknell Forest Council","00MA","Special Schools","Centrally managed Expenditure - Special","Supporting Special Educational Needs","Voluntary Sector Service Providers",12/04/2013 00:00:00,"6516512",10530,"CFBT- SCHOOL IMPROVMENT SERVICE"
"Bracknell Forest Council","http://opendatacommunities.org/id/unitary-authority/bracknell-forest","Bracknell Forest Council","00MA","Special Schools","Centrally managed Expenditure - Special","Supporting Special Educational Needs","Voluntary Sector Service Providers",12/04/2013 00:00:00,"6516513",17225,"CFBT- SCHOOL IMPROVMENT SERVICE"
"Bracknell Forest Council","http://opendatacommunities.org/id/unitary-authority/bracknell-forest","Bracknell Forest Council","00MA","Special Schools","Centrally managed Expenditure - Special","Supporting Special Educational Needs","Voluntary Sector Service Providers",12/04/2013 00:00:00,"6516513",11925,"CFBT- SCHOOL IMPROVMENT SERVICE"
"Bracknell Forest Council","http://opendatacommunities.org/id/unitary-authority/bracknell-forest","Bracknell Forest Council","00MA","Early Years","Centrally managed Expenditure - Early Years","Early Years and Childcare","Grants and Donations",10/04/2013 00:00:00,"30216174",6648.68,"CHAVEY DOWN PRE-SCHOOL"
"Bracknell Forest Council","http://opendatacommunities.org/id/unitary-authority/bracknell-forest","Bracknell Forest Council","00MA","Physical Disability/Sensory Impairment","Residential Care Home Placements","Residential Placements-Phys Disab","Contracted Services",23/04/2013 00:00:00,"30217458",6961.71,"CHD LIVING"
"Bracknell Forest Council","http://opendatacommunities.org/id/unitary-authority/bracknell-forest","Bracknell Forest Council","00MA","Older People (Aged 65 or Over)","Residential Care Home Placements","Respite EMI","Contracted Services",18/04/2013 00:00:00,"30216940",563.36,"CHERRYDALE"
"Bracknell Forest Council","http://opendatacommunities.org/id/unitary-authority/bracknell-forest","Bracknell Forest Council","00MA","Older People (Aged 65 or Over)","Residential Care Home Placements","Elderly  Respite Care","Contracted Services",18/04/2013 00:00:00,"30216940",1345.12,"CHERRYDALE"
"Bracknell Forest Council","http://opendatacommunities.org/id/unitary-authority/bracknell-forest","Bracknell Forest Council","00MA","Early Years","Centrally managed Expenditure - Early Years","Early Years and Childcare","Grants and Donations",10/04/2013 00:00:00,"30216174",8109.97,"CHERRYTOWN NURSERY"
"Bracknell Forest Council","http://opendatacommunities.org/id/unitary-authority/bracknell-forest","Bracknell Forest Council","00MA","Corporate Management COF","Corporate Management COF","Chief Executive & Support","Staff Public Transport Fares",17/03/2013 00:00:00,"70008702",2580.7,"CHIEF EXECUTIVE"
"Bracknell Forest Council","http://opendatacommunities.org/id/unitary-authority/bracknell-forest","Bracknell Forest Council","00MA","Environmental Initiatives","Sustainable Development Strategies","Energy Management","Consultants Fees",14/03/2013 00:00:00,"6515915",1500,"CIBSE"
"Bracknell Forest Council","http://opendatacommunities.org/id/unitary-authority/bracknell-forest","Bracknell Forest Council","00MA","Management and Support Services - CYPL","Holding Codes - net nil","Education Library Service","Subscriptions",09/04/2013 00:00:00,"6515992",1804,"CILIP"
"Bracknell Forest Council","http://opendatacommunities.org/id/unitary-authority/bracknell-forest","Bracknell Forest Council","00MA","Central Support Services - COF","Finance","Internal Audit","Training Costs",07/03/2013 00:00:00,"6516368",3420,"CIPFA BUSINESS LTD"
"Bracknell Forest Council","http://opendatacommunities.org/id/unitary-authority/bracknell-forest","Bracknell Forest Council","00MA","Recreation, Sports and Leisure","Indoor Sports & Recreation Facilities","Leisure DSO - Leisure Centre","Electricity",31/03/2013 00:00:00,"6515304",1049.45,"COGENCO LTD"
"Bracknell Forest Council","http://opendatacommunities.org/id/unitary-authority/bracknell-forest","Bracknell Forest Council","00MA","Early Years","Centrally managed Expenditure - Early Years","Early Years and Childcare","Grants and Donations",10/04/2013 00:00:00,"30216174",12750.19,"COLLEGE TOWN MONTESSORI"
"Bracknell Forest Council","http://opendatacommunities.org/id/unitary-authority/bracknell-forest","Bracknell Forest Council","00MA","Recreation, Sports and Leisure","Indoor Sports & Recreation Facilities","Leisure DSO - Coral Reef","R&M - Service Contracts",04/04/2013 00:00:00,"6515645",729.92,"COMBINED ENERGY SOLUTIONS LTD"
"Bracknell Forest Council","http://opendatacommunities.org/id/unitary-authority/bracknell-forest","Bracknell Forest Council","00MA","Older People (Aged 65 or Over)","Residential Care Home Placements","Bridgewell Unit","Agency",17/04/2013 00:00:00,"30216765",2.25,"COMENSURA LTD"
"Bracknell Forest Council","http://opendatacommunities.org/id/unitary-authority/bracknell-forest","Bracknell Forest Council","00MA","Older People (Aged 65 or Over)","Assessment & Care Management","Enhanced Intermediate Care","Agency",17/04/2013 00:00:00,"30216765",2.7,"COMENSURA LTD"
"Bracknell Forest Council","http://opendatacommunities.org/id/unitary-authority/bracknell-forest","Bracknell Forest Council","00MA","Older People (Aged 65 or Over)","Assessment & Care Management","Enhanced Intermediate Care","Agency",17/04/2013 00:00:00,"30216765",7.2,"COMENSURA LTD"
"Bracknell Forest Council","http://opendatacommunities.org/id/unitary-authority/bracknell-forest","Bracknell Forest Council","00MA","Commissioning and Social Work","Commissioning and Social Work","Children Aged Under 11","Agency",17/04/2013 00:00:00,"30216765",9.9,"COMENSURA LTD"
"Bracknell Forest Council","http://opendatacommunities.org/id/unitary-authority/bracknell-forest","Bracknell Forest Council","00MA","Older People (Aged 65 or Over)","Other Services To Older People","Winter Pressures 12/13","Agency",17/04/2013 00:00:00,"30216765",12.6,"COMENSURA LTD"
"Bracknell Forest Council","http://opendatacommunities.org/id/unitary-authority/bracknell-forest","Bracknell Forest Council","00MA","Older People (Aged 65 or Over)","Assessment & Care Management","Short Term Services - Social Work","Agency",17/04/2013 00:00:00,"30216765",12.6,"COMENSURA LTD"
"Bracknell Forest Council","http://opendatacommunities.org/id/unitary-authority/bracknell-forest","Bracknell Forest Council","00MA","Older People (Aged 65 or Over)","Other Services To Older People","Winter Pressures 12/13","Agency",17/04/2013 00:00:00,"30216765",16.2,"COMENSURA LTD"
"Bracknell Forest Council","http://opendatacommunities.org/id/unitary-authority/bracknell-forest","Bracknell Forest Council","00MA","Older People (Aged 65 or Over)","Assessment & Care Management","Short Term Services - Social Work","Agency",17/04/2013 00:00:00,"30216765",19.8,"COMENSURA LTD"
"Bracknell Forest Council","http://opendatacommunities.org/id/unitary-authority/bracknell-forest","Bracknell Forest Council","00MA","Mental Health Needs (Under 65)","Assessment & Care Management","CMHT","Agency",17/04/2013 00:00:00,"30216765",20.7,"COMENSURA LTD"
"Bracknell Forest Council","http://opendatacommunities.org/id/unitary-authority/bracknell-forest","Bracknell Forest Council","00MA","Older People (Aged 65 or Over)","Assessment & Care Management","Short Term Services - Social Work","Agency",17/04/2013 00:00:00,"30216765",21.6,"COMENSURA LTD"
"Bracknell Forest Council","http://opendatacommunities.org/id/unitary-authority/bracknell-forest","Bracknell Forest Council","00MA","Mental Health Needs (Under 65)","Assessment & Care Management","CMHT","Agency",17/04/2013 00:00:00,"30216765",22.95,"COMENSURA LTD"
"Bracknell Forest Council","http://opendatacommunities.org/id/unitary-authority/bracknell-forest","Bracknell Forest Council","00MA","Commissioning and Social Work","Commissioning and Social Work","Children Aged Under 11","Agency",17/04/2013 00:00:00,"30216765",26.1,"COMENSURA LTD"
"Bracknell Forest Council","http://opendatacommunities.org/id/unitary-authority/bracknell-forest","Bracknell Forest Council","00MA","Mental Health Needs (Under 65)","Assessment & Care Management","CMHT","Agency",17/04/2013 00:00:00,"30216765",28.35,"COMENSURA LTD"
"Bracknell Forest Council","http://opendatacommunities.org/id/unitary-authority/bracknell-forest","Bracknell Forest Council","00MA","Service Management & Support Services","Service Management & Support Services","Training - Planning & Transport","Training Costs",25/04/2013 00:00:00,"6516787",749.5,"FIRST SAFETY TRAINING"
"Bracknell Forest Council","http://opendatacommunities.org/id/unitary-authority/bracknell-forest","Bracknell Forest Council","00MA","Children Looked After","Fostering services","Independent Fostering (Non BFBC)","Contracted Services",28/04/2013 00:00:00,"6516871",2960,"FITZGERALD FOSTERING & CONSULTANCY LTD"
"Bracknell Forest Council","http://opendatacommunities.org/id/unitary-authority/bracknell-forest","Bracknell Forest Council","00MA","Children Looked After","Education of LAC","Educational Attainment for Looked After Children","Consultants Fees",31/03/2013 00:00:00,"6515776",989.36,"FLEET TUTORS"
"Bracknell Forest Council","http://opendatacommunities.org/id/unitary-authority/bracknell-forest","Bracknell Forest Council","00MA","Early Years","Centrally managed Expenditure - Early Years","Early Years and Childcare","Grants and Donations",10/04/2013 00:00:00,"30216174",19396.3,"FOOTSTEPS NURSERY"
"Bracknell Forest Council","http://opendatacommunities.org/id/unitary-authority/bracknell-forest","Bracknell Forest Council","00MA","Vehicles &  Plant","Vehicles and Plant Summary Account","Vehicles and Plant","Vehicle Repairs",12/04/2013 00:00:00,"6516267",765,"FOREST ACCIDENT REPAIR"
"Bracknell Forest Council","http://opendatacommunities.org/id/unitary-authority/bracknell-forest","Bracknell Forest Council","00MA","Children Looked After","Fostering services","Independent Fostering (Non BFBC)","Contracted Services",30/03/2013 00:00:00,"6515562",2980.5,"FOSTERING SOLUTIONS LTD"
"Bracknell Forest Council","http://opendatacommunities.org/id/unitary-authority/bracknell-forest","Bracknell Forest Council","00MA","Children Looked After","Fostering services","Independent Fostering (Non BFBC)","Contracted Services",30/03/2013 00:00:00,"6515563",3220.22,"FOSTERING SOLUTIONS LTD"
"Bracknell Forest Council","http://opendatacommunities.org/id/unitary-authority/bracknell-forest","Bracknell Forest Council","00MA","Early Years","Centrally managed Expenditure - Early Years","Early Years and Childcare","Voluntary Sector Service Providers",24/04/2013 00:00:00,"6516306",842.4,"FOXLEY NURSERY SCHOOL"
"Bracknell Forest Council","http://opendatacommunities.org/id/unitary-authority/bracknell-forest","Bracknell Forest Council","00MA","","","Sandy Lane Primary","Construction - Other Direct Expenses",18/04/2013 00:00:00,"6515967",661.5,"FRANCIS CONSTRUCTION LTD"
"Bracknell Forest Council","http://opendatacommunities.org/id/unitary-authority/bracknell-forest","Bracknell Forest Council","00MA","Central Support Services - COF","Construction and Property","Surveyors","Consultants Fees",01/04/2013 00:00:00,"6515406",16995,"FRONTLINE DATA LTD"
"Bracknell Forest Council","http://opendatacommunities.org/id/unitary-authority/bracknell-forest","Bracknell Forest Council","00MA","Children Looked After","Fostering services","Independent Fostering (Non BFBC)","Contracted Services",01/05/2013 00:00:00,"6516384",3229.89,"FUTURES FOR CHILDREN LTD"
"Bracknell Forest Council","http://opendatacommunities.org/id/unitary-authority/bracknell-forest","Bracknell Forest Council","00MA","Children Looked After","Fostering services","Independent Fostering (Non BFBC)","Contracted Services",01/05/2013 00:00:00,"6516386",3229.89,"FUTURES FOR CHILDREN LTD"
"Bracknell Forest Council","http://opendatacommunities.org/id/unitary-authority/bracknell-forest","Bracknell Forest Council","00MA","","","Fuel Poverty","Construction - Sub-Contractor Payments",15/04/2013 00:00:00,"6515382",2152.5,"GABRIEL INSULATION SERVICES"
"Bracknell Forest Council","http://opendatacommunities.org/id/unitary-authority/bracknell-forest","Bracknell Forest Council","00MA","Business Support","Premises Development","Easthampstead Park Conference Centre","R&M - Reactive",08/04/2013 00:00:00,"6515962",707,"GARDNER MECHANICAL SERV. LTD"
"Bracknell Forest Council","http://opendatacommunities.org/id/unitary-authority/bracknell-forest","Bracknell Forest Council","00MA","Business Support","Premises Development","Easthampstead Park Conference Centre","R&M - Reactive",30/03/2013 00:00:00,"6515963",597,"GARDNER MECHANICAL SERV. LTD"
"Bracknell Forest Council","http://opendatacommunities.org/id/unitary-authority/bracknell-forest","Bracknell Forest Council","00MA","Early Years","Centrally managed Expenditure - Early Years","Early Years and Childcare","Grants and Donations",10/04/2013 00:00:00,"30216174",10417.21,"GARTH UNDER FIVES NURSERY"
"Bracknell Forest Council","http://opendatacommunities.org/id/unitary-authority/bracknell-forest","Bracknell Forest Council","00MA","Interest & Investment Income","Interest & Investment Income","Investment Management Fees","Licences",01/04/2013 00:00:00,"6516526",9503.3,"GEMINI CONSULTANTS LTD"
"Bracknell Forest Council","http://opendatacommunities.org/id/unitary-authority/bracknell-forest","Bracknell Forest Council","00MA","Central Support Services - COF","Personnel","Personnel Services","Licences",01/04/2013 00:00:00,"6516624",1176.87,"GEMINI CONSULTANTS LTD"
"Bracknell Forest Council","http://opendatacommunities.org/id/unitary-authority/bracknell-forest","Bracknell Forest Council","00MA","Service Management & Support Services","Service Management & Support Services","Departmental IT","Licences",29/04/2013 00:00:00,"6517189",619,"GETMAPPING plc"
"Bracknell Forest Council","http://opendatacommunities.org/id/unitary-authority/bracknell-forest","Bracknell Forest Council","00MA","Other Trading Surpluses & Deficits","Smartcard","Smartcard Networking Forum","Consultants Fees",01/05/2013 00:00:00,"6517218",1393.68,"GINGER NUT"
"Bracknell Forest Council","http://opendatacommunities.org/id/unitary-authority/bracknell-forest","Bracknell Forest Council","00MA","Special Schools","Centrally managed Expenditure - Special","Supporting Special Educational Needs","Other Fees for Bought-in Services",12/02/2013 00:00:00,"6516427",1905.52,"GLOBAL MEDIATION"
"Bracknell Forest Council","http://opendatacommunities.org/id/unitary-authority/bracknell-forest","Bracknell Forest Council","00MA","","","Mental Health","Other Equipment",27/03/2013 00:00:00,"70008701",508.85,"GLYN JONES"
"Bracknell Forest Council","http://opendatacommunities.org/id/unitary-authority/bracknell-forest","Bracknell Forest Council","00MA","Older People (Aged 65 or Over)","Home Care","Homecare EMI","Contracted Services",18/04/2013 00:00:00,"30216940",7.2,"GOLDEN ROSE COMMUNITY CENTRE"
"Bracknell Forest Council","http://opendatacommunities.org/id/unitary-authority/bracknell-forest","Bracknell Forest Council","00MA","Older People (Aged 65 or Over)","Home Care","Home Care-Elderly","Contracted Services",18/04/2013 00:00:00,"30216940",51.8,"GOLDEN ROSE COMMUNITY CENTRE"
"Bracknell Forest Council","http://opendatacommunities.org/id/unitary-authority/bracknell-forest","Bracknell Forest Council","00MA","Physical Disability/Sensory Impairment","Homecare","Home Care-Phys Disab","Contracted Services",18/04/2013 00:00:00,"30216940",66.6,"GOLDEN ROSE COMMUNITY CENTRE"
"Bracknell Forest Council","http://opendatacommunities.org/id/unitary-authority/bracknell-forest","Bracknell Forest Council","00MA","Older People (Aged 65 or Over)","Home Care","Homecare PD 65 and Over","Contracted Services",18/04/2013 00:00:00,"30216940",79.4,"GOLDEN ROSE COMMUNITY CENTRE"
"Bracknell Forest Council","http://opendatacommunities.org/id/unitary-authority/bracknell-forest","Bracknell Forest Council","00MA","Older People (Aged 65 or Over)","Home Care","Home Care - Mental Health Over 65","Contracted Services",18/04/2013 00:00:00,"30216940",102.4,"GOLDEN ROSE COMMUNITY CENTRE"
"Bracknell Forest Council","http://opendatacommunities.org/id/unitary-authority/bracknell-forest","Bracknell Forest Council","00MA","Older People (Aged 65 or Over)","Home Care","Homecare EMI","Contracted Services",18/04/2013 00:00:00,"30216940",155.4,"GOLDEN ROSE COMMUNITY CENTRE"
"Bracknell Forest Council","http://opendatacommunities.org/id/unitary-authority/bracknell-forest","Bracknell Forest Council","00MA","Older People (Aged 65 or Over)","Home Care","Home Care-Elderly","Contracted Services",18/04/2013 00:00:00,"30216940",205.8,"GOLDEN ROSE COMMUNITY CENTRE"
"Bracknell Forest Council","http://opendatacommunities.org/id/unitary-authority/bracknell-forest","Bracknell Forest Council","00MA","Learning Disability (under 65)","Day Care","Bracknell Day Services","Agency",17/04/2013 00:00:00,"30216765",76.12,"COMENSURA LTD"
"Bracknell Forest Council","http://opendatacommunities.org/id/unitary-authority/bracknell-forest","Bracknell Forest Council","00MA","Learning Disability (under 65)","Day Care","Bracknell Day Services","Agency",17/04/2013 00:00:00,"30216765",76.58,"COMENSURA LTD"
"Bracknell Forest Council","http://opendatacommunities.org/id/unitary-authority/bracknell-forest","Bracknell Forest Council","00MA","Learning Disability (under 65)","Day Care","Bracknell Day Services","Agency",17/04/2013 00:00:00,"30216765",76.95,"COMENSURA LTD"
"Bracknell Forest Council","http://opendatacommunities.org/id/unitary-authority/bracknell-forest","Bracknell Forest Council","00MA","Learning Disability (under 65)","Day Care","Bracknell Day Services","Agency",17/04/2013 00:00:00,"30216765",81.2,"COMENSURA LTD"
"Bracknell Forest Council","http://opendatacommunities.org/id/unitary-authority/bracknell-forest","Bracknell Forest Council","00MA","Children Looked After","Other children looked after services","Larchwood","Agency",17/04/2013 00:00:00,"30216765",88.42,"COMENSURA LTD"
"Bracknell Forest Council","http://opendatacommunities.org/id/unitary-authority/bracknell-forest","Bracknell Forest Council","00MA","Older People (Aged 65 or Over)","Residential Care Home Placements","Heathlands EPH","Agency",17/04/2013 00:00:00,"30216765",102.6,"COMENSURA LTD"
"Bracknell Forest Council","http://opendatacommunities.org/id/unitary-authority/bracknell-forest","Bracknell Forest Council","00MA","Learning Disability (under 65)","Day Care","Bracknell Day Services","Agency",17/04/2013 00:00:00,"30216765",113.55,"COMENSURA LTD"
"Bracknell Forest Council","http://opendatacommunities.org/id/unitary-authority/bracknell-forest","Bracknell Forest Council","00MA","Learning Disability (under 65)","Day Care","Bracknell Day Services","Agency",17/04/2013 00:00:00,"30216765",139.65,"COMENSURA LTD"
"Bracknell Forest Council","http://opendatacommunities.org/id/unitary-authority/bracknell-forest","Bracknell Forest Council","00MA","Learning Disability (under 65)","Day Care","Bracknell Day Services","Agency",17/04/2013 00:00:00,"30216765",140.38,"COMENSURA LTD"
"Bracknell Forest Council","http://opendatacommunities.org/id/unitary-authority/bracknell-forest","Bracknell Forest Council","00MA","Older People (Aged 65 or Over)","Residential Care Home Placements","Heathlands EPH","Agency",17/04/2013 00:00:00,"30216765",148.8,"COMENSURA LTD"
"Bracknell Forest Council","http://opendatacommunities.org/id/unitary-authority/bracknell-forest","Bracknell Forest Council","00MA","Learning Disability (under 65)","Day Care","Bracknell Day Services","Agency",17/04/2013 00:00:00,"30216765",150.9,"COMENSURA LTD"
"Bracknell Forest Council","http://opendatacommunities.org/id/unitary-authority/bracknell-forest","Bracknell Forest Council","00MA","Older People (Aged 65 or Over)","Residential Care Home Placements","Heathlands EPH","Agency",17/04/2013 00:00:00,"30216765",156.42,"COMENSURA LTD"
"Bracknell Forest Council","http://opendatacommunities.org/id/unitary-authority/bracknell-forest","Bracknell Forest Council","00MA","Learning Disability (under 65)","Day Care","Bracknell Day Services","Agency",17/04/2013 00:00:00,"30216765",162.4,"COMENSURA LTD"
"Bracknell Forest Council","http://opendatacommunities.org/id/unitary-authority/bracknell-forest","Bracknell Forest Council","00MA","Older People (Aged 65 or Over)","Residential Care Home Placements","Heathlands EPH","Agency",17/04/2013 00:00:00,"30216765",182.28,"COMENSURA LTD"
"Bracknell Forest Council","http://opendatacommunities.org/id/unitary-authority/bracknell-forest","Bracknell Forest Council","00MA","Learning Disability (under 65)","Day Care","Bracknell Day Services","Agency",17/04/2013 00:00:00,"30216765",187.76,"COMENSURA LTD"
"Bracknell Forest Council","http://opendatacommunities.org/id/unitary-authority/bracknell-forest","Bracknell Forest Council","00MA","Learning Disability (under 65)","Day Care","Bracknell Day Services","Agency",17/04/2013 00:00:00,"30216765",188.71,"COMENSURA LTD"
"Bracknell Forest Council","http://opendatacommunities.org/id/unitary-authority/bracknell-forest","Bracknell Forest Council","00MA","Learning Disability (under 65)","Day Care","Bracknell Day Services","Agency",17/04/2013 00:00:00,"30216765",196.17,"COMENSURA LTD"
"Bracknell Forest Council","http://opendatacommunities.org/id/unitary-authority/bracknell-forest","Bracknell Forest Council","00MA","Physical Disability/Sensory Impairment","Homecare","Home Care-Phys Disab","Contracted Services",18/04/2013 00:00:00,"30216940",385.1,"GOLDEN ROSE COMMUNITY CENTRE"
"Bracknell Forest Council","http://opendatacommunities.org/id/unitary-authority/bracknell-forest","Bracknell Forest Council","00MA","Older People (Aged 65 or Over)","Home Care","Home Care-Elderly","Contracted Services",18/04/2013 00:00:00,"30216940",394.6,"GOLDEN ROSE COMMUNITY CENTRE"
"Bracknell Forest Council","http://opendatacommunities.org/id/unitary-authority/bracknell-forest","Bracknell Forest Council","00MA","Physical Disability/Sensory Impairment","Homecare","Home Care-Phys Disab","Contracted Services",18/04/2013 00:00:00,"30216940",470.3,"GOLDEN ROSE COMMUNITY CENTRE"
"Bracknell Forest Council","http://opendatacommunities.org/id/unitary-authority/bracknell-forest","Bracknell Forest Council","00MA","Older People (Aged 65 or Over)","Home Care","Home Care-Elderly","Contracted Services",18/04/2013 00:00:00,"30216940",470.3,"GOLDEN ROSE COMMUNITY CENTRE"
"Bracknell Forest Council","http://opendatacommunities.org/id/unitary-authority/bracknell-forest","Bracknell Forest Council","00MA","Physical Disability/Sensory Impairment","Homecare","Home Care-Phys Disab","Contracted Services",18/04/2013 00:00:00,"30216940",489.3,"GOLDEN ROSE COMMUNITY CENTRE"
"Bracknell Forest Council","http://opendatacommunities.org/id/unitary-authority/bracknell-forest","Bracknell Forest Council","00MA","Older People (Aged 65 or Over)","Home Care","Home Care-Elderly","Contracted Services",18/04/2013 00:00:00,"30216940",515.8,"GOLDEN ROSE COMMUNITY CENTRE"
"Bracknell Forest Council","http://opendatacommunities.org/id/unitary-authority/bracknell-forest","Bracknell Forest Council","00MA","Older People (Aged 65 or Over)","Home Care","Home Care-Elderly","Contracted Services",18/04/2013 00:00:00,"30216940",691.8,"GOLDEN ROSE COMMUNITY CENTRE"
"Bracknell Forest Council","http://opendatacommunities.org/id/unitary-authority/bracknell-forest","Bracknell Forest Council","00MA","Older People (Aged 65 or Over)","Home Care","Home Care-Elderly","Contracted Services",18/04/2013 00:00:00,"30216940",819.6,"GOLDEN ROSE COMMUNITY CENTRE"
"Bracknell Forest Council","http://opendatacommunities.org/id/unitary-authority/bracknell-forest","Bracknell Forest Council","00MA","Older People (Aged 65 or Over)","Home Care","Home Care-Elderly","Contracted Services",18/04/2013 00:00:00,"30216940",1047.9,"GOLDEN ROSE COMMUNITY CENTRE"
"Bracknell Forest Council","http://opendatacommunities.org/id/unitary-authority/bracknell-forest","Bracknell Forest Council","00MA","Older People (Aged 65 or Over)","Home Care","Home Care-Elderly","Contracted Services",18/04/2013 00:00:00,"30216940",1206,"GOLDEN ROSE COMMUNITY CENTRE"
"Bracknell Forest Council","http://opendatacommunities.org/id/unitary-authority/bracknell-forest","Bracknell Forest Council","00MA","Older People (Aged 65 or Over)","Home Care","Home Care-Elderly","Contracted Services",18/04/2013 00:00:00,"30216940",1443.3,"GOLDEN ROSE COMMUNITY CENTRE"
"Bracknell Forest Council","http://opendatacommunities.org/id/unitary-authority/bracknell-forest","Bracknell Forest Council","00MA","Older People (Aged 65 or Over)","Home Care","Home Care-Elderly","Contracted Services",18/04/2013 00:00:00,"30216940",1743.2,"GOLDEN ROSE COMMUNITY CENTRE"
"Bracknell Forest Council","http://opendatacommunities.org/id/unitary-authority/bracknell-forest","Bracknell Forest Council","00MA","Older People (Aged 65 or Over)","Home Care","Home Care-Elderly","Contracted Services",18/04/2013 00:00:00,"30216940",1759,"GOLDEN ROSE COMMUNITY CENTRE"
"Bracknell Forest Council","http://opendatacommunities.org/id/unitary-authority/bracknell-forest","Bracknell Forest Council","00MA","Older People (Aged 65 or Over)","Home Care","Home Care-Elderly","Contracted Services",18/04/2013 00:00:00,"30216940",1799.4,"GOLDEN ROSE COMMUNITY CENTRE"
"Bracknell Forest Council","http://opendatacommunities.org/id/unitary-authority/bracknell-forest","Bracknell Forest Council","00MA","Older People (Aged 65 or Over)","Home Care","Home Care-Elderly","Contracted Services",18/04/2013 00:00:00,"30216940",2095.3,"GOLDEN ROSE COMMUNITY CENTRE"
"Bracknell Forest Council","http://opendatacommunities.org/id/unitary-authority/bracknell-forest","Bracknell Forest Council","00MA","Older People (Aged 65 or Over)","Residential Care Home Placements","Heathlands EPH","Agency",17/04/2013 00:00:00,"30216765",227.44,"COMENSURA LTD"
"Bracknell Forest Council","http://opendatacommunities.org/id/unitary-authority/bracknell-forest","Bracknell Forest Council","00MA","Older People (Aged 65 or Over)","Residential Care Home Placements","Heathlands EPH","Agency",17/04/2013 00:00:00,"30216765",233.58,"COMENSURA LTD"
"Bracknell Forest Council","http://opendatacommunities.org/id/unitary-authority/bracknell-forest","Bracknell Forest Council","00MA","Older People (Aged 65 or Over)","Residential Care Home Placements","Heathlands EPH","Agency",17/04/2013 00:00:00,"30216765",245.44,"COMENSURA LTD"
"Bracknell Forest Council","http://opendatacommunities.org/id/unitary-authority/bracknell-forest","Bracknell Forest Council","00MA","Older People (Aged 65 or Over)","Residential Care Home Placements","Heathlands EPH","Agency",17/04/2013 00:00:00,"30216765",255.06,"COMENSURA LTD"
"Bracknell Forest Council","http://opendatacommunities.org/id/unitary-authority/bracknell-forest","Bracknell Forest Council","00MA","Other Adult Services","Substance Abuse (Addictions)","Drugs Action Team Partnership Grant","Agency",17/04/2013 00:00:00,"30216765",279.65,"COMENSURA LTD"
"Bracknell Forest Council","http://opendatacommunities.org/id/unitary-authority/bracknell-forest","Bracknell Forest Council","00MA","Management and Support Services - CYPL","Strategy, Resources and Early Interventions","Admissions","Agency",17/04/2013 00:00:00,"30216765",317.41,"COMENSURA LTD"
"Bracknell Forest Council","http://opendatacommunities.org/id/unitary-authority/bracknell-forest","Bracknell Forest Council","00MA","Other Adult Services","Substance Abuse (Addictions)","Drugs Action Team Partnership Grant","Agency",17/04/2013 00:00:00,"30216765",374.85,"COMENSURA LTD"
"Bracknell Forest Council","http://opendatacommunities.org/id/unitary-authority/bracknell-forest","Bracknell Forest Council","00MA","Support Services & Management Costs","Personnel/HRM","Human Resources","Agency",17/04/2013 00:00:00,"30216765",377.92,"COMENSURA LTD"
"Bracknell Forest Council","http://opendatacommunities.org/id/unitary-authority/bracknell-forest","Bracknell Forest Council","00MA","Management and Support Services - CYPL","Strategy, Resources and Early Interventions","Admissions","Agency",17/04/2013 00:00:00,"30216765",396.75,"COMENSURA LTD"
"Bracknell Forest Council","http://opendatacommunities.org/id/unitary-authority/bracknell-forest","Bracknell Forest Council","00MA","Older People (Aged 65 or Over)","Assessment & Care Management","Short Term Services - Social Work","Agency",17/04/2013 00:00:00,"30216765",403.35,"COMENSURA LTD"
"Bracknell Forest Council","http://opendatacommunities.org/id/unitary-authority/bracknell-forest","Bracknell Forest Council","00MA","Learning Disability (under 65)","Day Care","Bracknell Day Services","Agency",17/04/2013 00:00:00,"30216765",414.94,"COMENSURA LTD"
"Bracknell Forest Council","http://opendatacommunities.org/id/unitary-authority/bracknell-forest","Bracknell Forest Council","00MA","Learning Disability (under 65)","Day Care","Bracknell Day Services","Agency",17/04/2013 00:00:00,"30216765",429.13,"COMENSURA LTD"
"Bracknell Forest Council","http://opendatacommunities.org/id/unitary-authority/bracknell-forest","Bracknell Forest Council","00MA","Older People (Aged 65 or Over)","Residential Care Home Placements","Heathlands EPH","Agency",17/04/2013 00:00:00,"30216765",536.87,"COMENSURA LTD"
"Bracknell Forest Council","http://opendatacommunities.org/id/unitary-authority/bracknell-forest","Bracknell Forest Council","00MA","Older People (Aged 65 or Over)","Assessment & Care Management","Enhanced Intermediate Care","Agency",17/04/2013 00:00:00,"30216765",546.7,"COMENSURA LTD"
"Bracknell Forest Council","http://opendatacommunities.org/id/unitary-authority/bracknell-forest","Bracknell Forest Council","00MA","Older People (Aged 65 or Over)","Assessment & Care Management","Short Term Services - Social Work","Agency",17/04/2013 00:00:00,"30216765",557.6,"COMENSURA LTD"
"Bracknell Forest Council","http://opendatacommunities.org/id/unitary-authority/bracknell-forest","Bracknell Forest Council","00MA","Commissioning and Social Work","Commissioning and Social Work","Children Aged Under 11","Agency",17/04/2013 00:00:00,"30216765",563.25,"COMENSURA LTD"
"Bracknell Forest Council","http://opendatacommunities.org/id/unitary-authority/bracknell-forest","Bracknell Forest Council","00MA","Older People (Aged 65 or Over)","Assessment & Care Management","Enhanced Intermediate Care","Agency",17/04/2013 00:00:00,"30216765",671.66,"COMENSURA LTD"
"Bracknell Forest Council","http://opendatacommunities.org/id/unitary-authority/bracknell-forest","Bracknell Forest Council","00MA","Older People (Aged 65 or Over)","Residential Care Home Placements","Heathlands EPH","Agency",17/04/2013 00:00:00,"30216765",698.53,"COMENSURA LTD"
"Bracknell Forest Council","http://opendatacommunities.org/id/unitary-authority/bracknell-forest","Bracknell Forest Council","00MA","Other School Related Education Services","Special Education","SEN Staff","Agency",17/04/2013 00:00:00,"30216765",750,"COMENSURA LTD"
"Bracknell Forest Council","http://opendatacommunities.org/id/unitary-authority/bracknell-forest","Bracknell Forest Council","00MA","Support Services & Management Costs","Quality Assurance","Contracts Team","Agency",17/04/2013 00:00:00,"30216765",772.7,"COMENSURA LTD"
"Bracknell Forest Council","http://opendatacommunities.org/id/unitary-authority/bracknell-forest","Bracknell Forest Council","00MA","Older People (Aged 65 or Over)","Other Services To Older People","Winter Pressures 12/13","Agency",17/04/2013 00:00:00,"30216765",1014.32,"COMENSURA LTD"
"Bracknell Forest Council","http://opendatacommunities.org/id/unitary-authority/bracknell-forest","Bracknell Forest Council","00MA","Older People (Aged 65 or Over)","Other Services To Older People","Winter Pressures 12/13","Agency",17/04/2013 00:00:00,"30216765",1030.82,"COMENSURA LTD"
"Bracknell Forest Council","http://opendatacommunities.org/id/unitary-authority/bracknell-forest","Bracknell Forest Council","00MA","Older People (Aged 65 or Over)","Assessment & Care Management","Short Term Services - Social Work","Agency",17/04/2013 00:00:00,"30216765",1044.16,"COMENSURA LTD"
"Bracknell Forest Council","http://opendatacommunities.org/id/unitary-authority/bracknell-forest","Bracknell Forest Council","00MA","Older People (Aged 65 or Over)","Other Services To Older People","Winter Pressures 12/13","Agency",17/04/2013 00:00:00,"30216765",1045.9,"COMENSURA LTD"
"Bracknell Forest Council","http://opendatacommunities.org/id/unitary-authority/bracknell-forest","Bracknell Forest Council","00MA","Older People (Aged 65 or Over)","Assessment & Care Management","Short Term Services - Social Work","Agency",17/04/2013 00:00:00,"30216765",1070.43,"COMENSURA LTD"
"Bracknell Forest Council","http://opendatacommunities.org/id/unitary-authority/bracknell-forest","Bracknell Forest Council","00MA","Mental Health Needs (Under 65)","Assessment & Care Management","CMHT","Agency",17/04/2013 00:00:00,"30216765",1076.4,"COMENSURA LTD"
"Bracknell Forest Council","http://opendatacommunities.org/id/unitary-authority/bracknell-forest","Bracknell Forest Council","00MA","Older People (Aged 65 or Over)","Residential Care Home Placements","Bridgewell Unit","Agency",17/04/2013 00:00:00,"30216765",1139.97,"COMENSURA LTD"
"Bracknell Forest Council","http://opendatacommunities.org/id/unitary-authority/bracknell-forest","Bracknell Forest Council","00MA","Commissioning and Social Work","Commissioning and Social Work","Children & Family Duty Team","Agency",17/04/2013 00:00:00,"30216765",1205.82,"COMENSURA LTD"
"Bracknell Forest Council","http://opendatacommunities.org/id/unitary-authority/bracknell-forest","Bracknell Forest Council","00MA","Older People (Aged 65 or Over)","Assessment & Care Management","Short Term Services - Social Work","Agency",17/04/2013 00:00:00,"30216765",1242.9,"COMENSURA LTD"
"Bracknell Forest Council","http://opendatacommunities.org/id/unitary-authority/bracknell-forest","Bracknell Forest Council","00MA","Older People (Aged 65 or Over)","Assessment & Care Management","Short Term Services - Social Work","Agency",17/04/2013 00:00:00,"30216765",1327.84,"COMENSURA LTD"
"Bracknell Forest Council","http://opendatacommunities.org/id/unitary-authority/bracknell-forest","Bracknell Forest Council","00MA","Mental Health Needs (Under 65)","Assessment & Care Management","CMHT","Agency",17/04/2013 00:00:00,"30216765",1345.5,"COMENSURA LTD"
"Bracknell Forest Council","http://opendatacommunities.org/id/unitary-authority/bracknell-forest","Bracknell Forest Council","00MA","Commissioning and Social Work","Commissioning and Social Work","Children Aged Under 11","Agency",17/04/2013 00:00:00,"30216765",1366.4,"COMENSURA LTD"
"Bracknell Forest Council","http://opendatacommunities.org/id/unitary-authority/bracknell-forest","Bracknell Forest Council","00MA","Commissioning and Social Work","Commissioning and Social Work","Children Aged Under 11","Agency",17/04/2013 00:00:00,"30216765",1408.1,"COMENSURA LTD"
"Bracknell Forest Council","http://opendatacommunities.org/id/unitary-authority/bracknell-forest","Bracknell Forest Council","00MA","Mental Health Needs (Under 65)","Assessment & Care Management","CMHT","Agency",17/04/2013 00:00:00,"30216765",1513.72,"COMENSURA LTD"
"Bracknell Forest Council","http://opendatacommunities.org/id/unitary-authority/bracknell-forest","Bracknell Forest Council","00MA","Older People (Aged 65 or Over)","Assessment & Care Management","Enhanced Intermediate Care","Agency",24/04/2013 00:00:00,"30217617",1.35,"COMENSURA LTD"
"Bracknell Forest Council","http://opendatacommunities.org/id/unitary-authority/bracknell-forest","Bracknell Forest Council","00MA","Older People (Aged 65 or Over)","Assessment & Care Management","Short Term Services - Social Work","Agency",24/04/2013 00:00:00,"30217617",6.3,"COMENSURA LTD"
"Bracknell Forest Council","http://opendatacommunities.org/id/unitary-authority/bracknell-forest","Bracknell Forest Council","00MA","Mental Health Needs (Under 65)","Assessment & Care Management","CMHT","Agency",24/04/2013 00:00:00,"30217617",8.1,"COMENSURA LTD"
"Bracknell Forest Council","http://opendatacommunities.org/id/unitary-authority/bracknell-forest","Bracknell Forest Council","00MA","Older People (Aged 65 or Over)","Assessment & Care Management","Short Term Services - Social Work","Agency",24/04/2013 00:00:00,"30217617",11.25,"COMENSURA LTD"
"Bracknell Forest Council","http://opendatacommunities.org/id/unitary-authority/bracknell-forest","Bracknell Forest Council","00MA","Older People (Aged 65 or Over)","Other Services To Older People","Winter Pressures 12/13","Agency",24/04/2013 00:00:00,"30217617",12.15,"COMENSURA LTD"
"Bracknell Forest Council","http://opendatacommunities.org/id/unitary-authority/bracknell-forest","Bracknell Forest Council","00MA","Older People (Aged 65 or Over)","Assessment & Care Management","Short Term Services - Social Work","Agency",24/04/2013 00:00:00,"30217617",13.05,"COMENSURA LTD"
"Bracknell Forest Council","http://opendatacommunities.org/id/unitary-authority/bracknell-forest","Bracknell Forest Council","00MA","Older People (Aged 65 or Over)","Assessment & Care Management","Short Term Services - Social Work","Agency",24/04/2013 00:00:00,"30217617",20.7,"COMENSURA LTD"
"Bracknell Forest Council","http://opendatacommunities.org/id/unitary-authority/bracknell-forest","Bracknell Forest Council","00MA","Older People (Aged 65 or Over)","Other Services To Older People","Winter Pressures 12/13","Agency",24/04/2013 00:00:00,"30217617",24.3,"COMENSURA LTD"
"Bracknell Forest Council","http://opendatacommunities.org/id/unitary-authority/bracknell-forest","Bracknell Forest Council","00MA","Older People (Aged 65 or Over)","Assessment & Care Management","Short Term Services - Social Work","Agency",24/04/2013 00:00:00,"30217617",36,"COMENSURA LTD"
"Bracknell Forest Council","http://opendatacommunities.org/id/unitary-authority/bracknell-forest","Bracknell Forest Council","00MA","Older People (Aged 65 or Over)","Residential Care Home Placements","Heathlands EPH","Agency",24/04/2013 00:00:00,"30217617",51.3,"COMENSURA LTD"
"Bracknell Forest Council","http://opendatacommunities.org/id/unitary-authority/bracknell-forest","Bracknell Forest Council","00MA","Mental Health Needs (Under 65)","Assessment & Care Management","CMHT","Agency",24/04/2013 00:00:00,"30217617",107.55,"COMENSURA LTD"
"Bracknell Forest Council","http://opendatacommunities.org/id/unitary-authority/bracknell-forest","Bracknell Forest Council","00MA","Older People (Aged 65 or Over)","Residential Care Home Placements","Heathlands EPH","Agency",24/04/2013 00:00:00,"30217617",112.86,"COMENSURA LTD"
"Bracknell Forest Council","http://opendatacommunities.org/id/unitary-authority/bracknell-forest","Bracknell Forest Council","00MA","Older People (Aged 65 or Over)","Residential Care Home Placements","Heathlands EPH","Agency",24/04/2013 00:00:00,"30217617",215.46,"COMENSURA LTD"
"Bracknell Forest Council","http://opendatacommunities.org/id/unitary-authority/bracknell-forest","Bracknell Forest Council","00MA","Older People (Aged 65 or Over)","Residential Care Home Placements","Heathlands EPH","Agency",24/04/2013 00:00:00,"30217617",253.5,"COMENSURA LTD"
"Bracknell Forest Council","http://opendatacommunities.org/id/unitary-authority/bracknell-forest","Bracknell Forest Council","00MA","Older People (Aged 65 or Over)","Residential Care Home Placements","Heathlands EPH","Agency",24/04/2013 00:00:00,"30217617",264.76,"COMENSURA LTD"
"Bracknell Forest Council","http://opendatacommunities.org/id/unitary-authority/bracknell-forest","Bracknell Forest Council","00MA","Older People (Aged 65 or Over)","Residential Care Home Placements","Heathlands EPH","Agency",24/04/2013 00:00:00,"30217617",265.56,"COMENSURA LTD"
"Bracknell Forest Council","http://opendatacommunities.org/id/unitary-authority/bracknell-forest","Bracknell Forest Council","00MA","Older People (Aged 65 or Over)","Residential Care Home Placements","Heathlands EPH","Agency",24/04/2013 00:00:00,"30217617",300.67,"COMENSURA LTD"
"Bracknell Forest Council","http://opendatacommunities.org/id/unitary-authority/bracknell-forest","Bracknell Forest Council","00MA","Older People (Aged 65 or Over)","Residential Care Home Placements","Heathlands EPH","Agency",24/04/2013 00:00:00,"30217617",387.48,"COMENSURA LTD"
"Bracknell Forest Council","http://opendatacommunities.org/id/unitary-authority/bracknell-forest","Bracknell Forest Council","00MA","Management and Support Services - CYPL","Strategy, Resources and Early Interventions","Admissions","Agency",24/04/2013 00:00:00,"30217617",396.75,"COMENSURA LTD"
"Bracknell Forest Council","http://opendatacommunities.org/id/unitary-authority/bracknell-forest","Bracknell Forest Council","00MA","Older People (Aged 65 or Over)","Assessment & Care Management","Short Term Services - Social Work","Agency",24/04/2013 00:00:00,"30217617",403.35,"COMENSURA LTD"
"Bracknell Forest Council","http://opendatacommunities.org/id/unitary-authority/bracknell-forest","Bracknell Forest Council","00MA","Older People (Aged 65 or Over)","Residential Care Home Placements","Heathlands EPH","Agency",24/04/2013 00:00:00,"30217617",405.07,"COMENSURA LTD"
"Bracknell Forest Council","http://opendatacommunities.org/id/unitary-authority/bracknell-forest","Bracknell Forest Council","00MA","Support Services & Management Costs","Personnel/HRM","Human Resources","Agency",24/04/2013 00:00:00,"30217617",460.59,"COMENSURA LTD"
"Bracknell Forest Council","http://opendatacommunities.org/id/unitary-authority/bracknell-forest","Bracknell Forest Council","00MA","Older People (Aged 65 or Over)","Assessment & Care Management","Short Term Services - Social Work","Agency",24/04/2013 00:00:00,"30217617",557.6,"COMENSURA LTD"
"Bracknell Forest Council","http://opendatacommunities.org/id/unitary-authority/bracknell-forest","Bracknell Forest Council","00MA","Older People (Aged 65 or Over)","Assessment & Care Management","Enhanced Intermediate Care","Agency",24/04/2013 00:00:00,"30217617",577.94,"COMENSURA LTD"
"Bracknell Forest Council","http://opendatacommunities.org/id/unitary-authority/bracknell-forest","Bracknell Forest Council","00MA","Other School Related Education Services","Special Education","SEN Staff","Agency",24/04/2013 00:00:00,"30217617",600,"COMENSURA LTD"
"Bracknell Forest Council","http://opendatacommunities.org/id/unitary-authority/bracknell-forest","Bracknell Forest Council","00MA","Older People (Aged 65 or Over)","Other Services To Older People","Winter Pressures 12/13","Agency",24/04/2013 00:00:00,"30217617",627.54,"COMENSURA LTD"
"Bracknell Forest Council","http://opendatacommunities.org/id/unitary-authority/bracknell-forest","Bracknell Forest Council","00MA","Older People (Aged 65 or Over)","Assessment & Care Management","Short Term Services - Social Work","Agency",24/04/2013 00:00:00,"30217617",655.44,"COMENSURA LTD"
"Bracknell Forest Council","http://opendatacommunities.org/id/unitary-authority/bracknell-forest","Bracknell Forest Council","00MA","Older People (Aged 65 or Over)","Assessment & Care Management","Short Term Services - Social Work","Agency",24/04/2013 00:00:00,"30217617",655.44,"COMENSURA LTD"
"Bracknell Forest Council","http://opendatacommunities.org/id/unitary-authority/bracknell-forest","Bracknell Forest Council","00MA","Support Services & Management Costs","Quality Assurance","Contracts Team","Agency",24/04/2013 00:00:00,"30217617",757.72,"COMENSURA LTD"
"Bracknell Forest Council","http://opendatacommunities.org/id/unitary-authority/bracknell-forest","Bracknell Forest Council","00MA","Older People (Aged 65 or Over)","Assessment & Care Management","Short Term Services - Social Work","Agency",24/04/2013 00:00:00,"30217617",828.6,"COMENSURA LTD"
"Bracknell Forest Council","http://opendatacommunities.org/id/unitary-authority/bracknell-forest","Bracknell Forest Council","00MA","Older People (Aged 65 or Over)","Assessment & Care Management","Short Term Services - Social Work","Agency",24/04/2013 00:00:00,"30217617",927.2,"COMENSURA LTD"
"Bracknell Forest Council","http://opendatacommunities.org/id/unitary-authority/bracknell-forest","Bracknell Forest Council","00MA","Commissioning and Social Work","Commissioning and Social Work","Children Aged Under 11","Agency",24/04/2013 00:00:00,"30217617",995.06,"COMENSURA LTD"
"Bracknell Forest Council","http://opendatacommunities.org/id/unitary-authority/bracknell-forest","Bracknell Forest Council","00MA","Older People (Aged 65 or Over)","Other Services To Older People","Winter Pressures 12/13","Agency",24/04/2013 00:00:00,"30217617",1030.82,"COMENSURA LTD"
"Bracknell Forest Council","http://opendatacommunities.org/id/unitary-authority/bracknell-forest","Bracknell Forest Council","00MA","Housing Benefits Administration","Housing Benefits Administration","Benefits Administration","Agency",24/04/2013 00:00:00,"30217617",1106.35,"COMENSURA LTD"
"Bracknell Forest Council","http://opendatacommunities.org/id/unitary-authority/bracknell-forest","Bracknell Forest Council","00MA","Older People (Aged 65 or Over)","Residential Care Home Placements","Bridgewell Unit","Agency",24/04/2013 00:00:00,"30217617",1132.75,"COMENSURA LTD"
"Bracknell Forest Council","http://opendatacommunities.org/id/unitary-authority/bracknell-forest","Bracknell Forest Council","00MA","Older People (Aged 65 or Over)","Assessment & Care Management","Short Term Services - Social Work","Agency",24/04/2013 00:00:00,"30217617",1142.56,"COMENSURA LTD"
"Bracknell Forest Council","http://opendatacommunities.org/id/unitary-authority/bracknell-forest","Bracknell Forest Council","00MA","Older People (Aged 65 or Over)","Other Services To Older People","Winter Pressures 12/13","Agency",24/04/2013 00:00:00,"30217617",1267.9,"COMENSURA LTD"
"Bracknell Forest Council","http://opendatacommunities.org/id/unitary-authority/bracknell-forest","Bracknell Forest Council","00MA","Mental Health Needs (Under 65)","Assessment & Care Management","CMHT","Agency",24/04/2013 00:00:00,"30217617",1345.5,"COMENSURA LTD"
"Bracknell Forest Council","http://opendatacommunities.org/id/unitary-authority/bracknell-forest","Bracknell Forest Council","00MA","Commissioning and Social Work","Commissioning and Social Work","Children & Family Duty Team","Agency",24/04/2013 00:00:00,"30217617",1351.98,"COMENSURA LTD"
"Bracknell Forest Council","http://opendatacommunities.org/id/unitary-authority/bracknell-forest","Bracknell Forest Council","00MA","Commissioning and Social Work","Commissioning and Social Work","Children Aged Under 11","Agency",24/04/2013 00:00:00,"30217617",1444.48,"COMENSURA LTD"
"Bracknell Forest Council","http://opendatacommunities.org/id/unitary-authority/bracknell-forest","Bracknell Forest Council","00MA","Mental Health Needs (Under 65)","Assessment & Care Management","CMHT","Agency",24/04/2013 00:00:00,"30217617",1513.72,"COMENSURA LTD"
"Bracknell Forest Council","http://opendatacommunities.org/id/unitary-authority/bracknell-forest","Bracknell Forest Council","00MA","Learning Disability (under 65)","Day Care","Bracknell Day Services","Agency",01/05/2013 00:00:00,"30218338",-71.47,"COMENSURA LTD"
"Bracknell Forest Council","http://opendatacommunities.org/id/unitary-authority/bracknell-forest","Bracknell Forest Council","00MA","Older People (Aged 65 or Over)","Residential Care Home Placements","Bridgewell Unit","Agency",01/05/2013 00:00:00,"30218338",2.25,"COMENSURA LTD"
"Bracknell Forest Council","http://opendatacommunities.org/id/unitary-authority/bracknell-forest","Bracknell Forest Council","00MA","Older People (Aged 65 or Over)","Assessment & Care Management","Short Term Services - Social Work","Agency",01/05/2013 00:00:00,"30218338",9,"COMENSURA LTD"
"Bracknell Forest Council","http://opendatacommunities.org/id/unitary-authority/bracknell-forest","Bracknell Forest Council","00MA","Older People (Aged 65 or Over)","Assessment & Care Management","Short Term Services - Social Work","Agency",01/05/2013 00:00:00,"30218338",9.45,"COMENSURA LTD"
"Bracknell Forest Council","http://opendatacommunities.org/id/unitary-authority/bracknell-forest","Bracknell Forest Council","00MA","Older People (Aged 65 or Over)","Assessment & Care Management","Short Term Services - Social Work","Agency",01/05/2013 00:00:00,"30218338",11.7,"COMENSURA LTD"
"Bracknell Forest Council","http://opendatacommunities.org/id/unitary-authority/bracknell-forest","Bracknell Forest Council","00MA","Older People (Aged 65 or Over)","Assessment & Care Management","Short Term Services - Social Work","Agency",01/05/2013 00:00:00,"30218338",14.4,"COMENSURA LTD"
"Bracknell Forest Council","http://opendatacommunities.org/id/unitary-authority/bracknell-forest","Bracknell Forest Council","00MA","Older People (Aged 65 or Over)","Other Services To Older People","Winter Pressures 12/13","Agency",01/05/2013 00:00:00,"30218338",16.2,"COMENSURA LTD"
"Bracknell Forest Council","http://opendatacommunities.org/id/unitary-authority/bracknell-forest","Bracknell Forest Council","00MA","Commissioning and Social Work","Commissioning and Social Work","Children Aged Under 11","Agency",01/05/2013 00:00:00,"30218338",17.1,"COMENSURA LTD"
"Bracknell Forest Council","http://opendatacommunities.org/id/unitary-authority/bracknell-forest","Bracknell Forest Council","00MA","Older People (Aged 65 or Over)","Other Services To Older People","Winter Pressures 12/13","Agency",01/05/2013 00:00:00,"30218338",19.35,"COMENSURA LTD"
"Bracknell Forest Council","http://opendatacommunities.org/id/unitary-authority/bracknell-forest","Bracknell Forest Council","00MA","Older People (Aged 65 or Over)","Assessment & Care Management","Short Term Services - Social Work","Agency",01/05/2013 00:00:00,"30218338",19.8,"COMENSURA LTD"
"Bracknell Forest Council","http://opendatacommunities.org/id/unitary-authority/bracknell-forest","Bracknell Forest Council","00MA","Mental Health Needs (Under 65)","Assessment & Care Management","CMHT","Agency",01/05/2013 00:00:00,"30218338",22.05,"COMENSURA LTD"
"Bracknell Forest Council","http://opendatacommunities.org/id/unitary-authority/bracknell-forest","Bracknell Forest Council","00MA","Commissioning and Social Work","Commissioning and Social Work","Children Aged Under 11","Agency",01/05/2013 00:00:00,"30218338",24.75,"COMENSURA LTD"
"Bracknell Forest Council","http://opendatacommunities.org/id/unitary-authority/bracknell-forest","Bracknell Forest Council","00MA","Older People (Aged 65 or Over)","Assessment & Care Management","Short Term Services - Social Work","Agency",01/05/2013 00:00:00,"30218338",29.7,"COMENSURA LTD"
"Bracknell Forest Council","http://opendatacommunities.org/id/unitary-authority/bracknell-forest","Bracknell Forest Council","00MA","Older People (Aged 65 or Over)","Residential Care Home Placements","Heathlands EPH","Agency",01/05/2013 00:00:00,"30218338",51.3,"COMENSURA LTD"
"Bracknell Forest Council","http://opendatacommunities.org/id/unitary-authority/bracknell-forest","Bracknell Forest Council","00MA","Children Looked After","Other children looked after services","Larchwood","Agency",01/05/2013 00:00:00,"30218338",70.74,"COMENSURA LTD"
"Bracknell Forest Council","http://opendatacommunities.org/id/unitary-authority/bracknell-forest","Bracknell Forest Council","00MA","Older People (Aged 65 or Over)","Residential Care Home Placements","Heathlands EPH","Agency",01/05/2013 00:00:00,"30218338",76.95,"COMENSURA LTD"
"Bracknell Forest Council","http://opendatacommunities.org/id/unitary-authority/bracknell-forest","Bracknell Forest Council","00MA","Older People (Aged 65 or Over)","Other Services To Older People","Winter Pressures 12/13","Agency",01/05/2013 00:00:00,"30218338",101.25,"COMENSURA LTD"
"Bracknell Forest Council","http://opendatacommunities.org/id/unitary-authority/bracknell-forest","Bracknell Forest Council","00MA","Children Looked After","Other children looked after services","Larchwood","Agency",01/05/2013 00:00:00,"30218338",117.9,"COMENSURA LTD"
"Bracknell Forest Council","http://opendatacommunities.org/id/unitary-authority/bracknell-forest","Bracknell Forest Council","00MA","Children Looked After","Other children looked after services","Larchwood","Agency",01/05/2013 00:00:00,"30218338",117.9,"COMENSURA LTD"
"Bracknell Forest Council","http://opendatacommunities.org/id/unitary-authority/bracknell-forest","Bracknell Forest Council","00MA","Learning Disability (under 65)","Day Care","Bracknell Day Services","Agency",01/05/2013 00:00:00,"30218338",150.9,"COMENSURA LTD"
"Bracknell Forest Council","http://opendatacommunities.org/id/unitary-authority/bracknell-forest","Bracknell Forest Council","00MA","Learning Disability (under 65)","Day Care","Bracknell Day Services","Agency",01/05/2013 00:00:00,"30218338",153.9,"COMENSURA LTD"
"Bracknell Forest Council","http://opendatacommunities.org/id/unitary-authority/bracknell-forest","Bracknell Forest Council","00MA","Learning Disability (under 65)","Day Care","Bracknell Day Services","Agency",01/05/2013 00:00:00,"30218338",194.94,"COMENSURA LTD"
"Bracknell Forest Council","http://opendatacommunities.org/id/unitary-authority/bracknell-forest","Bracknell Forest Council","00MA","Learning Disability (under 65)","Day Care","Bracknell Day Services","Agency",01/05/2013 00:00:00,"30218338",230.85,"COMENSURA LTD"
"Bracknell Forest Council","http://opendatacommunities.org/id/unitary-authority/bracknell-forest","Bracknell Forest Council","00MA","Learning Disability (under 65)","Day Care","Bracknell Day Services","Agency",01/05/2013 00:00:00,"30218338",235.28,"COMENSURA LTD"
"Bracknell Forest Council","http://opendatacommunities.org/id/unitary-authority/bracknell-forest","Bracknell Forest Council","00MA","Management and Support Services - CYPL","Strategy, Resources and Early Interventions","Admissions","Agency",01/05/2013 00:00:00,"30218338",240.7,"COMENSURA LTD"
"Bracknell Forest Council","http://opendatacommunities.org/id/unitary-authority/bracknell-forest","Bracknell Forest Council","00MA","Learning Disability (under 65)","Day Care","Bracknell Day Services","Agency",01/05/2013 00:00:00,"30218338",277.02,"COMENSURA LTD"
"Bracknell Forest Council","http://opendatacommunities.org/id/unitary-authority/bracknell-forest","Bracknell Forest Council","00MA","Older People (Aged 65 or Over)","Residential Care Home Placements","Heathlands EPH","Agency",01/05/2013 00:00:00,"30218338",277.78,"COMENSURA LTD"
"Bracknell Forest Council","http://opendatacommunities.org/id/unitary-authority/bracknell-forest","Bracknell Forest Council","00MA","Older People (Aged 65 or Over)","Residential Care Home Placements","Bridgewell Unit","Agency",01/05/2013 00:00:00,"30218338",355.84,"COMENSURA LTD"
"Bracknell Forest Council","http://opendatacommunities.org/id/unitary-authority/bracknell-forest","Bracknell Forest Council","00MA","Older People (Aged 65 or Over)","Residential Care Home Placements","Heathlands EPH","Agency",01/05/2013 00:00:00,"30218338",360.87,"COMENSURA LTD"
"Bracknell Forest Council","http://opendatacommunities.org/id/unitary-authority/bracknell-forest","Bracknell Forest Council","00MA","Older People (Aged 65 or Over)","Residential Care Home Placements","Heathlands EPH","Agency",01/05/2013 00:00:00,"30218338",363.43,"COMENSURA LTD"
"Bracknell Forest Council","http://opendatacommunities.org/id/unitary-authority/bracknell-forest","Bracknell Forest Council","00MA","Support Services & Management Costs","Personnel/HRM","Human Resources","Agency",01/05/2013 00:00:00,"30218338",392.68,"COMENSURA LTD"
"Bracknell Forest Council","http://opendatacommunities.org/id/unitary-authority/bracknell-forest","Bracknell Forest Council","00MA","Older People (Aged 65 or Over)","Assessment & Care Management","Short Term Services - Social Work","Agency",01/05/2013 00:00:00,"30218338",436.96,"COMENSURA LTD"
"Bracknell Forest Council","http://opendatacommunities.org/id/unitary-authority/bracknell-forest","Bracknell Forest Council","00MA","Older People (Aged 65 or Over)","Assessment & Care Management","Short Term Services - Social Work","Agency",01/05/2013 00:00:00,"30218338",446.08,"COMENSURA LTD"
"Bracknell Forest Council","http://opendatacommunities.org/id/unitary-authority/bracknell-forest","Bracknell Forest Council","00MA","Support Services & Management Costs","Management and Administration","Head of Service -Adults","Agency",01/05/2013 00:00:00,"30218338",455.46,"COMENSURA LTD"
"Bracknell Forest Council","http://opendatacommunities.org/id/unitary-authority/bracknell-forest","Bracknell Forest Council","00MA","Learning Disability (under 65)","Day Care","Bracknell Day Services","Agency",01/05/2013 00:00:00,"30218338",461.7,"COMENSURA LTD"
"Bracknell Forest Council","http://opendatacommunities.org/id/unitary-authority/bracknell-forest","Bracknell Forest Council","00MA","Older People (Aged 65 or Over)","Residential Care Home Placements","Bridgewell Unit","Agency",01/05/2013 00:00:00,"30218338",499.3,"COMENSURA LTD"
"Bracknell Forest Council","http://opendatacommunities.org/id/unitary-authority/bracknell-forest","Bracknell Forest Council","00MA","Learning Disability (under 65)","Day Care","Bracknell Day Services","Agency",01/05/2013 00:00:00,"30218338",502.79,"COMENSURA LTD"
"Bracknell Forest Council","http://opendatacommunities.org/id/unitary-authority/bracknell-forest","Bracknell Forest Council","00MA","Older People (Aged 65 or Over)","Residential Care Home Placements","Heathlands EPH","Agency",01/05/2013 00:00:00,"30218338",531.94,"COMENSURA LTD"
"Bracknell Forest Council","http://opendatacommunities.org/id/unitary-authority/bracknell-forest","Bracknell Forest Council","00MA","Older People (Aged 65 or Over)","Assessment & Care Management","Short Term Services - Social Work","Agency",01/05/2013 00:00:00,"30218338",564.69,"COMENSURA LTD"
"Bracknell Forest Council","http://opendatacommunities.org/id/unitary-authority/bracknell-forest","Bracknell Forest Council","00MA","Older People (Aged 65 or Over)","Residential Care Home Placements","Bridgewell Unit","Agency",01/05/2013 00:00:00,"30218338",601.24,"COMENSURA LTD"
"Bracknell Forest Council","http://opendatacommunities.org/id/unitary-authority/bracknell-forest","Bracknell Forest Council","00MA","Older People (Aged 65 or Over)","Assessment & Care Management","Short Term Services - Social Work","Agency",01/05/2013 00:00:00,"30218338",621.45,"COMENSURA LTD"
"Bracknell Forest Council","http://opendatacommunities.org/id/unitary-authority/bracknell-forest","Bracknell Forest Council","00MA","Support Services & Management Costs","Quality Assurance","Contracts Team","Agency",01/05/2013 00:00:00,"30218338",633.1,"COMENSURA LTD"
"Bracknell Forest Council","http://opendatacommunities.org/id/unitary-authority/bracknell-forest","Bracknell Forest Council","00MA","Older People (Aged 65 or Over)","Assessment & Care Management","Enhanced Intermediate Care","Agency",01/05/2013 00:00:00,"30218338",796.62,"COMENSURA LTD"
"Bracknell Forest Council","http://opendatacommunities.org/id/unitary-authority/bracknell-forest","Bracknell Forest Council","00MA","Older People (Aged 65 or Over)","Assessment & Care Management","Short Term Services - Social Work","Agency",01/05/2013 00:00:00,"30218338",832.08,"COMENSURA LTD"
"Bracknell Forest Council","http://opendatacommunities.org/id/unitary-authority/bracknell-forest","Bracknell Forest Council","00MA","Commissioning and Social Work","Commissioning and Social Work","Children Aged Under 11","Agency",01/05/2013 00:00:00,"30218338",840.42,"COMENSURA LTD"
"Bracknell Forest Council","http://opendatacommunities.org/id/unitary-authority/bracknell-forest","Bracknell Forest Council","00MA","Older People (Aged 65 or Over)","Assessment & Care Management","Short Term Services - Social Work","Agency",01/05/2013 00:00:00,"30218338",957.12,"COMENSURA LTD"
"Bracknell Forest Council","http://opendatacommunities.org/id/unitary-authority/bracknell-forest","Bracknell Forest Council","00MA","Older People (Aged 65 or Over)","Other Services To Older People","Winter Pressures 12/13","Agency",01/05/2013 00:00:00,"30218338",1030.82,"COMENSURA LTD"
"Bracknell Forest Council","http://opendatacommunities.org/id/unitary-authority/bracknell-forest","Bracknell Forest Council","00MA","Older People (Aged 65 or Over)","Assessment & Care Management","Short Term Services - Social Work","Agency",01/05/2013 00:00:00,"30218338",1044.16,"COMENSURA LTD"
"Bracknell Forest Council","http://opendatacommunities.org/id/unitary-authority/bracknell-forest","Bracknell Forest Council","00MA","Older People (Aged 65 or Over)","Other Services To Older People","Winter Pressures 12/13","Agency",01/05/2013 00:00:00,"30218338",1044.75,"COMENSURA LTD"
"Bracknell Forest Council","http://opendatacommunities.org/id/unitary-authority/bracknell-forest","Bracknell Forest Council","00MA","Older People (Aged 65 or Over)","Other Services To Older People","Winter Pressures 12/13","Agency",01/05/2013 00:00:00,"30218338",1044.75,"COMENSURA LTD"
"Bracknell Forest Council","http://opendatacommunities.org/id/unitary-authority/bracknell-forest","Bracknell Forest Council","00MA","Older People (Aged 65 or Over)","Other Services To Older People","Winter Pressures 12/13","Agency",01/05/2013 00:00:00,"30218338",1044.75,"COMENSURA LTD"
"Bracknell Forest Council","http://opendatacommunities.org/id/unitary-authority/bracknell-forest","Bracknell Forest Council","00MA","Older People (Aged 65 or Over)","Other Services To Older People","Winter Pressures 12/13","Agency",01/05/2013 00:00:00,"30218338",1045.9,"COMENSURA LTD"
"Bracknell Forest Council","http://opendatacommunities.org/id/unitary-authority/bracknell-forest","Bracknell Forest Council","00MA","Housing Benefits Administration","Housing Benefits Administration","Benefits Administration","Agency",01/05/2013 00:00:00,"30218338",1113.98,"COMENSURA LTD"
"Bracknell Forest Council","http://opendatacommunities.org/id/unitary-authority/bracknell-forest","Bracknell Forest Council","00MA","Older People (Aged 65 or Over)","Residential Care Home Placements","Bridgewell Unit","Agency",01/05/2013 00:00:00,"30218338",1139.97,"COMENSURA LTD"
"Bracknell Forest Council","http://opendatacommunities.org/id/unitary-authority/bracknell-forest","Bracknell Forest Council","00MA","Older People (Aged 65 or Over)","Assessment & Care Management","Short Term Services - Social Work","Agency",01/05/2013 00:00:00,"30218338",1142.56,"COMENSURA LTD"
"Bracknell Forest Council","http://opendatacommunities.org/id/unitary-authority/bracknell-forest","Bracknell Forest Council","00MA","Older People (Aged 65 or Over)","Other Services To Older People","Winter Pressures 12/13","Agency",01/05/2013 00:00:00,"30218338",1267.9,"COMENSURA LTD"
"Bracknell Forest Council","http://opendatacommunities.org/id/unitary-authority/bracknell-forest","Bracknell Forest Council","00MA","Commissioning and Social Work","Commissioning and Social Work","Children Aged Under 11","Agency",01/05/2013 00:00:00,"30218338",1276.68,"COMENSURA LTD"
"Bracknell Forest Council","http://opendatacommunities.org/id/unitary-authority/bracknell-forest","Bracknell Forest Council","00MA","Mental Health Needs (Under 65)","Assessment & Care Management","CMHT","Agency",01/05/2013 00:00:00,"30218338",1345.5,"COMENSURA LTD"
"Bracknell Forest Council","http://opendatacommunities.org/id/unitary-authority/bracknell-forest","Bracknell Forest Council","00MA","Commissioning and Social Work","Commissioning and Social Work","Children Aged Under 11","Agency",01/05/2013 00:00:00,"30218338",1351.98,"COMENSURA LTD"
"Bracknell Forest Council","http://opendatacommunities.org/id/unitary-authority/bracknell-forest","Bracknell Forest Council","00MA","Commissioning and Social Work","Commissioning and Social Work","Children Aged Under 11","Agency",01/05/2013 00:00:00,"30218338",1351.98,"COMENSURA LTD"
"Bracknell Forest Council","http://opendatacommunities.org/id/unitary-authority/bracknell-forest","Bracknell Forest Council","00MA","Commissioning and Social Work","Commissioning and Social Work","Children Aged Under 11","Agency",01/05/2013 00:00:00,"30218338",1444.48,"COMENSURA LTD"
"Bracknell Forest Council","http://opendatacommunities.org/id/unitary-authority/bracknell-forest","Bracknell Forest Council","00MA","Commissioning and Social Work","Commissioning and Social Work","Children Aged Under 11","Agency",01/05/2013 00:00:00,"30218338",1444.48,"COMENSURA LTD"
"Bracknell Forest Council","http://opendatacommunities.org/id/unitary-authority/bracknell-forest","Bracknell Forest Council","00MA","","","Improvements & Capitalised Repairs (Council Wide)","Construction - Contract Payments",28/03/2013 00:00:00,"6515587",1497.98,"COMFORT BUILDING SERVICES"
"Bracknell Forest Council","http://opendatacommunities.org/id/unitary-authority/bracknell-forest","Bracknell Forest Council","00MA","Mental Health Needs (Under 65)","Supported and Other Accommodation","Supported Living - Mental Health","Contracted Services",16/04/2013 00:00:00,"30216589",2768.92,"COMFORT CARE SERVICES"
"Bracknell Forest Council","http://opendatacommunities.org/id/unitary-authority/bracknell-forest","Bracknell Forest Council","00MA","Early Years","Centrally managed Expenditure - Early Years","Early Years and Childcare","Grants and Donations",10/04/2013 00:00:00,"30216174",13379.96,"COMMUNITY CENTRE PRE SCHOOL"
"Bracknell Forest Council","http://opendatacommunities.org/id/unitary-authority/bracknell-forest","Bracknell Forest Council","00MA","Recreation, Sports and Leisure","Golf Courses","Leisure DSO - Downshire Golf Course","Materials",15/04/2013 00:00:00,"6515820",980,"COMPLETE WEED CONTROL"
"Bracknell Forest Council","http://opendatacommunities.org/id/unitary-authority/bracknell-forest","Bracknell Forest Council","00MA","Recreation, Sports and Leisure","Indoor Sports & Recreation Facilities","Leisure DSO - Leisure Centre","Grounds Maintenance Costs",25/04/2013 00:00:00,"6516794",1085,"COMPLETE WEED CONTROL"
"Bracknell Forest Council","http://opendatacommunities.org/id/unitary-authority/bracknell-forest","Bracknell Forest Council","00MA","Recreation, Sports and Leisure","Golf Courses","Leisure DSO - Downshire Golf Course","Materials",23/04/2013 00:00:00,"6516333",642.36,"CONSTRUCTION MATERIALS LTD"
"Bracknell Forest Council","http://opendatacommunities.org/id/unitary-authority/bracknell-forest","Bracknell Forest Council","00MA","","","Minor Works Programme","Construction - Other Direct Expenses",24/04/2013 00:00:00,"6516641",4800,"CONTROL MATTERS LTD"
"Bracknell Forest Council","http://opendatacommunities.org/id/unitary-authority/bracknell-forest","Bracknell Forest Council","00MA","Primary Schools","Delegated Primary School Budgets","Holly Spring - Junior","Gas",02/05/2013 00:00:00,"30218385",-268.1,"CORONA ENERGY RETAIL 4 LTD"
"Bracknell Forest Council","http://opendatacommunities.org/id/unitary-authority/bracknell-forest","Bracknell Forest Council","00MA","Primary Schools","Delegated Primary School Budgets","Holly Spring - Junior","Gas",02/05/2013 00:00:00,"30218385",-242.95,"CORONA ENERGY RETAIL 4 LTD"
"Bracknell Forest Council","http://opendatacommunities.org/id/unitary-authority/bracknell-forest","Bracknell Forest Council","00MA","Holding Accounts","Landscape Services","Landscape Services Operational","Gas",02/05/2013 00:00:00,"30218385",7.76,"CORONA ENERGY RETAIL 4 LTD"
"Bracknell Forest Council","http://opendatacommunities.org/id/unitary-authority/bracknell-forest","Bracknell Forest Council","00MA","Business Support","Premises Development","Great Hollands Shops","Gas",02/05/2013 00:00:00,"30218385",23.19,"CORONA ENERGY RETAIL 4 LTD"
"Bracknell Forest Council","http://opendatacommunities.org/id/unitary-authority/bracknell-forest","Bracknell Forest Council","00MA","Primary Schools","Delegated Primary School Budgets","St Joseph's - Catholic Primary","Gas",02/05/2013 00:00:00,"30218385",38.58,"CORONA ENERGY RETAIL 4 LTD"
"Bracknell Forest Council","http://opendatacommunities.org/id/unitary-authority/bracknell-forest","Bracknell Forest Council","00MA","Recreation, Sports and Leisure","Indoor Sports & Recreation Facilities","Recreation Staff Accommodation","Gas",02/05/2013 00:00:00,"30218385",49.2,"CORONA ENERGY RETAIL 4 LTD"
"Bracknell Forest Council","http://opendatacommunities.org/id/unitary-authority/bracknell-forest","Bracknell Forest Council","00MA","Libraries","Branch Libraries","Birch Hill Library","Gas",02/05/2013 00:00:00,"30218385",54.32,"CORONA ENERGY RETAIL 4 LTD"
"Bracknell Forest Council","http://opendatacommunities.org/id/unitary-authority/bracknell-forest","Bracknell Forest Council","00MA","Libraries","Branch Libraries","Great Hollands Library","Gas",02/05/2013 00:00:00,"30218385",58.54,"CORONA ENERGY RETAIL 4 LTD"
"Bracknell Forest Council","http://opendatacommunities.org/id/unitary-authority/bracknell-forest","Bracknell Forest Council","00MA","Open Spaces","Community Parks & Open Spaces","Lily Hill Park Maintenance","Gas",02/05/2013 00:00:00,"30218385",70.77,"CORONA ENERGY RETAIL 4 LTD"
"Bracknell Forest Council","http://opendatacommunities.org/id/unitary-authority/bracknell-forest","Bracknell Forest Council","00MA","Secondary Schools","Delegated Secondary Schools Budgets","Brakenhale - Secondary","Gas",02/05/2013 00:00:00,"30218385",70.93,"CORONA ENERGY RETAIL 4 LTD"
"Bracknell Forest Council","http://opendatacommunities.org/id/unitary-authority/bracknell-forest","Bracknell Forest Council","00MA","Early Years","Children's Centres","The Alders Children's Centre","Gas",02/05/2013 00:00:00,"30218385",71.02,"CORONA ENERGY RETAIL 4 LTD"
"Bracknell Forest Council","http://opendatacommunities.org/id/unitary-authority/bracknell-forest","Bracknell Forest Council","00MA","Libraries","Branch Libraries","Ascot Library","Gas",02/05/2013 00:00:00,"30218385",77.66,"CORONA ENERGY RETAIL 4 LTD"
"Bracknell Forest Council","http://opendatacommunities.org/id/unitary-authority/bracknell-forest","Bracknell Forest Council","00MA","Primary Schools","Delegated Primary School Budgets","Ascot Heath - Junior","Gas",02/05/2013 00:00:00,"30218385",79.52,"CORONA ENERGY RETAIL 4 LTD"
"Bracknell Forest Council","http://opendatacommunities.org/id/unitary-authority/bracknell-forest","Bracknell Forest Council","00MA","Primary Schools","Delegated Primary School Budgets","Holly Spring - Junior","Gas",02/05/2013 00:00:00,"30218385",86.15,"CORONA ENERGY RETAIL 4 LTD"
"Bracknell Forest Council","http://opendatacommunities.org/id/unitary-authority/bracknell-forest","Bracknell Forest Council","00MA","Primary Schools","Delegated Primary School Budgets","Holly Spring - Junior","Gas",02/05/2013 00:00:00,"30218385",89.45,"CORONA ENERGY RETAIL 4 LTD"
"Bracknell Forest Council","http://opendatacommunities.org/id/unitary-authority/bracknell-forest","Bracknell Forest Council","00MA","Primary Schools","Delegated Primary School Budgets","Holly Spring - Junior","Gas",02/05/2013 00:00:00,"30218385",92.46,"CORONA ENERGY RETAIL 4 LTD"
"Bracknell Forest Council","http://opendatacommunities.org/id/unitary-authority/bracknell-forest","Bracknell Forest Council","00MA","Primary Schools","Delegated Primary School Budgets","Harmans Water - Primary","Gas",02/05/2013 00:00:00,"30218385",93.3,"CORONA ENERGY RETAIL 4 LTD"
"Bracknell Forest Council","http://opendatacommunities.org/id/unitary-authority/bracknell-forest","Bracknell Forest Council","00MA","Libraries","Branch Libraries","Harmans Water Library","Gas",02/05/2013 00:00:00,"30218385",100.46,"CORONA ENERGY RETAIL 4 LTD"
"Bracknell Forest Council","http://opendatacommunities.org/id/unitary-authority/bracknell-forest","Bracknell Forest Council","00MA","Learning Disability (under 65)","Residential Care Home Placements","Waymead - Short Stay","Gas",02/05/2013 00:00:00,"30218385",119.47,"CORONA ENERGY RETAIL 4 LTD"
"Bracknell Forest Council","http://opendatacommunities.org/id/unitary-authority/bracknell-forest","Bracknell Forest Council","00MA","Primary Schools","Delegated Primary School Budgets","New Scotland Hill - Primary","Gas",02/05/2013 00:00:00,"30218385",135.15,"CORONA ENERGY RETAIL 4 LTD"
"Bracknell Forest Council","http://opendatacommunities.org/id/unitary-authority/bracknell-forest","Bracknell Forest Council","00MA","Recreation, Sports and Leisure","Indoor Sports & Recreation Facilities","Recreation Staff Accommodation","Gas",02/05/2013 00:00:00,"30218385",137.23,"CORONA ENERGY RETAIL 4 LTD"
"Bracknell Forest Council","http://opendatacommunities.org/id/unitary-authority/bracknell-forest","Bracknell Forest Council","00MA","Libraries","Branch Libraries","Crowthorne Library","Gas",02/05/2013 00:00:00,"30218385",148.83,"CORONA ENERGY RETAIL 4 LTD"
"Bracknell Forest Council","http://opendatacommunities.org/id/unitary-authority/bracknell-forest","Bracknell Forest Council","00MA","Older People (Aged 65 or Over)","Home Care","Home Care-Elderly","Contracted Services",18/04/2013 00:00:00,"30216940",2139.7,"GOLDEN ROSE COMMUNITY CENTRE"
"Bracknell Forest Council","http://opendatacommunities.org/id/unitary-authority/bracknell-forest","Bracknell Forest Council","00MA","Older People (Aged 65 or Over)","Home Care","Home Care-Elderly","Contracted Services",18/04/2013 00:00:00,"30216940",2263.4,"GOLDEN ROSE COMMUNITY CENTRE"
"Bracknell Forest Council","http://opendatacommunities.org/id/unitary-authority/bracknell-forest","Bracknell Forest Council","00MA","Services to Young People","Other Services to Young People","Youth Centres Building Maintenance","R&M - Reactive",31/03/2013 00:00:00,"6515308",616.53,"GRAHAM ASSET MANAGEMENT LTD"
"Bracknell Forest Council","http://opendatacommunities.org/id/unitary-authority/bracknell-forest","Bracknell Forest Council","00MA","Services to Young People","Adult and Community Learning","Open Learning Centre - Brakenhale","R&M - Reactive",31/03/2013 00:00:00,"6515312",651.14,"GRAHAM ASSET MANAGEMENT LTD"
"Bracknell Forest Council","http://opendatacommunities.org/id/unitary-authority/bracknell-forest","Bracknell Forest Council","00MA","Holding Accounts not in Budget Book - COF","General Holding Accounts","Certificated Contract Payments","R&M - Reactive",31/03/2013 00:00:00,"6515342",760.02,"GRAHAM ASSET MANAGEMENT LTD"
"Bracknell Forest Council","http://opendatacommunities.org/id/unitary-authority/bracknell-forest","Bracknell Forest Council","00MA","Holding Accounts not in Budget Book - COF","General Holding Accounts","Certificated Contract Payments","R&M - Reactive",31/03/2013 00:00:00,"6515345",1163.44,"GRAHAM ASSET MANAGEMENT LTD"
"Bracknell Forest Council","http://opendatacommunities.org/id/unitary-authority/bracknell-forest","Bracknell Forest Council","00MA","Parking Services","Off Street Parking","Off Street Parking","R&M - Planned",31/03/2013 00:00:00,"6515351",1464.67,"GRAHAM ASSET MANAGEMENT LTD"
"Bracknell Forest Council","http://opendatacommunities.org/id/unitary-authority/bracknell-forest","Bracknell Forest Council","00MA","Recreation, Sports and Leisure","Community Centres","Community Centres Support","R&M - Reactive",31/03/2013 00:00:00,"6515352",814.29,"GRAHAM ASSET MANAGEMENT LTD"
"Bracknell Forest Council","http://opendatacommunities.org/id/unitary-authority/bracknell-forest","Bracknell Forest Council","00MA","Holding Accounts not in Budget Book - COF","General Holding Accounts","Certificated Contract Payments","R&M - Reactive",31/03/2013 00:00:00,"6515353",901.42,"GRAHAM ASSET MANAGEMENT LTD"
"Bracknell Forest Council","http://opendatacommunities.org/id/unitary-authority/bracknell-forest","Bracknell Forest Council","00MA","Holding Accounts not in Budget Book - COF","General Holding Accounts","Certificated Contract Payments","R&M - Reactive",31/03/2013 00:00:00,"6515354",625.97,"GRAHAM ASSET MANAGEMENT LTD"
"Bracknell Forest Council","http://opendatacommunities.org/id/unitary-authority/bracknell-forest","Bracknell Forest Council","00MA","Services to Young People","Adult and Community Learning","Open Learning Centre - Brakenhale","R&M - Reactive",31/03/2013 00:00:00,"6515357",2887.7,"GRAHAM ASSET MANAGEMENT LTD"
"Bracknell Forest Council","http://opendatacommunities.org/id/unitary-authority/bracknell-forest","Bracknell Forest Council","00MA","Homelessness","Accommodation within own Stock","Council Own Properties","R&M - Reactive",31/03/2013 00:00:00,"6515359",1096.7,"GRAHAM ASSET MANAGEMENT LTD"
"Bracknell Forest Council","http://opendatacommunities.org/id/unitary-authority/bracknell-forest","Bracknell Forest Council","00MA","Services to Young People","Other Services to Young People","Youth Centres Building Maintenance","R&M - Reactive",31/03/2013 00:00:00,"6515361",573.41,"GRAHAM ASSET MANAGEMENT LTD"
"Bracknell Forest Council","http://opendatacommunities.org/id/unitary-authority/bracknell-forest","Bracknell Forest Council","00MA","Libraries","Branch Libraries","Sandhurst Library","Gas",02/05/2013 00:00:00,"30218385",152.13,"CORONA ENERGY RETAIL 4 LTD"
"Bracknell Forest Council","http://opendatacommunities.org/id/unitary-authority/bracknell-forest","Bracknell Forest Council","00MA","Libraries","Branch Libraries","Binfield Library","Gas",02/05/2013 00:00:00,"30218385",168.23,"CORONA ENERGY RETAIL 4 LTD"
"Bracknell Forest Council","http://opendatacommunities.org/id/unitary-authority/bracknell-forest","Bracknell Forest Council","00MA","Primary Schools","Delegated Primary School Budgets","St Michael's (Sandhurst) - Primary","Gas",02/05/2013 00:00:00,"30218385",173.42,"CORONA ENERGY RETAIL 4 LTD"
"Bracknell Forest Council","http://opendatacommunities.org/id/unitary-authority/bracknell-forest","Bracknell Forest Council","00MA","Secondary Schools","Delegated Secondary Schools Budgets","Brakenhale - Secondary","Gas",02/05/2013 00:00:00,"30218385",185.97,"CORONA ENERGY RETAIL 4 LTD"
"Bracknell Forest Council","http://opendatacommunities.org/id/unitary-authority/bracknell-forest","Bracknell Forest Council","00MA","Management and Support Services - CYPL","Holding Codes - net nil","Ranelagh Academy","Gas",02/05/2013 00:00:00,"30218385",189.13,"CORONA ENERGY RETAIL 4 LTD"
"Bracknell Forest Council","http://opendatacommunities.org/id/unitary-authority/bracknell-forest","Bracknell Forest Council","00MA","Primary Schools","Delegated Primary School Budgets","Uplands - Primary","Gas",02/05/2013 00:00:00,"30218385",206.91,"CORONA ENERGY RETAIL 4 LTD"
"Bracknell Forest Council","http://opendatacommunities.org/id/unitary-authority/bracknell-forest","Bracknell Forest Council","00MA","Secondary Schools","Delegated Secondary Schools Budgets","Brakenhale - Secondary","Gas",02/05/2013 00:00:00,"30218385",211.08,"CORONA ENERGY RETAIL 4 LTD"
"Bracknell Forest Council","http://opendatacommunities.org/id/unitary-authority/bracknell-forest","Bracknell Forest Council","00MA","Primary Schools","Delegated Primary School Budgets","Fox Hill - Primary","Gas",02/05/2013 00:00:00,"30218385",240.76,"CORONA ENERGY RETAIL 4 LTD"
"Bracknell Forest Council","http://opendatacommunities.org/id/unitary-authority/bracknell-forest","Bracknell Forest Council","00MA","Services to Young People","Other Services to Young People","The Wayz","Gas",02/05/2013 00:00:00,"30218385",244.65,"CORONA ENERGY RETAIL 4 LTD"
"Bracknell Forest Council","http://opendatacommunities.org/id/unitary-authority/bracknell-forest","Bracknell Forest Council","00MA","Services to Young People","Other Services to Young People","Great Hollands Youth Centre","Gas",02/05/2013 00:00:00,"30218385",249.21,"CORONA ENERGY RETAIL 4 LTD"
"Bracknell Forest Council","http://opendatacommunities.org/id/unitary-authority/bracknell-forest","Bracknell Forest Council","00MA","Family Support Services","Other family support services","Family Centre Running Costs","Gas",02/05/2013 00:00:00,"30218385",262.44,"CORONA ENERGY RETAIL 4 LTD"
"Bracknell Forest Council","http://opendatacommunities.org/id/unitary-authority/bracknell-forest","Bracknell Forest Council","00MA","Open Spaces","Community Parks & Open Spaces","Urban Parks  - Maintenance","Gas",02/05/2013 00:00:00,"30218385",343.27,"CORONA ENERGY RETAIL 4 LTD"
"Bracknell Forest Council","http://opendatacommunities.org/id/unitary-authority/bracknell-forest","Bracknell Forest Council","00MA","Services to Young People","Other Services to Young People","Portman Close Running Costs","Gas",02/05/2013 00:00:00,"30218385",344.18,"CORONA ENERGY RETAIL 4 LTD"
"Bracknell Forest Council","http://opendatacommunities.org/id/unitary-authority/bracknell-forest","Bracknell Forest Council","00MA","Primary Schools","Delegated Primary School Budgets","Wildridings - Primary","Gas",02/05/2013 00:00:00,"30218385",356.89,"CORONA ENERGY RETAIL 4 LTD"
"Bracknell Forest Council","http://opendatacommunities.org/id/unitary-authority/bracknell-forest","Bracknell Forest Council","00MA","Services to Young People","Other Services to Young People","Priestwood Youth Centre","Gas",02/05/2013 00:00:00,"30218385",382.82,"CORONA ENERGY RETAIL 4 LTD"
"Bracknell Forest Council","http://opendatacommunities.org/id/unitary-authority/bracknell-forest","Bracknell Forest Council","00MA","Recreation, Sports and Leisure","Dual Use Centres","Sandhurst Sports Centre","R&M - Reactive",31/03/2013 00:00:00,"6515368",822.55,"GRAHAM ASSET MANAGEMENT LTD"
"Bracknell Forest Council","http://opendatacommunities.org/id/unitary-authority/bracknell-forest","Bracknell Forest Council","00MA","Holding Accounts not in Budget Book - COF","General Holding Accounts","Certificated Contract Payments","R&M - Reactive",31/03/2013 00:00:00,"6515369",15638.36,"GRAHAM ASSET MANAGEMENT LTD"
"Bracknell Forest Council","http://opendatacommunities.org/id/unitary-authority/bracknell-forest","Bracknell Forest Council","00MA","Holding Accounts not in Budget Book - COF","General Holding Accounts","Certificated Contract Payments","R&M - Service Contracts",31/03/2013 00:00:00,"6515370",11274.4,"GRAHAM ASSET MANAGEMENT LTD"
"Bracknell Forest Council","http://opendatacommunities.org/id/unitary-authority/bracknell-forest","Bracknell Forest Council","00MA","Holding Accounts not in Budget Book - COF","General Holding Accounts","Certificated Contract Payments","R&M - Reactive",31/03/2013 00:00:00,"6515498",12477.31,"GRAHAM ASSET MANAGEMENT LTD"
"Bracknell Forest Council","http://opendatacommunities.org/id/unitary-authority/bracknell-forest","Bracknell Forest Council","00MA","Business Support","Premises Development","Easthampstead Shops","R&M - Reactive",31/03/2013 00:00:00,"6515501",3520.21,"GRAHAM ASSET MANAGEMENT LTD"
"Bracknell Forest Council","http://opendatacommunities.org/id/unitary-authority/bracknell-forest","Bracknell Forest Council","00MA","Business Support","Premises Development","Priestwood Shop Flats","R&M - Reactive",31/03/2013 00:00:00,"6515502",800.64,"GRAHAM ASSET MANAGEMENT LTD"
"Bracknell Forest Council","http://opendatacommunities.org/id/unitary-authority/bracknell-forest","Bracknell Forest Council","00MA","","","Improvements & Capitalised Repairs (Council Wide)","Construction - Contract Payments",19/03/2013 00:00:00,"6515508",6597.5,"GRAHAM ASSET MANAGEMENT LTD"
"Bracknell Forest Council","http://opendatacommunities.org/id/unitary-authority/bracknell-forest","Bracknell Forest Council","00MA","Central Support Services - COF","Construction and Property","Time Square Office","R&M - Reactive",31/03/2013 00:00:00,"6515696",1248.5,"GRAHAM ASSET MANAGEMENT LTD"
"Bracknell Forest Council","http://opendatacommunities.org/id/unitary-authority/bracknell-forest","Bracknell Forest Council","00MA","","","Improvements & Capitalised Repairs (Council Wide)","Construction - Contract Payments",31/03/2013 00:00:00,"6515702",12190.3,"GRAHAM ASSET MANAGEMENT LTD"
"Bracknell Forest Council","http://opendatacommunities.org/id/unitary-authority/bracknell-forest","Bracknell Forest Council","00MA","Central Support Services - COF","Construction and Property","Depot Facilities","R&M - Reactive",28/02/2013 00:00:00,"6515954",1017.5,"GRAHAM ASSET MANAGEMENT LTD"
"Bracknell Forest Council","http://opendatacommunities.org/id/unitary-authority/bracknell-forest","Bracknell Forest Council","00MA","Business Support","Premises Development","Priestwood Shops","R&M - Reactive",18/02/2013 00:00:00,"6516051",9927.5,"GRAHAM ASSET MANAGEMENT LTD"
"Bracknell Forest Council","http://opendatacommunities.org/id/unitary-authority/bracknell-forest","Bracknell Forest Council","00MA","Services to Young People","Other Services to Young People","Portman Close Running Costs","R&M - Reactive",31/10/2012 00:00:00,"6516055",1399.44,"GRAHAM ASSET MANAGEMENT LTD"
"Bracknell Forest Council","http://opendatacommunities.org/id/unitary-authority/bracknell-forest","Bracknell Forest Council","00MA","","","Improvements & Capitalised Repairs (Council Wide)","Construction - Contract Payments",31/10/2012 00:00:00,"6516416",2142,"GRAHAM ASSET MANAGEMENT LTD"
"Bracknell Forest Council","http://opendatacommunities.org/id/unitary-authority/bracknell-forest","Bracknell Forest Council","00MA","Homelessness","Accommodation within own Stock","Council Own Properties","R&M - Reactive",30/11/2012 00:00:00,"6516468",900.24,"GRAHAM ASSET MANAGEMENT LTD"
"Bracknell Forest Council","http://opendatacommunities.org/id/unitary-authority/bracknell-forest","Bracknell Forest Council","00MA","Secondary Schools","Centrally Managed Expenditure - Secondary","College Hall PRU","Gas",02/05/2013 00:00:00,"30218385",408.95,"CORONA ENERGY RETAIL 4 LTD"
"Bracknell Forest Council","http://opendatacommunities.org/id/unitary-authority/bracknell-forest","Bracknell Forest Council","00MA","Primary Schools","Delegated Primary School Budgets","St Margaret Clitherow - Catholic Primary","Gas",02/05/2013 00:00:00,"30218385",411.66,"CORONA ENERGY RETAIL 4 LTD"
"Bracknell Forest Council","http://opendatacommunities.org/id/unitary-authority/bracknell-forest","Bracknell Forest Council","00MA","Primary Schools","Delegated Primary School Budgets","Ascot Heath - Infant","Gas",02/05/2013 00:00:00,"30218385",496.13,"CORONA ENERGY RETAIL 4 LTD"
"Bracknell Forest Council","http://opendatacommunities.org/id/unitary-authority/bracknell-forest","Bracknell Forest Council","00MA","Services to Young People","Other Services to Young People","Whitegrove Youth Centre","Gas",02/05/2013 00:00:00,"30218385",550.55,"CORONA ENERGY RETAIL 4 LTD"
"Bracknell Forest Council","http://opendatacommunities.org/id/unitary-authority/bracknell-forest","Bracknell Forest Council","00MA","Primary Schools","Delegated Primary School Budgets","St Michael's (Easthampstead) - Primary","Gas",02/05/2013 00:00:00,"30218385",551.6,"CORONA ENERGY RETAIL 4 LTD"
"Bracknell Forest Council","http://opendatacommunities.org/id/unitary-authority/bracknell-forest","Bracknell Forest Council","00MA","Primary Schools","Delegated Primary School Budgets","Winkfield St Mary's - Primary","Gas",02/05/2013 00:00:00,"30218385",565.89,"CORONA ENERGY RETAIL 4 LTD"
"Bracknell Forest Council","http://opendatacommunities.org/id/unitary-authority/bracknell-forest","Bracknell Forest Council","00MA","Children Looked After","Other children looked after services","Larchwood Running Costs","Gas",02/05/2013 00:00:00,"30218385",592.55,"CORONA ENERGY RETAIL 4 LTD"
"Bracknell Forest Council","http://opendatacommunities.org/id/unitary-authority/bracknell-forest","Bracknell Forest Council","00MA","Management and Support Services - CYPL","Holding Codes - net nil","Ranelagh Academy","Gas",02/05/2013 00:00:00,"30218385",599.09,"CORONA ENERGY RETAIL 4 LTD"
"Bracknell Forest Council","http://opendatacommunities.org/id/unitary-authority/bracknell-forest","Bracknell Forest Council","00MA","Primary Schools","Delegated Primary School Budgets","Meadow Vale - Primary","Gas",02/05/2013 00:00:00,"30218385",611.68,"CORONA ENERGY RETAIL 4 LTD"
"Bracknell Forest Council","http://opendatacommunities.org/id/unitary-authority/bracknell-forest","Bracknell Forest Council","00MA","Primary Schools","Delegated Primary School Budgets","The Pines School","Gas",02/05/2013 00:00:00,"30218385",634.5,"CORONA ENERGY RETAIL 4 LTD"
"Bracknell Forest Council","http://opendatacommunities.org/id/unitary-authority/bracknell-forest","Bracknell Forest Council","00MA","Primary Schools","Delegated Primary School Budgets","Warfield CE - Primary","Gas",02/05/2013 00:00:00,"30218385",648.97,"CORONA ENERGY RETAIL 4 LTD"
"Bracknell Forest Council","http://opendatacommunities.org/id/unitary-authority/bracknell-forest","Bracknell Forest Council","00MA","Primary Schools","Delegated Primary School Budgets","Cranbourne - Primary","Gas",02/05/2013 00:00:00,"30218385",678.08,"CORONA ENERGY RETAIL 4 LTD"
"Bracknell Forest Council","http://opendatacommunities.org/id/unitary-authority/bracknell-forest","Bracknell Forest Council","00MA","Services to Young People","Other Services to Young People","Coopers Hill Youth Centre","Gas",02/05/2013 00:00:00,"30218385",712.87,"CORONA ENERGY RETAIL 4 LTD"
"Bracknell Forest Council","http://opendatacommunities.org/id/unitary-authority/bracknell-forest","Bracknell Forest Council","00MA","Primary Schools","Delegated Primary School Budgets","Wildmoor Heath School","Gas",02/05/2013 00:00:00,"30218385",751.82,"CORONA ENERGY RETAIL 4 LTD"
"Bracknell Forest Council","http://opendatacommunities.org/id/unitary-authority/bracknell-forest","Bracknell Forest Council","00MA","Learning Disability (under 65)","Day Care","Bracknell Day Services","Gas",02/05/2013 00:00:00,"30218385",771.66,"CORONA ENERGY RETAIL 4 LTD"
"Bracknell Forest Council","http://opendatacommunities.org/id/unitary-authority/bracknell-forest","Bracknell Forest Council","00MA","Primary Schools","Delegated Primary School Budgets","Holly Spring - Junior","Gas",02/05/2013 00:00:00,"30218385",781,"CORONA ENERGY RETAIL 4 LTD"
"Bracknell Forest Council","http://opendatacommunities.org/id/unitary-authority/bracknell-forest","Bracknell Forest Council","00MA","Primary Schools","Delegated Primary School Budgets","Wooden Hill - Primary","Gas",02/05/2013 00:00:00,"30218385",799.65,"CORONA ENERGY RETAIL 4 LTD"
"Bracknell Forest Council","http://opendatacommunities.org/id/unitary-authority/bracknell-forest","Bracknell Forest Council","00MA","Primary Schools","Delegated Primary School Budgets","Crowthorne - Primary","Gas",02/05/2013 00:00:00,"30218385",895.77,"CORONA ENERGY RETAIL 4 LTD"
"Bracknell Forest Council","http://opendatacommunities.org/id/unitary-authority/bracknell-forest","Bracknell Forest Council","00MA","Management and Support Services - CYPL","Holding Codes - net nil","Ranelagh Academy","Gas",02/05/2013 00:00:00,"30218385",907.67,"CORONA ENERGY RETAIL 4 LTD"
"Bracknell Forest Council","http://opendatacommunities.org/id/unitary-authority/bracknell-forest","Bracknell Forest Council","00MA","Primary Schools","Delegated Primary School Budgets","Binfield CE - Primary","Gas",02/05/2013 00:00:00,"30218385",944.56,"CORONA ENERGY RETAIL 4 LTD"
"Bracknell Forest Council","http://opendatacommunities.org/id/unitary-authority/bracknell-forest","Bracknell Forest Council","00MA","Services to Young People","Adult and Community Learning","Open Learning Centre - Brakenhale","Gas",02/05/2013 00:00:00,"30218385",971.45,"CORONA ENERGY RETAIL 4 LTD"
"Bracknell Forest Council","http://opendatacommunities.org/id/unitary-authority/bracknell-forest","Bracknell Forest Council","00MA","Recreation, Sports and Leisure","Golf Courses","Golf Course Management & Administration","Gas",02/05/2013 00:00:00,"30218385",1004.52,"CORONA ENERGY RETAIL 4 LTD"
"Bracknell Forest Council","http://opendatacommunities.org/id/unitary-authority/bracknell-forest","Bracknell Forest Council","00MA","Environmental Initiatives","Sustainable Development Strategies","South Hill Park Energy","Gas",02/05/2013 00:00:00,"30218385",1052.24,"CORONA ENERGY RETAIL 4 LTD"
"Bracknell Forest Council","http://opendatacommunities.org/id/unitary-authority/bracknell-forest","Bracknell Forest Council","00MA","Central Support Services - COF","Construction and Property","Easthampstead & Seymour House","Gas",02/05/2013 00:00:00,"30218385",1129.66,"CORONA ENERGY RETAIL 4 LTD"
"Bracknell Forest Council","http://opendatacommunities.org/id/unitary-authority/bracknell-forest","Bracknell Forest Council","00MA","Primary Schools","Delegated Primary School Budgets","Birch Hill - Primary","Gas",02/05/2013 00:00:00,"30218385",1183.51,"CORONA ENERGY RETAIL 4 LTD"
"Bracknell Forest Council","http://opendatacommunities.org/id/unitary-authority/bracknell-forest","Bracknell Forest Council","00MA","Culture and Heritage","Heritage Museums & Galleries","The Look Out","Gas",02/05/2013 00:00:00,"30218385",1207.73,"CORONA ENERGY RETAIL 4 LTD"
"Bracknell Forest Council","http://opendatacommunities.org/id/unitary-authority/bracknell-forest","Bracknell Forest Council","00MA","Primary Schools","Delegated Primary School Budgets","Crown Wood - Primary","Gas",02/05/2013 00:00:00,"30218385",1213.6,"CORONA ENERGY RETAIL 4 LTD"
"Bracknell Forest Council","http://opendatacommunities.org/id/unitary-authority/bracknell-forest","Bracknell Forest Council","00MA","Primary Schools","Delegated Primary School Budgets","Jennets Park Primary School","Gas",02/05/2013 00:00:00,"30218385",1273.58,"CORONA ENERGY RETAIL 4 LTD"
"Bracknell Forest Council","http://opendatacommunities.org/id/unitary-authority/bracknell-forest","Bracknell Forest Council","00MA","Primary Schools","Delegated Primary School Budgets","Owlsmoor - Primary","Gas",02/05/2013 00:00:00,"30218385",1276.68,"CORONA ENERGY RETAIL 4 LTD"
"Bracknell Forest Council","http://opendatacommunities.org/id/unitary-authority/bracknell-forest","Bracknell Forest Council","00MA","Learning Disability (under 65)","Residential Care Home Placements","Waymead - Short Stay","Gas",02/05/2013 00:00:00,"30218385",1347.74,"CORONA ENERGY RETAIL 4 LTD"
"Bracknell Forest Council","http://opendatacommunities.org/id/unitary-authority/bracknell-forest","Bracknell Forest Council","00MA","Primary Schools","Delegated Primary School Budgets","Whitegrove - Primary","Gas",02/05/2013 00:00:00,"30218385",1408.1,"CORONA ENERGY RETAIL 4 LTD"
"Bracknell Forest Council","http://opendatacommunities.org/id/unitary-authority/bracknell-forest","Bracknell Forest Council","00MA","Older People (Aged 65 or Over)","Residential Care Home Placements","Bridgewell Unit","Gas",02/05/2013 00:00:00,"30218385",1427.4,"CORONA ENERGY RETAIL 4 LTD"
"Bracknell Forest Council","http://opendatacommunities.org/id/unitary-authority/bracknell-forest","Bracknell Forest Council","00MA","Primary Schools","Delegated Primary School Budgets","College Town - Infant & Nursery","Gas",02/05/2013 00:00:00,"30218385",1434.67,"CORONA ENERGY RETAIL 4 LTD"
"Bracknell Forest Council","http://opendatacommunities.org/id/unitary-authority/bracknell-forest","Bracknell Forest Council","00MA","Primary Schools","Delegated Primary School Budgets","Holly Spring - Junior","Gas",02/05/2013 00:00:00,"30218385",1439.94,"CORONA ENERGY RETAIL 4 LTD"
"Bracknell Forest Council","http://opendatacommunities.org/id/unitary-authority/bracknell-forest","Bracknell Forest Council","00MA","Older People (Aged 65 or Over)","Residential Care Home Placements","Heathlands EPH","Gas",02/05/2013 00:00:00,"30218385",1656.79,"CORONA ENERGY RETAIL 4 LTD"
"Bracknell Forest Council","http://opendatacommunities.org/id/unitary-authority/bracknell-forest","Bracknell Forest Council","00MA","Secondary Schools","Delegated Secondary Schools Budgets","Sandhurst - Secondary","Gas",02/05/2013 00:00:00,"30218385",1704.73,"CORONA ENERGY RETAIL 4 LTD"
"Bracknell Forest Council","http://opendatacommunities.org/id/unitary-authority/bracknell-forest","Bracknell Forest Council","00MA","Management and Support Services - CYPL","Holding Codes - net nil","Ranelagh Academy","Gas",02/05/2013 00:00:00,"30218385",1707.59,"CORONA ENERGY RETAIL 4 LTD"
"Bracknell Forest Council","http://opendatacommunities.org/id/unitary-authority/bracknell-forest","Bracknell Forest Council","00MA","Central Support Services - COF","Construction and Property","Easthampstead & Seymour House","Gas",02/05/2013 00:00:00,"30218385",1787.31,"CORONA ENERGY RETAIL 4 LTD"
"Bracknell Forest Council","http://opendatacommunities.org/id/unitary-authority/bracknell-forest","Bracknell Forest Council","00MA","Primary Schools","Delegated Primary School Budgets","Holly Spring - Junior","Gas",02/05/2013 00:00:00,"30218385",1811.24,"CORONA ENERGY RETAIL 4 LTD"
"Bracknell Forest Council","http://opendatacommunities.org/id/unitary-authority/bracknell-forest","Bracknell Forest Council","00MA","Primary Schools","Delegated Primary School Budgets","Holly Spring - Junior","Gas",02/05/2013 00:00:00,"30218385",1898.7,"CORONA ENERGY RETAIL 4 LTD"
"Bracknell Forest Council","http://opendatacommunities.org/id/unitary-authority/bracknell-forest","Bracknell Forest Council","00MA","Primary Schools","Delegated Primary School Budgets","Sandy Lane Primary School","Gas",02/05/2013 00:00:00,"30218385",2018.95,"CORONA ENERGY RETAIL 4 LTD"
"Bracknell Forest Council","http://opendatacommunities.org/id/unitary-authority/bracknell-forest","Bracknell Forest Council","00MA","Secondary Schools","Delegated Secondary Schools Budgets","Garth Hill - Secondary","Gas",02/05/2013 00:00:00,"30218385",2168.09,"CORONA ENERGY RETAIL 4 LTD"
"Bracknell Forest Council","http://opendatacommunities.org/id/unitary-authority/bracknell-forest","Bracknell Forest Council","00MA","Primary Schools","Delegated Primary School Budgets","Great Hollands Primary School","Gas",02/05/2013 00:00:00,"30218385",2237.23,"CORONA ENERGY RETAIL 4 LTD"
"Bracknell Forest Council","http://opendatacommunities.org/id/unitary-authority/bracknell-forest","Bracknell Forest Council","00MA","Central Support Services - COF","Construction and Property","Depot Facilities","Gas",02/05/2013 00:00:00,"30218385",2791.45,"CORONA ENERGY RETAIL 4 LTD"
"Bracknell Forest Council","http://opendatacommunities.org/id/unitary-authority/bracknell-forest","Bracknell Forest Council","00MA","Cemeteries, Crematoria & Mortuary Services","Cemeteries & Crematorium","Easthampstead Park Cemetery & Crematorium","Gas",02/05/2013 00:00:00,"30218385",2857.37,"CORONA ENERGY RETAIL 4 LTD"
